Workbook

Sheet はじめに

Sheet 提出書類一覧
A1: 工事提出書類一覧 | D1: 提出タイミング 契⇒契約～工事着手 工⇒工事中 変⇒設計変更時 完⇒工事完成時
A2: ※ 以下、∇を選択していただくと各欄にフィルターをかけることができます。 | D2: 注）工事書類は工期内の日付で提出すること
A3: 工事書類は以下の提出様式を参考に [ 紙・PDFによる ]提出をよろしくお願い申し上げます。
A4: タイミング | B4: シート番号 | C4: 提出書類 | D4: 提出様式 | E4: 部数 | F4: 提出先 | H4: 提出期限 | J4: 備考
A5: 契 | B5: 42 | C5: 工期又は請負金額の額に影響を及ぼす事象に関する情報の通知書 | D5: PDF | E5: 1部 | F5: 総務課 | H5: 落札決定から契約締結までに | J5: 工期又は請負金額の額に影響を及ぼす事象が発生するおそれがある場合のみ提出（両面印刷）
A6: 契 | B6: ー | C6: 工事請負契約書 | F6: 総務課 | H6: 契約時 | J6: 契約書に収入印紙を貼付のうえ割印、白色の製本テープで袋綴じし表裏それぞれに割印
A7: 契 変 | B7: 1 | C7: 現場代理人及び主任技術者又は監理技術者設置通知書 | D7: 紙/PDF | E7: 1部 | F7: 総務課 | H7: 契約時※1 | J7: 貴社の正社員から選定すること（両面印刷）
A8: 契 変 | B8: 2 | C8: 主任技術者・監理技術者経歴書 | D8: 紙/PDF | E8: 1部 | F8: 総務課 | H8: 契約時※1 | J8: 技術者本人が記入
A9: 契 | B9: - | C9: 貴社と上記 現場代理人・技術者との雇用関係を示す書類・監理技術者資格者証の写し（両面） | D9: 紙/PDF | E9: 1部 | F9: 総務課 | H9: 契約時 | J9: 健康保険被保険者証又は住民税特別徴収税額の通知書・変更通知書等のコピーを提出すること ※監理技術者資格者証で確認できる場合は不要
A10: 契 | B10: 3 | C10: 人員の配置を示す計画書 | D10: 紙/PDF | E10: 1部 | F10: 総務課 | H10: 契約締結後、速やかに※1 | J10: 「専任特例1号」適用時
A11: 契 | B11: 4 | C11: 建設業退職金共済制度「掛金収納書」貼付用紙 | D11: 紙/PDF | E11: 1部 | F11: 総務課 | H11: 契約時から1ヶ月以内 | J11: 追加購入分（請負金額増額変更の場合）は工事完成日までに提出すること
A12: 契 | B12: 5-1 | C12: 神戸住環境整備公社 契約等からの暴力団関係者排除、労働者の適正な労働条件にかかわる誓約書（元請用） | D12: 紙/PDF | E12: 1部 | F12: 総務課 | H12: 契約締結時
A13: 契 | B13: 5-2 | C13: 神戸住環境整備公社 契約等からの暴力団関係者排除、労働者の適正な労働条件にかかわる誓約書（下請用） | D13: 紙/PDF | E13: 1部 | F13: 総務課 | H13: 監督員より提出を求められた場合 | J13: 原則不要
A14: 契 | B14: 6 | C14: 公共工事前払金交付申請書・交付通知書・請求書 | D14: 紙/PDF | E14: 1部 | F14: 総務課 | H14: 前払い請求を行う場合、速やかに。 | J14: 前払金の対象工事
A15: 契 変 | B15: 11-1 | C15: 工事着手届・工事工程表 | D15: PDF | F15: 担当監督員 | H15: 契約締結後、速やかに※1
A16: 契 | B16: 12 | C16: 工事内訳明細書 | D16: PDF | F16: 担当監督員 | H16: 契約締結後14日以内
A17: 契 | B17: 13 | C17: 施工体系図 | D17: 紙/PDF | E17: 1部 | F17: 総務課 | H17: 作成後、速やかに | J17: 下請契約を締結するすべての工事
A18: 契 変 | B18: 14 | C18: 設計変更内訳書 | D18: PDF | F18: 担当監督員 | H18: 変更契約締結後、速やかに※１
A19: 契 | B19: 15-1,15-2 | C19: 建設リサイクル法第13条に基づく書面 15-1（公社用）15-2（業者用） | D19: 紙 | E19: 1部 | F19: 担当監督員 | H19: 契約締結後、速やかに | J19: 裏面と合わせて両面印刷、建設リサイクル法対象工事のみ
A20: 契 | B20: 16 | C20: 建築物解体等作業届 | D20: 紙 | E20: 所定 | F20: 各労働基準監督署 | H20: 着工前 | J20: 出典)石綿障害予防規則
A21: 契 | B21: 17-1,17-2 | C21: 1.特定工作物解体等工事実施届 2.特定粉じん排出等作業実施届出書 | D21: 紙 | E21: 所定 | F21: 神戸市環境局環境保全指導課 | H21: １.着工14日前 ２.着工7日前 | J21: 出典)大気汚染防止法
A22: 契 | B22: 18-1,18-2 | C22: 建築物等の解体等の作業に関するお知らせ | D22: PDF | F22: 担当監督員 | H22: 届出前（届出不要の場合は、着工前） | J22: 出典)石綿障害予防規則、大気汚染防止法及び環境の保全と創造に関する条例
A23: 契 | B23: 40 | C23: 週休２日制工事実施意向届出書 | D23: PDF | F23: 担当監督員 | H23: 監督員と協議の上、必要となった際は速やかに | J23: 受注者希望方式の場合のみ必要
A24: 契 | B24: 31 | C24: 校園設備等使用承認申請書兼承認書工事用電力・水道の使用申請 | D24: 紙 | E24: 各1部 | F24: 担当監督員 | H24: 現場説明後、速やかに | J24: 学校園での工事の場合 その他は施設管理者・監督員と協議
A25: 契 | B25: ー | C25: 再生資源利用（促進）計画書 | D25: 紙 | E25: 1部 | F25: 担当監督員 | H25: 工事着手の概ね10日前まで | J25: 建設リサイクル法11条対象工事
A26: 契 | B26: ー | C26: 工事カルテ受領証［受注］（コリンズ） | D26: PDF | F26: 担当監督員 | H26: 契約後土日祝除く10日以内に登録 | J26: 500万円以上の工事
A27: 工 | B27: 43 | C27: 施工体制台帳等チェックリスト | D27: 紙 | E27: 1部 | F27: 担当監督員 | H27: 施工体制台帳提出時 | J27: 施工体制台帳に添付し自主点検を行うもの
A28: 工 | B28: 7 | C28: 工事中間前払金交付申請書・交付通知書・請求書 | D28: 紙/PDF | E28: 各1部 | F28: 総務課 | H28: 中間前払金を請求するとき | J28: 前払金の対象工事
A29: 工 | B29: 8 | C29: 中間前金払認定請求書 兼 中間前金払認定調書 | D29: 紙/PDF | E29: 各1部 | F29: 担当監督員 | H29: 中間前払金を請求するとき | J29: 前払金の対象工事
A30: 工 | B30: 9 | C30: 工事履行報告書 | D30: 紙/PDF | E30: 3部 | F30: 担当監督員 | H30: 中間前払金を請求するとき | J30: 中間前払金認定請求書兼認定調書の添付資料
A31: 工 変 | B31: 19 | C31: 打合せ簿・指示書 | D31: PDF | F31: 担当監督員 | H31: その都度
A32: 工 | B32: 20 | C32: 検査職員の派遣について（依頼） | D32: PDF | F32: 担当監督員 | H32: その都度 | J32: 鉄骨製品検査等において公社検査員の派遣を依頼する場合
A33: 工 | B33: 21 | C33: 夜間作業届 | D33: PDF | F33: 担当監督員 | H33: その都度
A34: 工 | B34: 22 | C34: 長期休暇の現場管理及び緊急連絡方法について | D34: PDF | F34: 担当監督員 | H34: 長期休暇（年末年始・GW・お盆等）の前までに
A35: 工 | B35: 23 | C35: 台風時等の工事現場安全対策報告 | D35: PDF | F35: 担当監督員 | H35: 随時 | J35: 台風等の接近時
A36: 工 | B36: 24 | C36: 工事現場の熱中症予防対策報告書 | D36: PDF | F36: 担当監督員 | H36: 随時
A37: 工 | B37: 25 | C37: 工事安全点検表 | D37: PDF | F37: 担当監督員 | H37: 工事担当課安全パトロール実施前 | J37: 請負人チェック用
A38: 工 | B38: 26 | C38: 工事安全点検表（報告版) | D38: PDF | F38: 担当監督員 | H38: 工事担当課安全パトロール実施前 | J38: 監督員提出用（指示による）
A39: 工 | B39: 27 | C39: 安全パトロール是正報告書 | D39: PDF | F39: 担当監督員 | H39: 工事担当課安全パトロール実施後
A40: 工 完 | B40: 28 | C40: ダンプトラック過積載防止 搬出車両記録表 | D40: PDF | F40: 担当監督員 | H40: 毎月1回又は監督員が請求した場合 | J40: すべての工事
A41: 工 | B41: 29 | C41: ダンプトラック過積載防止 改善報告書 | D41: PDF | F41: 担当監督員 | H41: 監督員より提出を求められた場合
A42: 工 | B42: 30 | C42: 工事部分払請求書兼出来高内訳書 | D42: PDF | F42: 担当監督員 | H42: 部分払を請求するとき | J42: 100万円以上及び工期3ヶ月以上の工事
A43: 工 完 | B43: 32 | C43: 使用量等確認書兼報告書（工事用電力・水道の使用申請） | D43: 紙 | E43: 1部 | F43: 担当監督員 | H43: 完成時 | J43: 学校園での工事の場合 その他は施設管理者・監督員と協議
A44: 工 | B44: 34 | C44: 鍵借用書 | D44: 紙 | E44: 1部 | F44: 学校園 | H44: 学校園より鍵を借用するとき | J44: 学校園での工事の場合
B45: 41 | C45: 休日等取得計画・実績書 | D45: 紙/PDF | E45: 1部 | F45: 学校園 | H45: 学校園より鍵を借用するとき | J45: 学校園での工事の場合
A46: 変 | B46: - | C46: 工事カルテ受領書[変更]（コリンズ） | D46: PDF | F46: 担当監督員 | H46: 変更契約後、土日祝除く10日以内 | J46: 500万円以上の工事
A47: 完 | B47: 10-1 | C47: 請求書 | D47: 紙/PDF | E47: 1部 | F47: 担当監督員 | H47: 完成後、速やかに
A48: 完 | B48: 10-2 | C48: 請求書(契約保証金返還) | D48: 紙/PDF | E48: 1部 | F48: 総務課 | H48: 完成後、速やかに
A49: 完 | B49: 11-2 | C49: 工事完成届（一部完成届） | D49: PDF | F49: 担当監督員 | H49: 完成・一部完成後、速やかに
A50: 完 | B50: 33 | C50: 物品引渡書 | D50: 紙/PDF | E50: ※紙3部 | F50: 施設管理者、担当監督員、請負 各１部ずつ | H50: 完成時 | J50: ※先行してPDFで担当監督員に送付し、承認を得ること
A51: 完 | B51: 35 | C51: 補修連絡先一覧表 | D51: 紙/PDF | E51: ※紙3部 | F51: 担当監督員 | H51: 完成時 | J51: ※先行してPDFで担当監督員に送付し、承認を得ること
A52: 完 | B52: 36 | C52: 工事施工における創意工夫等実施状況報告書 | D52: PDF | F52: 担当監督員 | H52: 完成時 必要な場合
A53: 完 | B53: 37 | C53: 建設資材廃棄物引渡完了報告書 | D53: 紙 | E53: 2部 | F53: 環境局事業系廃棄物対策課、担当監督員 | H53: すべての産業廃棄物の引き渡しが完了してから15日以内 | J53: 出典)神戸市廃棄物の適正処理，再利用及び環境美化に関する条例、 各廃棄物のマニュフェスト（B2票）の写しを添付
A54: 完 | B54: - | C54: 再生資源利用（促進）実施書 | D54: 紙 | E54: 1部 | F54: 担当監督員 | H54: 完成後、速やかに | J54: 建設リサイクル法11条対象工事、最終請負金額100万円以上
A55: 完 | B55: - | C55: 工事カルテ受領書[竣工]（コリンズ） | D55: PDF | F55: 担当監督員 | H55: 完成後、土日祝除く10日以内 | J55: 500万円以上の工事
B56: アンケート | C56: 工事書類一括入力システム 使用者アンケート | D56: PDF | F56: 担当監督員 | H56: アンケートのご協力をお願いいたします。
B57: 参考 | C57: 神戸市建築住宅局 届出書類一覧HPリンク | H57: 各種、基準・マニュアル・資料等が記載されています。建築と設備で分かれておりますのでご注意ください。
B58: *各シート名をクリックするとリンク先シートへつながります（入力欄があるシートのみ）
B59: ※１ | C59: 変更の場合は、変更後ただちに提出のこと。
B60: ※２ | C60: 完成（一部完成）届の場合は、完成後ただちに提出のこと。

Sheet 一括入力シート
A1: 工事書類一括入力システム ： | C1: 一括入力シートに入力した情報は以降の提出書類に自動入力されます。 | M1: 必須項目：必ず入力が必要な項目です。
M2: 選択項目：契約内容に応じて入力してください。
A3: ※注意※ はじめに、入力シートに記入していただき、以降の提出書類を確認するようにしてください。
A5: 入力欄 | I5: 解説
J6: 必須項目：必ず入力が必要な項目です。
A7: 工事 | J7: 選択項目：契約内容に応じて入力してください。
A9: 工事名 | I9: 設計書の工事名を入力してください。
A11: 工事場所① | I11: 設計書の工事場所を入力してください。
A13: 工事場所② | I13: 設計書の工事場所が2か所ある場合、2か所目の工事場所を入力してください。
I14: 2か所以上の場合は、工事場所②の末尾に他と入力してください。
A15: 契約
B16: 令和 年 | C16: 月 | D16: 日
A17: 契約締結日 | I17: “令和3年7月29日”は年・月・日に“3”、“7”、“29”を入力してください。元号の入力は不要です。
A19: 工期 | B19: =CONCATENATE("令和 ",B21," 年 ",C21," 月 ",D21," 日 ～ 令和 ",IF(B30=0,"",B30)," 年 ",IF(C30=0,"",C30)," 月 ",IF(D30=0,"",D30)," 日") -> 令和 年 月 日 ～ 令和 年 月 日 | I19: 工期欄には、以下の入力が自動で入力されます。
B20: 令和 年 | C20: 月 | D20: 日
A21: 工事着手日 | I21: 原則として契約締結日の翌日を、設計書に指定着手日がある場合はその年月日を入力してください。
A23: 完成期限(予定年月) | B23: 令和 年 | C23: 月 | D23: 日
A24: 当初
A25: 第1回変更
A26: 第2回変更
A27: 第3回変更
A28: 第4回変更
A29: 第5回変更
A30: 最終 | B30: =IF(B25="",B24,IF(B26="",B25,IF(B27="",B26,IF(B28="",B27,IF(B29="",B28,B29))))) -> 0 | C30: =IF(C25="",C24,IF(C26="",C25,IF(C27="",C26,IF(C28="",C27,IF(C29="",C28,C29))))) -> 0 | D30: =IF(D25="",D24,IF(D26="",D25,IF(D27="",D26,IF(D28="",D27,IF(D29="",D28,D29))))) -> 0 | I30: 最終工期（完成期限）は直近の年月日が自動入力されます。
B31: 年 | C31: 月 | D31: 日
B32: 令和 年 | C32: 月 | D32: 日
A33: 完成年月日 | I33: 完成した年月日（工期内）を入力してください。
B34: 令和 年 | C34: 月 | D34: 日
A35: 完成検査合格日 | I35: 完成検査に合格した（工事目的物引渡し）年月日を入力してください。
A38: 契約金額（税抜・円） | D38: 消費税率（％） | F38: 10
A39: 当初 | D39: 税込金額 | F39: =IF(B39="","",ROUNDDOWN(B39*S42,0)) ->  | I39: 当初の契約金額は税抜きの金額を入力してください。
A41: 変更金額（税抜・円） | D41: 変更合計 (税込・円) | I41: 変更金額には、設計変更後の請負金額（税抜き・円）を入力してください。
A42: 第1回変更 | D42: 第1回変更後合計 | F42: =IF(B42="","",ROUNDDOWN(B42*S42,0)) ->  | I42: 変更合計には税込みの変更請負金額が自動で入力されます。 | S42: =IF(F38=10,1.1,F38/10) -> 1.1
A43: 第2回変更 | D43: 第2回変更後合計 | F43: =IF(B43="","",ROUNDDOWN(B43*S42,0)) -> 
A44: 第3回変更 | D44: 第3回変更後合計 | F44: =IF(B44="","",ROUNDDOWN(B44*S42,0)) ->  | I44: 3回以上変更する場合は、第3回変更金額を上書きしてください。
A45: 最終 | B45: =IF(F39="","",IF(F42="",F39,IF(F43="",F42,IF(F44="",F43,F44)))) ->  | I45: 最終請負金額は直近の請負金額が自動入力されます。
A48: 発注機関
A50: 発注機関 | B50: 一般財団法人 | D50: 神戸住環境整備公社 | I50: （一財）神戸住環境整備公社
A51: 理事長 | B51: 碓永信幸
B52: 部 | D52: 課
A53: 工事担当課 | B53: 施設整備 | I53: 工事担当課を選択してください。
A54: 担当監督員 | I54: 担当監督員の名前を入カしてください。
A55: 主任監督員
A56: 総括監督員
B57: 市外 | C57: 局番 | D57: 番号
A58: 電話番号 | I58: 担当監督員が属する係等の直通電話番号を入力してください。
B59: 市外 | C59: 局番 | D59: 番号
A60: ファクス番号 | I60: 担当監督員所属のファックス番号を入力してください。
A62: 請負人
A64: 請負人
A65: 住所
A66: 商号又は名称
A67: 代表者氏名 | I67: 代表者の役職名と氏名を入力してください。（例. 代表 ○○ ○○）
A68: 事業者登録番号 | C68: T | I68: 適格請求書発行事業者登録番号(数字13桁)を入力してください
B69: 市外 | C69: 局番 | D69: 番号
A70: 電話番号
B71: 市外 | C71: 局番 | D71: 番号
A72: ファクス番号
A74: ふりがな
A75: 現場代理人 氏名
B76: 市外 | C76: 局番 | D76: 番号
A77: 現場代理人 電話番号 | I77: 現場代理人の連絡先が必要な書面に記載する電話番号を入力してください。
A79: ふりがな
A80: 主任技術者 氏名
A81: 変更 | I81: 原則として主任技術者の工期途中交代は認められていません。
I82: 主任技術者の死亡、傷病、退職、その他真の理由により変更が生じた場合に入力してください。
A83: ふりがな
A84: 監理技術者 氏名
A85: 変更 | I85: 原則として監理技術者の工期途中交代は認められていません。
I86: 監理技術者の死亡、傷病、退職、その他真の理由により変更が生じた場合に入力してください。
A87: 振込先銀行 | Q87: 主な金融機関コード
I88: 提出書類 | J88: シート6 | K88: 公共工事前払金交付申請書 | N88: に自動入力されます。 | Q88: みずほ | S88: 0001
A89: 金融機関名 | E89: 銀行 | J89: シート7 | K89: 工事中間前払金交付申請書 | Q89: 三菱UFJ | S89: 0005
A90: 金融機関コード | J90: シート10 | K90: 請求書 | Q90: 三井住友 | S90: 0009
A91: 支店名 | D91: 支店 | I91: ※それぞれ別の口座を使用する場合は、随時各シートに直接入力してください。 | Q91: りそな | S91: 0010
A92: 支店番号 | Q92: ゆうちょ | S92: 9900
Q93: PayPay | S93: 0033
A94: 口座種別 | C94: その他入力欄→ | I94: 口座種別を選択してください。（その他の場合は入力欄に詳細を記入） | Q94: ソニー | S94: 0035
A95: 口座番号 | Q95: 楽天 | S95: 0036
Q96: 住信SBIネット | S96: 0038
A97: フリガナ | I97: 口座名義が30字を越える場合、金融機関によっては振込できないことがありますので、 | Q97: GMOあおぞらネット | S97: 0310
A98: 口座名義 | I98: 指定口座の金融機関に口座名義の省略等について相談してください。
Q99: 金融機関コード・支店コード検索はこちら（外部リンク）
Q100: 金融機関コード・銀行コード検索 (ajtw.net)
A109: =INT(#REF!/10000000000) ->  | B109: =INT(#REF!/1000000000) ->  | C109: =INT(#REF!/100000000) ->  | D109: =INT(#REF!/10000000) ->  | E109: =INT(#REF!/1000000) ->  | F109: =INT(#REF!/100000) ->  | G109: =INT(#REF!/10000) ->  | H109: =INT(#REF!/1000) ->  | I109: =INT(#REF!/100) ->  | J109: =INT(#REF!/10) ->  | K109: =INT(#REF!/1) -> 

Sheet 1
AJ1: ※表面と裏面の両面印刷で提出
B2: 現場代理人及び | J2: 主 任 技 術 者 | R2: 設置通知書 | Y2: ■ | AA2: 当初 | AE2: □ | AG2: 変更
J3: 監 理 技 術 者(補佐)
J4: 又は連絡員 | AJ4: 該当する箇所について、□→■としてください。
B5: 工 事 名 | G5: =一括入力シート!B9 -> 0
B8: 請 負 代 金 額 | P8: 十億 | U8: 百 万 | AB8: 千 | AH8: 円
N9: =AM139 ->  | P9: =AN139 ->  | Q9: =AO139 ->  | S9: =AP139 ->  | U9: =AQ139 ->  | W9: =AR139 ->  | Z9: =AS139 ->  | AB9: =AT139 ->  | AD9: =AU139 ->  | AF9: =IF(AV139="\",0,AV139) ->  | AH9: =AW139 -> 
B12: 現場代理人(職)氏名 | N12: =一括入力シート!B75 -> 0
N15: (変更する場合はその理由 )
B16: 兼務状況 | N16: □本工事常駐 □他の工事に現場代理人として兼務（工事名： ） □他の工事に主任技術者等として兼務（工事名： ）
B17: (他の工事に主任技術者等として兼務しているもの含む)
D20: =IF(一括入力シート!B80="","□","■") -> □ | F20: 主任技術者 | J20: (職)氏名 | N20: =IF(一括入力シート!B81="",一括入力シート!B80,一括入力シート!B81) -> 0
AJ21: 主任技術者名、監理技術者名は一括入力シートより自動入力されます。
D22: =IF(一括入力シート!B84="","□","■") -> □ | F22: 監理技術者 | N22: =IF(一括入力シート!B85="",一括入力シート!B84,一括入力シート!B85) -> 0
C24: ・現場代理人と兼務することは可能です。 | N24: （共同企業体の場合所属会社名 ） | AJ24: 該当する箇所について、□→■としてください。
C25: ・監理技術者を選任するときは、資格者証の | N25: （変更する場合はその理由 ）
C26: コピー等を貼付してください。 | N26: □ | O26: 監理技術者補佐を設置 | T26: （補佐氏名： ）
N27: 監理技術者補佐を設置する場合は、監理技術者補佐の経歴書を別途提出して
N28: ください。
B30: 兼務状況 | N30: □本工事専任 □他の工事に現場代理人として兼務（工事名： ） □他の工事に主任技術者等として兼務（工事名： ）
B31: (他の工事に現場代理人として兼務しているもの含む) ・本工事の現場代理人と主任技術者等を兼務している場合は記入不要。
B34: (選任した時のみ記載)
D35: □ | F35: 監理技術者補佐 | J35: (職)氏名
D36: □ | F36: 連絡員 | N36: □ | O36: 他の工事に連絡員として兼務 | V36: (工事名： )
D37: ・監理技術者補佐を選任するときは有資格であることを 証するもの及び経歴書を貼付してください | N37: ※監理技術者補佐は他の工事と兼務できません。 ※連絡員は複数配置することも可能です。
E39: 上記のとおり現場代理人等を選任しましたので通知します。
E40: なお、上記主任技術者又は、監理技術者は建設業法
H41: ※ | I41: □ | J41: イ | R41: ※ | T41: □ | U41: イ | AJ41: 該当する箇所について、□→■としてください。下部（裏面）参照のこと。
E42: 第７条第２号 | I42: □ | J42: ロ | M42: 、 | N42: 第１５条第２号 | T42: □ | U42: ロ | X42: 該当の資格を有するもの、
I43: □ | J43: ハ | T43: □ | U43: ハ
E44: 又は第２７条の１８第１項により資格者証の交付を受けたものであり、かつ過去５年以内に
E45: 監理技術者講習を修了した者であること、
E46: 監理技術者補佐は、
P47: ①建設業法第７条第２号,[ | X47: □ | Y47: イ、 | AA47: □ | AB47: ロ、 | AD47: □ | AE47: ハ] ※
P48: 該当し、建設業法第２７条の規定に基づく技術検
P49: 定において一級の第一次検定に合格した者
L50: □ | M50: 第１号
E51: 建設業法施行令第２９条 | P51: ②建設業法第１５条第２号,[ | Y51: □ | Z51: イ、 | AB51: □ | AC51: ロ、 | AE51: □ | AF51: ハ]※
P52: に該当する者
L54: □ | M54: 第２号に該当する者
E55: であることに相違ありません。
Q56: 令和 | S56: =IF(AE2="■","",一括入力シート!B17) -> 0 | U56: 年 | V56: =IF(AE2="■","",一括入力シート!C17) -> 0 | X56: 月 | Z56: =IF(AE2="■","",一括入力シート!D17) -> 0 | AB56: 日 | AJ56: 変更の場合は、提出年月日を直接入力してください。（印刷後の手書き可）
E57: =CONCATENATE(一括入力シート!B50," ",一括入力シート!D50)&" 理 事 長 あて" -> 一般財団法人 神戸住環境整備公社 理 事 長 あて
H58: 請負人 | K58: 所在地 | Q58: =一括入力シート!B65 -> 0
K60: 商号又は名称 | Q60: =一括入力シート!B66 -> 0
K62: 代表者又は
K63: 受任者名 | Q63: =一括入力シート!B67 -> 0
K65: 連絡先 | Q65: =一括入力シート!B70 -> 0 | S65: - | U65: =一括入力シート!C70 -> 0 | X65: - | AA65: =一括入力シート!D70 -> 0
B67: ※印は該当する方の□を各１つのみ入れてください。(裏面及び建築業法参照)神戸住環境整備公社(R7.4)
B68: ※主任技術者等とは、主任技術者、監理技術者をいう。
H70: 設 置 基 準 | P70: 資 格 要 件 | AB70: 備 考
C71: 主任技術者
H72: 監理技術者を置かなければならないこととされている特定建設業者を除くすべての建設業者は、その請け負った建設工事を施行するとき、工事現場における建設工事の施行の技術上の管理をつかさどるものとして、主任技術者を置かなければならない。 | P72: 次の(イ),(ロ),(ハ)のいずれかに該当しなければならない。 | AB72: 国、地方公共団体等が注文者である工作物に関する工事で、工事１件の請負代金の額が4,500万円以上（但し、建築工事の場合は9,000万円以上）については、工事現場ごとに専任の「主任技術者」又は「監理技術者」を置かなければならない。 専任の「監理技術者」を要する工事においては、監理技術者資格者証の交付を受けた者であり、かつ過去5年以内に監理技術者講習を修了した者でなければならない。
P74: <建設業法第7条第2号>
P75: (イ) | Q75: 許可を受けようとする建設業に係る建設工事に関し、学校教育法による高等学校（旧中等学校令による実業学校を含む）を卒業した後５年以上、又は同法による大学（旧大学令による大学を含む）若しくは高等専門学校（旧専門学校令による専門学校を含む）を卒業した後３年以上実務の経験を有する者で、在学中に国土交通省令で定める学科を修めたもの。
P83: (ロ) | Q83: 許可を受けようとする建設業に係る建設工事に関し10年以上実務の経験を有する者。
P85: (ハ) | Q85: 国土交通大臣が(イ)又は(ロ)に掲げる者と同等以上の知識及び技術又は技能を有するものと認定した者。
C88: 監理技術者
H89: 発注者から直接建設工事を請け負った特定建設業者で、5,000万円以上（建築工事の場合8,000万円以上）の工事を下請施行させるものは、工事現場における建設工事の施行の技術上の管理をつかさどるものとして、「監理技術者」を置かなければならない。 | P89: 主任技術者の資格要件を満たし、かつ、次の(イ)、(ロ)、(ハ)のいずれかに該当しなければならない。但し、土木工事、建築工事、電気工事、管工事、鋼構造物工事、舗装工事、造園工事の場合は、（イ）に該当する者又は（ハ）の規定により国土交通大臣が（イ）に掲げる者と同等以上の能力を有するものと認定した者。
P95: ＜建設業法第15条第2号＞
P96: (イ) | Q96: 建設業法の規定による技術検定その他の法令の規定による試験で許可を受けようとする建設業の種類に応じ国土交通大臣が定めるものに合格した者又は他の法令の規定による免許で許可を受けようとする建設業の種類に応じ国土交通大臣が定めるものを受けた者。
P102: (ロ) | Q102: 主任技術者に該当する者のうち、許可を受けようとする建設業に係る建設工事で、発注者から直接請け負い、その請負代金の額が政令で定める金額以上であるものに関し２年以上指導監督的な実務の経験を有する者。
P106: (ハ) | Q106: 国土交通大臣が(イ)又は(ロ)に掲げる者と同等以上の能力を有するものと認定した者。
C108: 監理技術者補佐
H109: 監理技術者の職務を補佐する者として政令で定める者を専任で置いた場合には監理技術者は２つの工事まで兼任で配置することができる。 | P109: 次の１号又は２号のいずれかに該当しなければならない。 | AB109: ※監理技術者補佐を専任で置いた場合、監理技術者は２つの工事まで兼任で配置することができる。
P110: ＜建設業法施行令第29条第１号＞
P111: 法第７条第２号イ、ロ又はハに該当する者のうち、法第26条の４第１項に規定する技術上の管理及び指導監督であって監理技術者がその職務として行うべきものに係る基礎的な知識及び能力を有すると認められる者として、建設工事の種類に応じ国土交通大臣が定める要件に該当する者。
P116: ＜建設業法施行令第29条第２号＞
P117: 国土交通大臣が前号に掲げる者と同等以上の能力を有するものと認定した者。
C120: 【建設業法第26条第３項第１号により主任技術者又は監理技術者の専任を要する工事を兼務できる要件】 ※請負人の責により確実に要件を満たすこと
C122: １）各工事の請負代金の額が、１億円未満（建築一式工事の場合は２億円未満）であること。
C123: ２）当該工事現場と他の工事現場との間の移動時間がおおむね２時間以内であること。
C124: ３）下請次数が３を超えていないこと。
C125: ４）主任技術者又は監理技術者との連絡その他必要な措置を講ずるための者(以下「連絡員」という。)を置いていること。 (土木一式工事又は建築一式工事の場合の連絡員は、同業種の建設工事に関し１年以上の実務の経験を有する者であること)
C127: ５）当該工事現場の施工体制を主任技術者又は監理技術者が情報通信技術を利用する方法により確認するための措置を講じていること。
C128: ６）人員の配置の計画書を作成し、工事現場毎に備え置くこと。
C129: ７）当該工事現場以外の場所から当該工事現場の状況の確認をするために必要な映像及び音声の送受信が可能な情報通信機器が設置され、 かつ当該機器を用いた通信を利用することが可能な環境が確保されていること。
C131: ８）兼務する建設工事の数は、２を超えないこと。
C132: ※詳しくは建設業法や「監理技術者制度運用マニュアルについて」等を参照すること。
AJ139: =一括入力シート!B45 ->  | AM139: =IF(LEN($AJ139)=10,"\",IF(LEN($AJ139)>=11,LEFT(RIGHT($AJ139,11),1),"")) ->  | AN139: =IF(LEN($AJ139)=9,"\",IF(LEN($AJ139)>=10,LEFT(RIGHT($AJ139,10),1),"")) ->  | AO139: =IF(LEN($AJ139)=8,"\",IF(LEN($AJ139)>=9,LEFT(RIGHT($AJ139,9),1),"")) ->  | AP139: =IF(LEN($AJ139)=7,"\",IF(LEN($AJ139)>=8,LEFT(RIGHT($AJ139,8),1),"")) ->  | AQ139: =IF(LEN($AJ139)=6,"\",IF(LEN($AJ139)>=7,LEFT(RIGHT($AJ139,7),1),"")) ->  | AR139: =IF(LEN($AJ139)=5,"\",IF(LEN($AJ139)>=6,LEFT(RIGHT($AJ139,6),1),"")) ->  | AS139: =IF(LEN($AJ139)=4,"\",IF(LEN($AJ139)>=5,LEFT(RIGHT($AJ139,5),1),"")) ->  | AT139: =IF(LEN($AJ139)=3,"\",IF(LEN($AJ139)>=4,LEFT(RIGHT($AJ139,4),1),"")) ->  | AU139: =IF(LEN($AJ139)=2,"\",IF(LEN($AJ139)>=3,LEFT(RIGHT($AJ139,3),1),"")) ->  | AV139: =IF(LEN($AJ139)=1,"\",IF(LEN($AJ139)>=2,LEFT(RIGHT($AJ139,2),1),"")) ->  | AW139: =IF(LEN(AJ139)>=1,LEFT(RIGHT(AJ139,1),1),"") -> 
... 1 more rows

Sheet 2
I2: 主任技術者 | Q2: 経 歴 書 | Y2: ■ | Z2: 当初 | AE2: □ | AF2: 変更 | AK2: 該当する箇所について、□→■としてください。
I3: 監理技術者（補佐）
B5: ふ り が な | L5: =IF(一括入力シート!B83="",一括入力シート!B79,一括入力シート!B83) -> 0 | X5: 生年月日
B6: 氏 名 | L6: =IF(AE2="■",IF(一括入力シート!B85="",一括入力シート!B81,一括入力シート!B85),IF(一括入力シート!B84="",一括入力シート!B80,一括入力シート!B84)) -> 0 | X6: 昭和 | AC6: 年 | AF6: 月 | AH6: 日生
AK7: 生年月日の年号を選び、年月日を直接入力してください。
B8: 学 歴 ・ 職 歴 ・ 免 許
B11: 最 終 学 歴 | X11: 卒業年月日
AG12: □ | AH12: 卒業
X13: 昭和 | AB13: 年 | AD13: 月 | AF13: 日 | AK13: 卒業（若しくは中退）した元号を選び、年月日を直接入力してください。
AG15: □ | AH15: 中退 | AK15: また、該当する箇所について、□→■としてください。
B18: 法 令 等 に よ る 免許 ※ | X18: 取得年月日
X20: 昭和 | AB20: 年 | AD20: 月 | AF20: 日 | AH20: 取 得 | AK20: 免許を取得した元号を選び、年月日を直接入力してください。
B25: 職 歴 | AC25: 自 | AD25: 昭和 | AG25: ・ | AK25: 職歴を直接入力してください。期間は元号を選び、以下のように入力してください。
AC27: 至 | AG27: ・
AC28: 自 | AG28: ・ | AK28: （記入例）
AK29: 株式会社○○建設 工事監理部 | AN29: 自 | AO29: 昭和 | AQ29: 63 | AR29: （年） ・ | AS29: 4 | AT29: （月）
AC30: 至 | AG30: ・
AC31: 自 | AG31: ・ | AN31: 至 | AO31: 平成 | AQ31: 10 | AR31: （年） ・ | AS31: 7 | AT31: （月）
AK32: □□建設工業株式会社 | AN32: 自 | AO32: 平成 | AQ32: 10 | AR32: （年） ・ | AS32: 8 | AT32: （月）
AC33: 至 | AG33: ・ | AN33: 現在に至る
E34: 工 事 経 歴 | AN34: 至 | AO34: 平成 | AR34: （年） ・ | AT34: （月）
B37: 発 注 者 | L37: 工 事 名 | W37: 請 負 金 額 | AD37: 期 間
AC39: 円 | AD39: 自 | AG39: ・ | AK39: 工事経歴の発注者、工事名、請負金額とその期間を直接入力してください。
AD41: 至 | AG41: ・
AC42: 円 | AD42: 自 | AG42: ・
AD44: 至 | AG44: ・
AC45: 円 | AD45: 自 | AG45: ・
AD47: 至 | AG47: ・
AC48: 円 | AD48: 自 | AG48: ・
AD50: 至 | AG50: ・
AC51: 円 | AD51: 自 | AG51: ・
AD53: 至 | AG53: ・
AC54: 円 | AD54: 自 | AG54: ・
AD56: 至 | AG56: ・
C58: 上 記 の と お り 相 違 あ り ま せ ん 。
F60: 令和 | I60: =IF(AE2="■","",一括入力シート!B17) -> 0 | J60: 年 | K60: =IF(AE2="■","",一括入力シート!C17) -> 0 | L60: 月 | M60: =IF(AE2="■","",一括入力シート!D17) -> 0 | N60: 日 | AK60: 変更の場合は、提出年月日を直接入力してください。（印刷後の手書き可）
I62: 主任技術者 | P62: 氏 名
I63: 監理技術者（補佐） | AK63: 印刷後、手書きで主任技術者または監理技術者（補佐）に〇を付けて氏名は当人の手書きサインとしてください。
B66: 〇本人が記入してください。 | X66: =CONCATENATE(一括入力シート!B50," ",一括入力シート!D50) -> 一般財団法人 神戸住環境整備公社
B67: 〇提出時に施工中の工事がある場合、当該工事を必ず記入してください。
B68: ※監理技術者補佐で建設業法施行令第28条第１号①に該当する場合は、主任技術者の要件に該当することが確認できる記載
B69: 及び技術検定で一級の第一次検定に合格した旨の記載が必要です。
... 1 more rows

Sheet 3
AE1: 令和 | AI1: 年 | AL1: 月 | AO1: 日
A3: 省令※117条の2又は17条の5に基づく人員の配置を示す計画書
A5: 対象期間 | F5: 令和 | K5: 年 | N5: 月 | Q5: 日 | R5: ～ | U5: 令和 | Y5: 年 | AB5: 月 | AE5: 日
A7: 建設業者 | F7: 名称（イ※2） | O7: =一括入力シート!B66 -> 0
F8: 所在地（イ） | O8: =一括入力シート!B67 -> 0
A9: 主任技術者又は監理技術者（営業所技術者又は特定営業所技術者） | F9: 氏名（ロ） | O9: =IF(一括入力シート!B85="",一括入力シート!B84,一括入力シート!B85) -> 0
F10: 所属営業所名（ロ） | AG10: ※17条の5の場合のみ記載
F11: 一日平均の 法定外労働時間（ハ） | O11: 見込み時間 | AB11: 実績時間
A13: 建設工事１ | F13: 工事名称（ニ(1)） | O13: =一括入力シート!B9 -> 0
F14: 工事現場所在地（ニ(1)） | O14: =一括入力シート!B11&IF(一括入力シート!B13="","",CHAR(10)&一括入力シート!B13) -> 
F15: 契約締結営業所 （ニ(1)） | O15: 名称 | AG15: ※17条の5の場合のみ記載 ※上記所属営業所と同じである必要
O16: 所在地
F17: 建設工事の内容（ニ(2)） | AG17: ※法別表第1上段のどれか
F18: 請負代金の額（ニ(3)） | O18: =一括入力シート!B45 ->  | AG18: ※1億円未満（建築一式工事の場合 は２億円未満）である必要
F19: 移動時間（ニ(4)） | AG19: ※１日で巡回可能かつ概ね２時間以内である必要
F20: 下請次数（ニ(5)） | AG20: ※３次以内である必要
F21: 工事現場の施工体制の確認方法（ニ(7)）
F22: 情報通信機器（ニ(8)）
F23: 連絡員（ニ(6)） | O23: 氏名 | T23: ='1'!N35 -> 0
O24: 所属会社
O25: 実務の経験 ※土木一式工事又は建築一式工事の場合に記載 ※実務の経験は１年以上である必要 | T25: 工事名称 | AE25: 期間
AG26: 年 | AI26: 月 | AJ26: ～ | AM26: 年 | AO26: 月
AG27: 年 | AI27: 月 | AJ27: ～ | AM27: 年 | AO27: 月
T28: 合計 | AL28: 年 | AO28: 月
A30: 建設工事２ | F30: 工事名称（ニ(1)）
F31: 所在地（ニ(1)）
F32: 建設工事の内容（ニ(2)） | AG32: ※法別表第1上段のどれか
F33: 請負代金の額（ニ(3)） | AG33: ※1億円未満（建築一式工事の場合 は２億円未満）である必要
F34: 移動時間（ニ(4)） | AG34: ※１日で巡回可能かつ概ね２時間以内である必要
F35: 下請次数（ニ(5)） | AG35: ※３次以内である必要
F36: 工事現場の施工体制の確認方法（ニ(7)）
F37: 情報通信機器（ニ(8)）
F38: 連絡員（ニ(6)） | O38: 氏名
O39: 所属会社
O40: 実務の経験 ※土木一式工事又は建築一式工事の場合に記載 ※実務の経験は１年以上である必要 | T40: 工事名称 | AE40: 期間
AG41: 年 | AI41: 月 | AJ41: ～ | AM41: 年 | AO41: 月
AG42: 年 | AI42: 月 | AJ42: ～ | AM42: 年 | AO42: 月
T43: 合計 | AL43: 年 | AO43: 月
A44: ※1：建設業法施行規則（昭和24年建設省令第14号）
A45: ※2：省令（17条の2第1項第5号又は省令17条の5第1項第5号）の該当する号等、他同じ
... 1 more rows

Sheet 4
E1: 建設業退職金共済制度 | Q1: 金融機関で共済証紙を購入し、金融機関が発行する領収証「掛金収納書」（契約者が発注者へ）と「掛金収納書」（契約者用）に、発注者名および工事名を記入して、「掛金収納書」（契約者が発注者へ）を当該発注機関に提出してください。
E2: 「掛金収納書」貼付用紙 | Q2: 共同企業体（JV）の場合は、各構成企業が購入した際の掛金収納書（各契約者氏名の下に（ ）書でJV名を記入）を、代表企業がとりまとめて提出してください。（JVの代表企業が一括して購入した場合には、代表企業が提出することになります。）
Q3: 共済証紙は、現場で働く人を雇ったときは、対象労働者数と当該労働者の就労日数を的確に把握し、それに応じた額を随時購入してください。
A4: 工事名 | F4: =一括入力シート!B9 -> 0
B5: 工事請負金額 | J5: =一括入力シート!B45 ->  | O5: 円 | Q5: 「掛金収納書」（契約者が発注者へ）を貼り付けてください。
B26: 証紙を購入しない場合の理由書
D27: １ 自社内で独自の共済制度があり、建退共対象の作業員を雇用しない。
D28: ２ そ の 他
F29: 所在地 | H29: =一括入力シート!B65 -> 0
C30: 請負人
F31: 商号又は名称 | H31: =一括入力シート!B66 -> 0
F33: 代表者又は 受任者名 | H33: =IF(一括入力シート!B67="","",一括入力シート!B67&" ") -> 
F35: 連絡先 | H35: =一括入力シート!B70 -> 0 | J35: - | K35: =一括入力シート!C70 -> 0 | M35: - | N35: =一括入力シート!D70 -> 0
A39: 1 | D39: 本書は、契約後１ヶ月以内に、建設業退職金共済制度の証紙を購入した際に
C40: 金融機関の発行する「掛金収納書」（契約者が発注者へ）を添付して、
C41: =CONCATENATE(一括入力シート!D50,"総務課に提出してください。") -> 神戸住環境整備公社総務課に提出してください。
A42: 2 | D42: 証紙を購入しない場合は、証紙購入をしない理由を、上記に記入のうえ提出
C43: してください。
... 1 more rows

Sheet 5-1
A2: 神戸住環境整備公社 契約等からの暴力団関係者排除、労働者の適正な労働条件に係る誓約書（元請用）
AA5: 公社発注工事名 | AJ5: =一括入力シート!B9 -> 0
AM6: 令和 | AS6: 年 | BA6: 月 | BI6: 日 | BQ6: 提出日を直接入力してください。
B7: =一括入力シート!D50&" 理事長 宛" -> 神戸住環境整備公社 理事長 宛
AA9: 住所 | AJ9: =一括入力シート!B65 -> 0
AA10: 氏名又は名称 | AJ10: =一括入力シート!B66 -> 0 | BR10: 令和4年4月1日より
AA11: 及び代表者名 | AJ11: =一括入力シート!B67 -> 0 | BR11: ←押印が廃止されました。
A13: 私は、神戸住環境整備公社が「神戸住環境整備公社契約事務等からの暴力団等の排除に関する要綱」（以下「暴力団等排除要綱」という。）に基づき、貴公社が行うすべての契約等から暴力団等を排除していることを認識し、また、貴公社の発注する業務に従事する労働者の適正な労働条件を確保したうえで、契約の締結を行うとともに、下記のとおり誓約いたします。 なお、これらの事項に反する場合、契約解除や違約罰・損害賠償請求、指名停止等、貴公社が行う一切の措置について異議の申し立てを行いません。 また、下請負人（一次及び二次下請以降すべての下請負人を含む。以下同じ。）又は原材料の購入契約その他本工事請負契約の履行に関連する契約の相手方（以下、「下請負人等」という。）に対し、これら及び下記の事項を遵守させることを誓約いたします。
BR14: 令和4年4月1日より
BR15: 下請負人用の様式について、原則 として記入及び提出を不要 とします。(発注者からの指示があった場合を除く。) 元請負人の責任 において、下請負人等に対 し暴力団排除及び労働者の適正な労働条件の確保 を遵守 させることにつ いて誓約 をお願い します。
A20: 記
A21: １ 暴力団等の排除に関すること
A22: (1) | B22: 暴力団等排除要綱第４条第１項各号のいずれにも該当しません。
A23: (2) | B23: 暴力団等排除要綱第４条第１項各号に該当する事由の有無を確認するため神戸市へ照会を行うことに合意し、貴公社の求めに応じ速やかに役員等名簿の提出を行います。
A24: (3) | B24: 暴力団等排除要綱第４条第１項各号に該当する者を下請負人等としません。また、神戸市への照会の結果又は神戸市からの通報により、下請負人等が暴力団等排除要綱第４条第１項各号のいずれかに該当することが明らかになった場合には、元請負人、及び当該下請負人等を下請負人等とする者の責任において当該下請負人等との契約を速やかに解除します。また、貴公社の求める期限内に当該下請負人等との契約の解除ができない場合には、契約解除や損害賠償請求等、貴公社が行う一切の措置について異議の申し立てを行いません。
A28: (4) | B28: 下請負人等との契約を含む標記の工事請負契約に係る一連の手続きにおいて、事務の連絡を行う者その他の関係者等に関して貴公社が神戸市照会の必要性を認めた場合、関係者に対して本誓約書の趣旨を説明の上で関係者より誓約書及び役員等名簿の提出を求め、速やかに貴公社に対して提供を行います。
A31: (5) | B31: 暴力団等排除要綱第４条第１項各号のいずれかに該当することが明らかになった場合、神戸市からの回答等の内容について、外郭団体等を含む貴公社関係部局が情報を共有すること、並びに暴力団等排除要綱に従い措置対象者名等について公表を行うことについて承諾します。
A35: ２ 適正な労働条件の確保に関すること
A36: (1) | B36: 標記の工事請負契約に関わっている労働者に対し、別表に掲げる労働関係法令を遵守し ます。
A37: (2) | B37: 標記の工事請負契約にかかる業務の一部を他の者に行わせようとする場合にあっては、別表に掲げる労働関係法令の遵守を誓約した者を受託者とします（一次及び二次下請以降すべての下請負人を含む。）。また、施工体制台帳は下請負人等と協力し元請負人が責任をもって資料等を確認の上作成し、下請契約締結後速やかに提出するほか、貴公社の指導により求められた資料は指定された期限までに貴公社に提出するなど神戸市の「建設工事における社会保険未加入対策に係る事務処理要領（平成31年3月20日行財契第1423号通知）」を遵守します。
A39: (3) | B39: 受託者が労働関係法令を遵守していないと認めるときは、当該受託者に対し、労働者の適正な労働条件を確保するために必要な措置を講じます。
A40: (4) | B40: 標記の工事請負契約に基づく業務において､最低賃金法第4条第1項の規定に違反したとして、検察官に送致されたとき、また、元請及び下請負人（二次以下を含む）が社会保険（健康保険、厚生年金保険、雇用保険）に加入していないと貴公社が認めたときに貴公社が行う本契約の解除、違約金の請求、指名停止その他貴公社が行う一切の措置について異議を唱えません。
A45: 別表（誓約事項２(1)(2)関係）
A46: 労働関係法令
A47: (1)労働基準法（昭和22年法律第49号）
A48: (2)労働組合法（昭和24年法律第174号）
A49: (3)最低賃金法（昭和34年法律第137号）
A50: (4)労働安全衛生法（昭和47年法律第57号）
A51: (5)雇用の分野における男女の均等な機会及び待遇の確保等に関する法律（昭和47年法律第113号）
A52: (6)労働者派遣事業の適正な運営の確保及び派遣労働者の保護等に関する法律（昭和60年法律第88号）
A53: (7)短時間労働者の雇用管理の改善等に関する法律（平成5年法律第76号）
A54: (8)労働契約法（平成19年法律第128号）
A55: (9)健康保険法(大正11年法律第70号)
A56: (10)厚生年金保険法(昭和29年法律第115号)
A57: (11)雇用保険法(昭和49年法律第116号)
A58: (12)労働保険の保険料の徴収等に関する法律(昭和44年法律第84号)
... 1 more rows

Sheet 5-2
A2: 神戸住環境整備公社 契約等からの暴力団関係者排除、労働者の適正な労働条件に係る誓約書（下請用）
AA5: 公社発注工事名 | AJ5: =一括入力シート!B9 -> 0 | BQ5: JVの場合は、○○特定建設共同企業体と記入した上で、構成員の住所、商号又は名称、代表者の役職名と氏名を入力してください。
AA6: 元請人 住所 | AJ6: =一括入力シート!B65 -> 0 | BQ6: 代表者を含む全構成員分の提出が必要となります。
AA7: 氏名又は名称 | AJ7: =一括入力シート!B66 -> 0
AA8: 及び代表者名 | AJ8: =一括入力シート!B67 -> 0
AM9: 令和 | AS9: 年 | BA9: 月 | BI9: 日 | BQ9: 落札決定日以降、下請負業者の工期始期（始期末到来の場合は誓約書提出日）までの日付を入力してください。（※手書き可）
B10: =一括入力シート!D50&" 理事長 宛" -> 神戸住環境整備公社 理事長 宛
AA12: 住所
AA13: 氏名又は名称 | BR13: 令和4年4月1日より
AA14: 及び代表者名 | BR14: ←押印が廃止されました。
A16: 私は、神戸住環境整備公社が「神戸住環境整備公社契約事務等からの暴力団等の排除に関する要綱」（以下「暴力団等排除要綱」という。）に基づき、貴公社が行うすべての契約等からの暴力団等を排除していることを認識したうえで、標記の工事請負契約（以下、「本工事請負契約」という。）に係る元請負人又は下請負人（一次及び二次下請以降すべての下請負人を含む。以下同じ。）又は原材料の購入契約その他本工事請負契約の履行に関連する契約相手方(以下、「下請負人等」という。)と契約の締結を行うとともに、下記のとおり誓約いたします。 また、神戸住環境整備公社の発注する業務に従事する労働者の適正な労働条件を確保したうえで、契約の締結を行うとともに、下記のとおり誓約いたします。 なお、これらの事項に反する場合、契約解除や違約罰・損害賠償請求、指名停止等、貴公社が行う一切の措置について異議の申し立てを行いません。
BR17: 令和4年4月1日より
BR18: 下請負人用の様式について、原則 として記入及び提出を不要 とします。(発注者からの指示があった場合を除く。) 元請負人の責任 において、下請負人等に対 し暴力団排除及び労働者の適正な労働条件の確保 を遵守 させることにつ いて誓約 をお願い します。
A23: 記
A24: １ 暴力団等の排除に関すること
A25: (1) | B25: 暴力団等排除要綱第４条第１項各号のいずれにも該当しません。
A26: (2) | B26: 暴力団等排除要綱第４条第１項各号に該当する事由の有無を確認するため神戸市へ照会を行うことに合意し、貴公社の求めに応じ速やかに役員等名簿の提出を行います。
A27: (3) | B27: 暴力団等排除要綱第４条第１項各号に該当する者を下請負人等としません。また、神戸市への照会の結果又は神戸市からの通報により、下請負人等が暴力団等排除要綱第４条第１項各号のいずれかに該当することが明らかになった場合には、元請負人、及び当該下請負人等を下請負人等とする者の責任において当該下請負人等との契約を速やかに解除します。また、貴公社の求める期限内に当該下請負人等との契約の解除ができない場合には、契約解除や損害賠償請求等、貴公社が行う一切の措置について異議の申し立てを行いません。
A31: (4) | B31: 下請負人等との契約を含む標記の工事請負契約に係る一連の手続きにおいて、事務の連絡を行う者その他の関係者等に関して貴公社が神戸市照会の必要性を認めた場合、関係者に対して本誓約書の趣旨を説明の上で関係者より誓約書及び役員等名簿の提出を求め、速やかに貴公社に対して提供を行います。
A34: (5) | B34: 暴力団等排除要綱第４条第１項各号のいずれかに該当することが明らかになった場合、神戸市からの回答等の内容について、外郭団体等を含む貴公社関係部局が情報を共有すること、並びに暴力団等排除要綱に従い措置対象者名等について公表を行うことについて承諾します。
A38: ２ 適正な労働条件の確保に関すること
A39: (1) | B39: 標記の工事請負契約に関わっている労働者に対し、別表に掲げる労働関係法令を遵守し ます。
A40: (2) | B40: 標記の工事請負契約にかかる業務の一部を他の者に行わせようとする場合にあっては、別表に掲げる労働関係法令の遵守を誓約した者を受託者とします（一次及び二次下請以降すべての下請負人を含む。）。また、施工体制台帳は下請負人等と協力し元請負人が責任をもって資料等を確認の上作成し、下請契約締結後速やかに提出するほか、貴公社の指導により求められた資料は指定された期限までに貴公社に提出するなど神戸市の「建設工事における社会保険未加入対策に係る事務処理要領（平成31年3月20日行財契第1423号通知）」を遵守します。
A42: (3) | B42: 受託者が労働関係法令を遵守していないと認めるときは、当該受託者に対し、労働者の適正な労働条件を確保するために必要な措置を講じます。
A43: (4) | B43: 標記の工事請負契約に基づく業務において､最低賃金法第4条第1項の規定に違反したとして、検察官に送致されたとき、また、元請及び下請負人（二次以下を含む）が社会保険（健康保険、厚生年金保険、雇用保険）に加入していないと貴公社が認めたときに貴公社が行う本契約の解除、違約金の請求、指名停止その他貴公社が行う一切の措置について異議を唱えません。
A48: 別表（誓約事項２(1)(2)関係）
A49: 労働関係法令
A50: (1)労働基準法（昭和22年法律第49号）
A51: (2)労働組合法（昭和24年法律第174号）
A52: (3)最低賃金法（昭和34年法律第137号）
A53: (4)労働安全衛生法（昭和47年法律第57号）
A54: (5)雇用の分野における男女の均等な機会及び待遇の確保等に関する法律（昭和47年法律第113号）
A55: (6)労働者派遣事業の適正な運営の確保及び派遣労働者の保護等に関する法律（昭和60年法律第88号）
A56: (7)短時間労働者の雇用管理の改善等に関する法律（平成5年法律第76号）
A57: (8)労働契約法（平成19年法律第128号）
A58: (9)健康保険法(大正11年法律第70号)
A59: (10)厚生年金保険法(昭和29年法律第115号)
A60: (11)雇用保険法(昭和49年法律第116号)
A61: (12)労働保険の保険料の徴収等に関する法律(昭和44年法律第84号)
... 1 more rows

Sheet 6
I2: 公共工事前払金交付申請書
AA6: 令和 | AE6: 年 | AH6: 月 | AK6: 日 | AM6: 前払金交付の申請する年月日を入力してください。（印刷後の手書き可）
C8: =CONCATENATE(一括入力シート!B50,"",一括入力シート!D50) -> 一般財団法人 神戸住環境整備公社
AN9: 請負金額が100万円以上の工事は、契約当初に前払い金の請求ができます。※前払い金の請求（中間前払金は除く）は、契約締結日から1ヶ月以内にしてください。
C10: =一括入力シート!A51 -> 理事長 | F10: =一括入力シート!B51 -> 碓永信幸 | N10: 宛 | AN10: さらに、請負金額が100万円以上かつ工期が３ヶ月以上の工事は、工事・出来高が半分以上を超えれば、中間前払い金の請求ができます。
AN11: ただし、先に部分払いをしていると、中間前払い金の請求ができません。また、中間前払い金の請求を行うと、それ以降は部分払いの請求ができません。
AN12: 以上は原則であって、設計書に条件がある場合等はこの限りではありません。
K14: 申 請 者 | O14: 住 所 | R14: =一括入力シート!B65 -> 0
O16: 商号 | R16: =一括入力シート!B66 -> 0
O18: 氏 名 | R18: =一括入力シート!B67 -> 0 | AM18: 一括入力シートの連絡先と異なる場合は直接入力してください。
O20: 連絡先 | R20: =一括入力シート!B70 -> 0 | X20: - | Z20: =一括入力シート!C70 -> 0 | AD20: - | AF20: =一括入力シート!D70 -> 0
G23: 下記公共工事請負契約に対する前払金を交付してくださるよう，
F25: 別紙の保証契約証書正本1通を添えて申請します。
A27: 記
B30: 工事名 | M30: =一括入力シート!B9 -> 0
B32: 契約年月日 | M32: 令和 | O32: =一括入力シート!B17 -> 0 | Q32: 年 | S32: =一括入力シート!C17 -> 0 | V32: 月 | X32: =一括入力シート!D17 -> 0 | Z32: 日
B34: 完成期限 | M34: 令和 | O34: =一括入力シート!B30 -> 0 | Q34: 年 | S34: =一括入力シート!C30 -> 0 | V34: 月 | X34: =一括入力シート!D30 -> 0 | Z34: 日
B36: 請負金額 | M36: =一括入力シート!B45 ->  | AJ36: 円
B38: 前払金額 | M38: =IF(M36="","",ROUNDDOWN(M36*0.4,-4)) ->  | AJ38: 円
B40: 前払保証期限 | M40: 令和 | O40: =IF(O34="","",O34) -> 0 | Q40: 年 | S40: =IF(S34="","",S34) -> 0 | V40: 月 | X40: =IF(X34="","",X34) -> 0 | Z40: 日
B42: 請負人 | M42: =R16 -> 0
M44: =R18 -> 0
P46: 工事担当課 | Q46: 課長 | T46: 係長 | W46: 担当 | AC46: 総務課 | AD46: 課長 | AG46: 係長 | AJ46: 担当
I51: 公共工事前払金交付通知書
AA55: 令和 | AE55: 年 | AH55: 月 | AK55: 日 | AM55: 年月日は空欄のままとしてください。
D58: 工事担当課長宛
X64: 総務課長
F68: 下記公共工事請負契約に対する前払金を交付するので通知します。
G71: ついては，支出伝票作成のうえ，至急総務課まで提出してください。
A75: 記
B78: 工事名 | M78: =IF(M30="","",M30) -> 0
B80: 契約年月日 | M80: 令和 | O80: =IF(O32="","",O32) -> 0 | Q80: 年 | S80: =IF(S32="","",S32) -> 0 | V80: 月 | X80: =IF(X32="","",X32) -> 0 | Z80: 日
B82: 完成期限 | M82: 令和 | O82: =IF(O34="","",O34) -> 0 | Q82: 年 | S82: =IF(S34="","",S34) -> 0 | V82: 月 | X82: =IF(X34="","",X34) -> 0 | Z82: 日
B84: 請負金額 | M84: =M36 ->  | AJ84: 円 | AM84: 1ページ目の金額が自動入力されます。
B86: 前払金額 | M86: =IF(M38="","",M38) ->  | AJ86: 円 | AM86: 1ページ目の金額が自動入力されます。
B88: 前払保証期限 | M88: 令和 | O88: =IF(O82="","",O82) -> 0 | Q88: 年 | S88: =IF(S82="","",S82) -> 0 | V88: 月 | X88: =IF(X82="","",X82) -> 0 | Z88: 日
B90: 請負人 | M90: =M42 -> 0
M92: =M44 -> 0
M98: 前払金請求書
Z105: 令和 | AB105: =AC6 -> 0 | AC105: 年 | AD105: =AF6 -> 0 | AF105: 月 | AI105: 日 | AM105: 年月日は空欄のままとしてください。
B106: =CONCATENATE(一括入力シート!B50,"",一括入力シート!D50) -> 一般財団法人 神戸住環境整備公社
B108: =一括入力シート!A51 -> 理事長 | E108: =一括入力シート!B51 -> 碓永信幸 | M108: 宛
U109: =IF(R14="","",R14) -> 0
P113: 請 求 者 | U113: =IF(M42="","",M42&CHAR(10)&M44) -> 0 0
P116: 登録番号 | U116: =IF(一括入力シート!B68="無","登録なし",一括入力シート!C68&一括入力シート!D68) -> T
C118: 下記のとおり前払金を請求申し上げます。
B121: \ | E121: =IF(M38="","",M38) -> 
D125: 工事名 | H125: =IF(M30="","",M30) -> 0
D131: 振込先銀行 | M131: 預 金 | P131: 指定口座番号 | X131: 指 定 預 金 口 座 名 義
M132: 種 別
B133: 金融機関コード | D133: =一括入力シート!B90 -> 0 | G133: 支店番号 | I133: =一括入力シート!B92 -> 0 | M133: =一括入力シート!B94 -> 0 | P133: =一括入力シート!B95 -> 0 | X133: フリガナ | AA133: =一括入力シート!B97 -> 0
B134: =一括入力シート!B89 -> 0 | K134: =一括入力シート!E89 -> 銀行 | X134: =一括入力シート!B98 -> 0 | AM134: 一括入力シートの振込先と異なる場合は手入力してください。（消去して印刷後手書きでも可）
B135: =一括入力シート!B91 -> 0 | K135: 支店 | M135: =一括入力シート!E94 -> 0
C137: ＊ | E137: 1． | F137: 貴公社の口座振替手続き完了をもって当方は受領したものと認め，あらためて領収
F138: 証は発行いたしません。
E139: 2． | F139: 上記について万一事故が生じた場合に当方において一切の責任を負い貴公社にはご
F140: 迷惑をおかけしません。
... 1 more rows

Sheet 7
H2: 工事中間前払金交付申請書
Z6: 令和 | AD6: 年 | AG6: 月 | AJ6: 日 | AL6: 中間前払金交付の申請する年月日を入力してください。（印刷後の手書き可）
C8: =CONCATENATE(一括入力シート!B50," ",一括入力シート!D50) -> 一般財団法人 神戸住環境整備公社
C10: 理事長 | G10: =一括入力シート!B51 -> 碓永信幸 | N10: 宛
J14: 申 請 者 | N14: 住 所 | Q14: =一括入力シート!B65 -> 0
N16: 商号 | Q16: =一括入力シート!B66 -> 0
N18: 氏 名 | Q18: =一括入力シート!B67 -> 0 | AL18: 一括入力シートの連絡先と異なる場合は直接入力してください。
N20: 連絡先 | Q20: =一括入力シート!B70 -> 0 | W20: - | Y20: =一括入力シート!C70 -> 0 | AC20: - | AE20: =一括入力シート!D70 -> 0
G23: 下記公共工事請負契約に対する中間前払金を交付してくださるよう，
F25: 別紙の保証契約証書正本1通を添えて申請します。
A27: 記
B30: 工事名 | J30: =一括入力シート!B9 -> 0
B32: 契約年月日 | J32: 令和 | N32: =一括入力シート!B17 -> 0 | R32: 年 | V32: =一括入力シート!C17 -> 0 | Z32: 月 | AC32: =一括入力シート!D17 -> 0 | AH32: 日
B34: 完成期限 | J34: 令和 | N34: =一括入力シート!B30 -> 0 | R34: 年 | V34: =一括入力シート!C30 -> 0 | Z34: 月 | AC34: =一括入力シート!D30 -> 0 | AH34: 日
B36: 請負金額 | J36: =一括入力シート!B45 ->  | AH36: 円
B38: 中間前払金額 | J38: =IF(J36="","",ROUNDDOWN(J36*0.2,-4)) ->  | AH38: 円
B40: 前払保証期限 | J40: 令和 | N40: =N34 -> 0 | R40: 年 | V40: =V34 -> 0 | Z40: 月 | AC40: =AC34 -> 0 | AH40: 日
B42: 請負人 | J42: =Q16 -> 0
J44: =Q18 -> 0
O46: 工事担当課 | P46: 課長 | S46: 係長 | V46: 担当 | AB46: 総務課 | AC46: 課長 | AF46: 係長 | AI46: 担当
H51: 工事中間前払金交付通知書
Z55: 令和 | AD55: 年 | AG55: 月 | AJ55: 日 | AL55: 年月日は空欄のままとしてください。
D58: 工事担当課長宛
W64: 総務課長
F68: 下記公共工事請負契約に対する中間前払金を交付するので通知します。
G71: ついては，支出伝票作成のうえ，至急総務課まで提出してください。
A75: 記
B78: 工事名 | J78: =IF(J30="","",J30) -> 0
B80: 契約年月日 | J80: 令和 | N80: =N32 -> 0 | R80: 年 | V80: =V32 -> 0 | Z80: 月 | AC80: =AC32 -> 0 | AH80: 日
B82: 完成期限 | J82: 令和 | N82: =N34 -> 0 | R82: 年 | V82: =V34 -> 0 | Z82: 月 | AC82: =AC34 -> 0 | AH82: 日
B84: 請負金額 | J84: =IF(J36="","",J36) ->  | AI84: 円 | AL84: 1ページ目の金額が自動入力されます。
B86: 中間前払金額 | J86: =IF(J38="","",J38) ->  | AI86: 円 | AL86: 1ページ目の金額が自動入力されます。
B88: 前払保証期限 | J88: 令和 | N88: =N40 -> 0 | R88: 年 | V88: =V40 -> 0 | Z88: 月 | AC88: =AC40 -> 0 | AH88: 日
B90: 請負人 | J90: =J42 -> 0
J92: =J44 -> 0
B97: №
L98: 中間前払金請求書
C105: 令和 | F105: 年 | H105: 月 | K105: 日 | AL105: 年月日は空欄のままとしてください。
C108: =CONCATENATE(一括入力シート!B50," ",一括入力シート!D50) -> 一般財団法人 神戸住環境整備公社
C110: 理事長 | G110: =一括入力シート!B51 -> 碓永信幸 | N110: 宛
S111: =IF(Q14="","",Q14) -> 0
O113: 請 求 者 | S113: =IF(J90="","",J90&CHAR(10)&J92) -> 0 0
O116: 登録番号 | S116: =IF(一括入力シート!B68="無","登録なし",一括入力シート!C68&一括入力シート!D68) -> T
T117: ※この件に関する問い合わせ先
S118: ℡ | U118: =一括入力シート!B77 -> 0 | X118: - | Y118: =一括入力シート!C77 -> 0 | AD118: - | AE118: =一括入力シート!D77 -> 0
C119: 下記のとおり中間前払金を請求申し上げます。 | X119: 担当者氏名 | AB119: =一括入力シート!B75 -> 0
E121: \ | G121: =(J38) -> 
D125: 工事名 | G125: =IF(J30="","",J30) -> 0
B131: 振込先銀行 | M131: 預 金 | P131: 指定銀行 | X131: 指 定 預 金 口 座 名 義 | AL131: 一括入力シートの振込先と異なる場合は手入力してください。（消去して印刷後手書きでも可）
M132: 種 別 | P132: 口座番号
B133: 金融機関コード | D133: =一括入力シート!B90 -> 0 | H133: 支店番号 | J133: =一括入力シート!B92 -> 0 | M133: =一括入力シート!B94 -> 0 | P133: =一括入力シート!B95 -> 0 | X133: フリガナ | AA133: =一括入力シート!B97 -> 0
B134: =一括入力シート!B89 -> 0 | J134: =一括入力シート!E89 -> 銀行 | X134: =一括入力シート!B98 -> 0
B135: =一括入力シート!B91 -> 0 | J135: 支店 | M135: =一括入力シート!E94 -> 0
C137: ＊ | E137: 1． | F137: 貴公社の口座振替手続き完了をもって当方は受領したものと認め，あらためて領収
F138: 証は発行いたしません。
E139: ２． | F139: 上記について万一事故が生じた場合に当方において一切の責任を負い貴公社にはご
F140: 迷惑をおかけしません。
... 1 more rows

Sheet 8
A1: 中間前金払認定請求書 兼 中間前金払認定調書 （監督担当課保存用）
I5: =CONCATENATE("令和",'7'!AB6,"年",'7'!AE6,"月",'7'!AH6,"日") -> 令和 年月日 | O5: シート７より自動で入力されます。（印刷後の手書き可）
B7: 一般財団法人神戸住環境整備公社
B8: 代 表 者 理 事 長 碓 永 信 幸 様 宛
E10: 請負人 | G10: 住所 | H10: =一括入力シート!B65 -> 0
G12: 氏名 | H12: =一括入力シート!B66&CHAR(10)&一括入力シート!B67 -> 
G14: 連絡先 | H14: =一括入力シート!B70 -> 0 | J14: - | K14: =一括入力シート!C70 -> 0 | L14: - | M14: =一括入力シート!D70 -> 0
C16: 下記工事について、中間前金払に係る認定を請求します。
C18: 工事名 | G18: =一括入力シート!B9 -> 0
C19: 契約年月日 | G19: 令和 | H19: =一括入力シート!B17 -> 0 | I19: =CONCATENATE(,"年") -> 年 | J19: =一括入力シート!C17 -> 0 | K19: 月 | L19: =一括入力シート!D17 -> 0 | M19: 日
C20: 工期 | G20: 自 令和 | H20: =一括入力シート!B21 -> 0 | I20: 年 | J20: =一括入力シート!C21 -> 0 | K20: 月 | L20: =一括入力シート!D21 -> 0 | M20: 日
G21: 至 令和 | H21: =一括入力シート!B30 -> 0 | I21: 年 | J21: =一括入力シート!C30 -> 0 | K21: 月 | L21: =一括入力シート!D30 -> 0 | M21: 日
C22: 請負代金額 | G22: =一括入力シート!B45 ->  | M22: 円
B23: 今年度の出来高予定額 （＊） | M23: 円
C25: （＊） | D25: 工事請負契約書の中に各会計年度の出来高予定額が記載されている場合のみ、記入してください。
D26: 今年度当初に出来高超過額を支払った場合は、その額を控除してください。
E28: 添付資料 ： 工事履行報告書
D34: 上記の工事について、その進捗を調査したところ、中間前金払をする
C35: ことができる要件を満たしていることを認定する。
J37: 一般財団法人神戸住環境整備公社
J38: 代 表 者 理 事 長 碓 永 信 幸
J39: =CONCATENATE(IF((一括入力シート!$D$53="建築"),"神 住 公 施 建","神 住 公 施 設")) -> 神 住 公 施 設 | M39: 号
L40: （押印省略）
A42: 中間前金払認定請求書 兼 中間前金払認定調書 （請負人控用）
K46: =CONCATENATE("令和 ",'7'!AB6," 年 ",'7'!AE6," 月 ",'7'!AH6," 日") -> 令和 年 月 日
B48: 一般財団法人神戸住環境整備公社
B49: 代 表 者 理 事 長 碓 永 信 幸 宛
E51: 請負人 | G51: 住所 | H51: =H10 -> 0
G53: 氏名 | H53: =H12 -> 
G55: 連絡先 | H55: =H14 -> 0 | J55: - | K55: =K14 -> 0 | L55: - | M55: =M14 -> 0
C57: 下記工事について、中間前金払に係る認定を請求します。
C59: 工事名 | G59: =一括入力シート!B9 -> 0
C60: 契約年月日 | G60: 令和 | H60: =H19 -> 0 | I60: =CONCATENATE(,"年") -> 年 | J60: =J19 -> 0 | K60: 月 | L60: =L19 -> 0 | M60: 日
C61: 工期 | G61: 自 令和 | H61: =H20 -> 0 | I61: 年 | J61: =J20 -> 0 | K61: 月 | L61: =L20 -> 0 | M61: 日
G62: 至 令和 | H62: =H21 -> 0 | I62: 年 | J62: =J21 -> 0 | K62: 月 | L62: =L21 -> 0 | M62: 日
C63: 請負代金額 | G63: =G22 ->  | M63: 円
B64: 今年度の出来高予定額 （＊） | M64: 円
C66: （＊） | D66: 工事請負契約書の中に各会計年度の出来高予定額が記載されている場合のみ、記入してください。
D67: 今年度当初に出来高超過額を支払った場合は、その額を控除してください。
E69: 添付資料 ： 工事履行報告書
C74: 上記の工事について、その進捗を調査したところ、中間前金払をすることができる要件を満たしていることを認定する。
B77: =CONCATENATE("令和 ",'7'!AB6," 年 ",'7'!AE6," 月 ",'7'!AH6," 日") -> 令和 年 月 日
J78: 一般財団法人神戸住環境整備公社
J79: 代 表 者 理 事 長 碓 永 信 幸
J80: =CONCATENATE(IF((一括入力シート!$D$53="建築"),"神 住 公 施 建","神 住 公 施 設")) -> 神 住 公 施 設 | M80: 号
L81: （押印省略）
A83: 中間前金払認定請求書 兼 中間前金払認定調書 （契約担当課提出用）
K87: =CONCATENATE("令和 ",'7'!AB6,"年 ",'7'!AE6,"月 ",'7'!AH6,"日") -> 令和 年 月 日
B89: 一般財団法人神戸住環境整備公社
B90: 代 表 者 理 事 長 碓 永 信 幸 宛
E92: 請負人 | G92: 住所 | H92: =H10 -> 0
G94: 氏名 | H94: =H12 -> 
G96: 連絡先 | H96: =H14 -> 0 | J96: - | K96: =K14 -> 0 | L96: - | M96: =M14 -> 0
C98: 下記工事について、中間前金払に係る認定を請求します。
C100: 工事名 | G100: =一括入力シート!B9 -> 0
C101: 契約年月日 | G101: 令和 | H101: =H19 -> 0 | I101: =CONCATENATE(,"年") -> 年 | J101: =J19 -> 0 | K101: 月 | L101: =L19 -> 0 | M101: 日
C102: 工期 | G102: 自 令和 | H102: =H20 -> 0 | I102: 年 | J102: =J20 -> 0 | K102: 月 | L102: =L20 -> 0 | M102: 日
G103: 至 令和 | H103: =H21 -> 0 | I103: 年 | J103: =J21 -> 0 | K103: 月 | L103: =L21 -> 0 | M103: 日
C104: 請負代金額 | G104: =G22 ->  | M104: 円
B105: 今年度の出来高予定額 （＊） | M105: 円
C107: （＊） | D107: 工事請負契約書の中に各会計年度の出来高予定額が記載されている場合のみ、記入してください。
D108: 今年度当初に出来高超過額を支払った場合は、その額を控除してください。
E110: 添付資料 ： 工事履行報告書
D115: 上記の工事について、その進捗を調査したところ、中間前金払をする
C116: ことができる要件を満たしていることを認定する。
B118: =CONCATENATE("令和 ",'7'!AB6," 年 ",'7'!AE6," 月 ",'7'!AH6," 日") -> 令和 年 月 日
J119: 一般財団法人神戸住環境整備公社
J120: 代 表 者 理 事 長 碓 永 信 幸
J121: =CONCATENATE(IF((一括入力シート!$D$53="建築"),"神 住 公 施 建","神 住 公 施 設")) -> 神 住 公 施 設 | M121: 号
L122: （押印省略）
... 1 more rows

Sheet 9
A1: 工 事 履 行 報 告 書
B3: 工事名 | G3: =一括入力シート!B9 -> 0
B4: 工期 | G4: 自 令和 | I4: =一括入力シート!B17 -> 0 | L4: 年 | N4: =一括入力シート!C17 -> 0 | P4: 月 | R4: =一括入力シート!D17 -> 0 | T4: 日
G5: 至 令和 | I5: =一括入力シート!B30 -> 0 | L5: 年 | N5: =一括入力シート!C30 -> 0 | P5: 月 | R5: =一括入力シート!D30 -> 0 | T5: 日
B6: 月別 | G6: 予定工程 (％) | J6: 実施工程 (％) | N6: 予定工程と実施工程の差（％） | R6: 備 考
G7: （ ）は工程変更後
C8: 年 | E8: 月
C10: 年 | E10: 月
C12: 年 | E12: 月
C14: 年 | E14: 月
C16: 年 | E16: 月
C18: 年 | E18: 月
C20: 年 | E20: 月
C22: 年 | E22: 月
C24: 年 | E24: 月
C26: 年 | E26: 月
C28: 年 | E28: 月
C30: 年 | E30: 月
A33: （ 記事欄 ）
B44: （注） | D44: 1. | E44: 報告は，月報を標準とする。
D45: 2. | E45: 予定工程は，初回報告時に完成までの予定出来高を記入する。
D46: 3. | E46: 実施工程は，当該報告月までの出来高累計を記入する。
... 1 more rows

Sheet 10-1
T5: 請求書 | BQ5: ※請求書は請求者が有する任意の様式でも提出可能です。
AM7: 令和 | AS7: 年 | BA7: 月 | BI7: 日 | BQ7: 提出日を直接入力してください。（印刷後の手書き可）(工期内が望ましい）
G9: =一括入力シート!B50 -> 一般財団法人 | M9: 神戸住環境整備公社 | AB9: 宛
J11: 理事長 | O11: 碓永 信幸
AA14: 請求者 | AF14: 住所 | AJ14: =一括入力シート!B65 -> 0
AF16: 氏 名 | AJ16: =一括入力シート!B66&CHAR(10)&一括入力シート!B67 -> 
AF18: 電話番号 | AK18: （ | AL18: =一括入力シート!B70 -> 0 | AP18: ） | AQ18: =一括入力シート!C70 -> 0 | AW18: － | AZ18: =一括入力シート!D70 -> 0
AF19: 登録番号 | AJ19: =IF(一括入力シート!B68="無","登録なし",一括入力シート!C68&一括入力シート!D68) -> T
J21: 下記のとおり請求申し上げます。
Q23: 十億 | Z23: 百万 | AI23: 千 | AR23: 円
G24: 請求額 | O24: =BV29 ->  | Q24: =BW29 ->  | S24: =BX29 ->  | V24: =BY29 ->  | Y24: =BZ29 ->  | AB24: =CA29 ->  | AE24: =CB29 ->  | AH24: =CC29 ->  | AK24: =CD29 ->  | AN24: =IF(CE29="\",0,CE29) ->  | AQ24: =CF29 -> 
F27: 工事名 | L27: =一括入力シート!B9 -> 0
F28: 取引年月日 | L28: 令和 年 月 日 | BR28: ←工事完成検査日を手入力してください。
BU29: =AE33 ->  | BV29: =IF(LEN($BU29)=10,"\",IF(LEN($BU29)>=11,LEFT(RIGHT($BU29,11),1),"")) ->  | BW29: =IF(LEN($BU29)=9,"\",IF(LEN($BU29)>=10,LEFT(RIGHT($BU29,10),1),"")) ->  | BX29: =IF(LEN($BU29)=8,"\",IF(LEN($BU29)>=9,LEFT(RIGHT($BU29,9),1),"")) ->  | BY29: =IF(LEN($BU29)=7,"\",IF(LEN($BU29)>=8,LEFT(RIGHT($BU29,8),1),"")) ->  | BZ29: =IF(LEN($BU29)=6,"\",IF(LEN($BU29)>=7,LEFT(RIGHT($BU29,7),1),"")) ->  | CA29: =IF(LEN($BU29)=5,"\",IF(LEN($BU29)>=6,LEFT(RIGHT($BU29,6),1),"")) ->  | CB29: =IF(LEN($BU29)=4,"\",IF(LEN($BU29)>=5,LEFT(RIGHT($BU29,5),1),"")) ->  | CC29: =IF(LEN($BU29)=3,"\",IF(LEN($BU29)>=4,LEFT(RIGHT($BU29,4),1),"")) ->  | CD29: =IF(LEN($BU29)=2,"\",IF(LEN($BU29)>=3,LEFT(RIGHT($BU29,3),1),"")) ->  | CE29: =IF(LEN($BU29)=1,"\",IF(LEN($BU29)>=2,LEFT(RIGHT($BU29,2),1),"")) ->  | CF29: =IF(LEN(BU29)>=1,LEFT(RIGHT(BU29,1),1),"") -> 
D30: Ａ 請負金額（税込）（10％対象） | AE30: =一括入力シート!B45 ->  | BG30: 円
D31: Ｂ 消費税(10％対象) | AE31: =AE30-AE30/1.1 ->  | BG31: 円
D32: Ｃ 前払金（+中間前払がある場合はそれも加算）(税込) | BG32: 円
D33: D 請求金額（Ａ - C） | AE33: =AE30-AE32 ->  | BG33: 円
H35: なお、請求代金は、下記の預金口座に口座振込の方法により決済してください。
G36: ただし、下記の事項を承認いたします。
E38: 振込先金融機関 | R38: 預金種別 | W38: =一括入力シート!B94 -> 0 | AF38: （ | AG38: =一括入力シート!E94 -> 0 | AN38: ） | AO38: 口座番号 | AT38: =一括入力シート!B95 -> 0 | BQ38: 一括入力シートの振込先と異なる場合は手入力してください。（消去して印刷後手書きでも可）
C39: =一括入力シート!B89 -> 0 | I39: =一括入力シート!E89 -> 銀行 | K39: =一括入力シート!B91 -> 0 | O39: 支店 | R39: 指定預金 口座名義 | W39: フリガナ | AC39: =一括入力シート!B97 -> 0
W40: =一括入力シート!B98 -> 0
C41: 金融機関コード | J41: =一括入力シート!B90 -> 0
C42: 支 店 コ ー ド | J42: =一括入力シート!B92 -> 0
H44: 1 | J44: 貴公社の口座振込手続き完了をもって当方は受領したものと認め、あらためて領収証は
I45: 発行いたしません。
H46: 2 | J46: 上記について万一事故が生じた場合は、当方において一切の責任を負い貴公社にはご迷
I47: 惑をおかけいたしません。
H48: 3 | J48: 上記の請求代金に対し、振込手数料を必要とする場合は、当方が受領する金額から差引
I49: きされても異議ありません。
H50: 4 | J50: 当公社の口座振込については、振込先銀行が三井住友銀行の本・支店に限り、振込手数
I51: 料は当公社において負担します。
... 1 more rows

Sheet 10-2
T5: 請求書 | BQ5: ※請求書は請求者が有する任意の様式でも提出可能です。
AM7: 令和 | AS7: 年 | BA7: 月 | BI7: 日 | BQ7: 提出日を直接入力してください。（印刷後の手書き可）(工期内が望ましい）
G9: =一括入力シート!B50 -> 一般財団法人 | M9: 神戸住環境整備公社 | AB9: 宛
J11: 理事長 | O11: 碓永 信幸
AA14: 請求者 | AF14: 住所 | AJ14: =一括入力シート!B65 -> 0
AF16: 氏 名 | AJ16: =一括入力シート!B66&CHAR(10)&一括入力シート!B67 -> 
AF18: 電話番号 | AK18: （ | AL18: =一括入力シート!B70 -> 0 | AP18: ） | AQ18: =一括入力シート!C70 -> 0 | AW18: － | AZ18: =一括入力シート!D70 -> 0
AF19: 登録番号 | AJ19: =IF(一括入力シート!B68="無","登録なし",一括入力シート!C68&一括入力シート!D68) -> T
J21: 下記のとおり請求申し上げます。
Q23: 十億 | Z23: 百万 | AI23: 千 | AR23: 円
G24: 請求額 | O24: =BV29 ->  | Q24: =BW29 ->  | S24: =BX29 ->  | V24: =BY29 ->  | Y24: =BZ29 ->  | AB24: =CA29 ->  | AE24: =CB29 ->  | AH24: =CC29 ->  | AK24: =CD29 ->  | AN24: =IF(CE29="\",0,CE29) -> 0 | AQ24: =CF29 -> 0
F27: 工事名 | L27: =一括入力シート!B9&"に伴う契約保証金の返還" -> に伴う契約保証金の返還
F28: 取引年月日 | L28: 令和 年 月 日 | BR28: ←工事完成検査日を手入力してください。
BU29: =AE33 -> 0 | BV29: =IF(LEN($BU29)=10,"\",IF(LEN($BU29)>=11,LEFT(RIGHT($BU29,11),1),"")) ->  | BW29: =IF(LEN($BU29)=9,"\",IF(LEN($BU29)>=10,LEFT(RIGHT($BU29,10),1),"")) ->  | BX29: =IF(LEN($BU29)=8,"\",IF(LEN($BU29)>=9,LEFT(RIGHT($BU29,9),1),"")) ->  | BY29: =IF(LEN($BU29)=7,"\",IF(LEN($BU29)>=8,LEFT(RIGHT($BU29,8),1),"")) ->  | BZ29: =IF(LEN($BU29)=6,"\",IF(LEN($BU29)>=7,LEFT(RIGHT($BU29,7),1),"")) ->  | CA29: =IF(LEN($BU29)=5,"\",IF(LEN($BU29)>=6,LEFT(RIGHT($BU29,6),1),"")) ->  | CB29: =IF(LEN($BU29)=4,"\",IF(LEN($BU29)>=5,LEFT(RIGHT($BU29,5),1),"")) ->  | CC29: =IF(LEN($BU29)=3,"\",IF(LEN($BU29)>=4,LEFT(RIGHT($BU29,4),1),"")) ->  | CD29: =IF(LEN($BU29)=2,"\",IF(LEN($BU29)>=3,LEFT(RIGHT($BU29,3),1),"")) ->  | CE29: =IF(LEN($BU29)=1,"\",IF(LEN($BU29)>=2,LEFT(RIGHT($BU29,2),1),"")) -> \ | CF29: =IF(LEN(BU29)>=1,LEFT(RIGHT(BU29,1),1),"") -> 0
H35: なお、請求代金は、下記の預金口座に口座振込の方法により決済してください。
G36: ただし、下記の事項を承認いたします。
E38: 振込先金融機関 | R38: 預金種別 | W38: =一括入力シート!B94 -> 0 | AF38: （ | AG38: =一括入力シート!E94 -> 0 | AN38: ） | AO38: 口座番号 | AT38: =一括入力シート!B95 -> 0 | BQ38: 一括入力シートの振込先と異なる場合は手入力してください。（消去して印刷後手書きでも可）
C39: =一括入力シート!B89 -> 0 | I39: =一括入力シート!E89 -> 銀行 | K39: =一括入力シート!B91 -> 0 | O39: 支店 | R39: 指定預金 口座名義 | W39: フリガナ | AC39: =一括入力シート!B97 -> 0
W40: =一括入力シート!B98 -> 0
C41: 金融機関コード | J41: =一括入力シート!B90 -> 0
C42: 支 店 コ ー ド | J42: =一括入力シート!B92 -> 0
H44: 1 | J44: 貴公社の口座振込手続き完了をもって当方は受領したものと認め、あらためて領収証は
I45: 発行いたしません。
H46: 2 | J46: 上記について万一事故が生じた場合は、当方において一切の責任を負い貴公社にはご迷
I47: 惑をおかけいたしません。
H48: 3 | J48: 上記の請求代金に対し、振込手数料を必要とする場合は、当方が受領する金額から差引
I49: きされても異議ありません。
H50: 4 | J50: 当公社の口座振込については、振込先銀行が三井住友銀行の本・支店に限り、振込手数
I51: 料は当公社において負担します。
... 1 more rows

Sheet 11-1
B3: ■ | D3: 工事・着手届 | X3: 該当する箇所について、□→■、■→□としてください。
B4: ■ | D4: 工事・工程表 | M4: ■ | N4: 当初 | P4: □ | Q4: 第 | S4: 回 | X4: 工事延期の場合は、 □→延期 工事・工程表 としてください。
A7: =CONCATENATE(一括入力シート!B50," ",一括入力シート!D50) -> 一般財団法人 神戸住環境整備公社 | X7: ２回目以降は数字を直接入力してください。(例.２回目なら 第 ２ 回 と入力)
A8: 理 事 長 宛
A10: 提出年月日 | D10: 令和 | F10: =IF(B3="■",一括入力シート!B21,IF(B4="■","",(IF(B5="■",一括入力シート!B21,"")))) -> 0 | H10: 年 | I10: =IF(B3="■",一括入力シート!C21,IF(B4="■","",(IF(B5="■",一括入力シート!C21,"")))) -> 0 | K10: 月 | L10: =IF(B3="■",一括入力シート!D21,IF(B4="■","",(IF(B5="■",一括入力シート!D21,"")))) -> 0 | N10: 日 | X10: 工期延期の場合は変更契約日の翌日、その日が休日の場合はその翌日。
A11: 請 負 人
A12: 住 所 | D12: =一括入力シート!B65 -> 0
A13: 氏 名 | D13: =一括入力シート!B66&" "&一括入力シート!B67 -> 
D14: 現場代理人名 | H14: =一括入力シート!B75 -> 0 | M14: 連絡先 | O14: =一括入力シート!B77 -> 0 | Q14: - | R14: =一括入力シート!C77 -> 0 | T14: - | U14: =一括入力シート!D77 -> 0 | X14: 一括入力シートの現場代理人連絡先と異なる場合は手入力してください。
A15: 工事名 | D15: =一括入力シート!B9 -> 0
A17: 工事場所 | D17: =一括入力シート!B11&IF(一括入力シート!B13="","",CHAR(10)&一括入力シート!B13) -> 
A19: 着手年月日 | D19: 令和 | F19: =一括入力シート!B21 -> 0 | H19: 年 | I19: =一括入力シート!C21 -> 0 | K19: 月 | L19: =一括入力シート!D21 -> 0 | N19: 日 | X19: 契約日の翌日又は着工指定日
A20: =IF(OR(B5="■",B5="一部"),"完成 年月日","完成（予定）年月日") -> 完成（予定）年月日 | D20: 令和 | H20: 年 | K20: 月 | N20: 日
A21: 月 日
A22: 工種区分 | X22: 〔記入例〕 ※外壁改修・屋上防水改修工事 契約締結日10/24 工事期間10/25～3/15
X23: 月 日 | AA23: 2021-10-25 | AD23: 11月 | AG23: 12月 | AJ23: 1月 | AM23: 2月 | AP23: 2021-03-15
X24: 工種区分
X25: 準備期間
X26: 仮設工
X27: 外壁改修工
X28: 屋上防水改修工
X29: 検査等
A36: （注） | B36: １．工事完成の場合は、着手年月日、工事工程表の記入は不要。 | T36: （甲）
B37: ２．工事工程表の工程は、工種区分ごとに実線で表すこと。
A39: 月 日 | X39: 以下、1ページに収まらない場合のみ入力してください。
A40: 工種区分
A66: （注） | B66: １．工事完成の場合は、着手年月日、工事工程表の記入は不要。 | U66: （乙）
B67: ２．工事工程表の工程は、工種区分ごとに実線で表すこと。
... 1 more rows

Sheet 11-2
B3: □ | D3: 工事・着手届 | X3: 該当する箇所について、□→■ としてください。
B4: ■ | D4: 工事・完成届 | M4: ■ | N4: 当初 | P4: □ | Q4: 第 | S4: 回 | X4: 一部完成届の場合は、 □→一部 工事・完成届 としてください。
B5: □ | D5: 工事・工程表
A7: =CONCATENATE(一括入力シート!B50," ",一括入力シート!D50) -> 一般財団法人 神戸住環境整備公社 | X7: ２回目以降は数字を直接入力してください。(例.２回目なら 第 ２ 回 と入力)
A8: 理 事 長 宛
A10: 提出年月日 | D10: 令和 | H10: 年 | K10: 月 | N10: 日 | X10: 完成期限日、期限日より前の日の完成の場合は、その日とする。
A11: 請 負 人 | X11: ※完成後は直ちに提出していただき、この届出の通知を受け14日以内に検査を実施します。
A12: 住 所 | D12: =一括入力シート!B65 -> 0 | X12: 14日以内の日数換算は，提出日は不算入としてその翌日が1日目となります。また，土日祝日を含みます。
A13: 氏 名 | D13: =一括入力シート!B66&" "&一括入力シート!B67 -> 
D14: 現場代理人名 | H14: =一括入力シート!B75 -> 0 | M14: 連絡先 | O14: =一括入力シート!B77 -> 0 | Q14: - | R14: =一括入力シート!C77 -> 0 | T14: - | U14: =一括入力シート!D77 -> 0 | X14: 一括入力シートの現場代理人連絡先と異なる場合は手入力してください。
A15: 工事名 | D15: =一括入力シート!B9 -> 0
A17: 工事場所 | D17: =一括入力シート!B11&IF(一括入力シート!B13="","",CHAR(10)&一括入力シート!B13) -> 
A19: 着手年月日 | D19: 令和 | H19: 年 | K19: 月 | N19: 日
A20: =IF(OR(B4="■",B4="一部"),"完成 年月日","完成（予定）年月日") -> 完成 年月日 | D20: 令和 | F20: =IF(B4="一部","",一括入力シート!B33) -> 0 | H20: 年 | I20: =IF(B4="一部","",一括入力シート!C33) -> 0 | K20: 月 | L20: =IF(B4="一部","",一括入力シート!D33) -> 0 | N20: 日
A21: 月 日
A22: 工種区分
A36: （注） | B36: １．工事完成の場合は、着手年月日、工事工程表の記入は不要。 | T36: （甲）
B37: ２．工事工程表の工程は、工種区分ごとに実線で表すこと。
I39: 合計 | O39: うち市内業者
D40: 一次下請金額（税込） | I40: 円 | O40: 円 | X40: 一次下請の合計金額及び、市内業者(契約書に記載されている所在地が神戸市内の業者)分の金額を入力してください。
D41: (注)この表は、工事完成届の場合に記載（工事契約金額が250 万円以下の場合
D42: 及び単価契約を除く)。
... 1 more rows

Sheet 12
I4: 工事内訳明細書
B6: =CONCATENATE(一括入力シート!B50," ",一括入力シート!D50) -> 一般財団法人 神戸住環境整備公社
B7: 理 事 長 宛
B9: 提出年月日 | I9: 令和 | J9: =一括入力シート!B21 -> 0 | K9: 年 | L9: =一括入力シート!C21 -> 0 | M9: 月 | N9: =一括入力シート!D21 -> 0 | O9: 日
B10: 請 負 人
B11: 住 所 | G11: =一括入力シート!B65 -> 0
B12: 氏 名 | G12: =一括入力シート!B66&" "&一括入力シート!B67 -> 
G13: 現場代理人氏名 | J13: =一括入力シート!B75 -> 0 | M13: 連絡先 | N13: =一括入力シート!B77 -> 0 | O13: - | P13: =一括入力シート!C77 -> 0 | R13: - | S13: =一括入力シート!D77 -> 0
B14: 工事名 | G14: =一括入力シート!B9 -> 0 | V14: （記入例）
B15: 工 | C15: 種 | I15: 品質寸法 | K15: 数量 | L15: 単 価 | N15: 金 額 | R15: 摘 要 | W15: 工 | X15: 種 | AD15: 品質寸法 | AF15: 数量 | AG15: 単 価 | AI15: 金 額 | AM15: 摘 要
D16: 種 | E16: 別 | Y16: 種 | Z16: 別
F17: 名 | H17: 称 | AA17: 名 | AC17: 称
Q18: 円 | Y18: ↓設計書の通り記入 | AI18: ↓監督員の指示を受けて記入
Q19: 円 | W19: 1 | Y19: 建築主体工事費 | AF19: １式 | AI19: 110000000
Q20: 円 | W20: 2 | Y20: 屋外付帯工事費 | AF20: １式 | AI20: 17000000
Q21: 円 | W21: 3 | Y21: 解体撤去工事費 | AF21: １式 | AI21: 3000000
Q22: 円 | W22: 4 | Y22: 共通仮設費 | AF22: １式 | AI22: 13000000
Q23: 円 | W23: 5 | Y23: 現場管理費 | AF23: １式 | AI23: 12000000
Q24: 円 | W24: 6 | Y24: 一般管理費等 | AF24: １式 | AI24: 21000000
Q25: 円
Q26: 円 | Y26: 合計 | AI26: 176000000
Q27: 円 | Y27: 消費税相当額 | AI27: 8800000
Q28: 円 | Y28: 工費合計 | AI28: 184800000
Q29: 円
Q30: 円
D31: 合計 | N31: =SUM(N18:P30) -> 0 | Q31: 円
D32: 消費税相当額 | I32: =CONCATENATE("消費税",一括入力シート!F38,"%") -> 消費税10% | N32: =N31*0.1 -> 0 | Q32: 円
D33: 工費合計 | N33: =SUM(N31:N32) -> 0 | Q33: 円
B36: 工事価格（税込）のうち、現場労働者に関する健康保険、 | Q36: 円 | S36: (甲) | U36: 内訳書には，健康保険，厚生年金保険及び雇用保険に係る法定福利費を明示するものとする。（令和3年4月1日更新 工事請負契約約款）
B38: 厚生年金保険及び雇用保険の法定の事業主負担額
B41: 工 | C41: 種 | I41: 品質寸法 | K41: 数量 | L41: 単 価 | N41: 金 額 | R41: 摘 要 | U41: 以下、1ページに収まらない場合のみ入力してください。
D42: 種 | E42: 別
F43: 名 | H43: 称
Q44: 円
Q45: 円
Q46: 円
Q47: 円
Q48: 円
Q49: 円
Q50: 円
Q51: 円
Q52: 円
Q53: 円
Q54: 円
Q55: 円
Q56: 円
Q57: 円
Q58: 円
Q59: 円
Q60: 円
Q61: 円
Q62: 円
Q63: 円
Q64: 円
Q65: 円
Q66: 円
Q67: 円
Q68: 円
Q69: 円
Q70: 円
Q71: 円
Q72: 円
B73: （注）単価欄については、協議により認定された単価によること。 | R73: （乙）
... 1 more rows

Sheet 13
AD3: 施 工 体 系 図（記入例）
L9: 発 注 者 名 | R9: =CONCATENATE("（一財）神戸住環境整備公社 ",一括入力シート!B53,"部 ",一括入力シート!D53,"課") -> （一財）神戸住環境整備公社 施設整備部 課 | AN9: 工 期 | AP9: 自 | AW9: =CONCATENATE("令和 ",一括入力シート!B21," 年 ",一括入力シート!C21," 月 ",一括入力シート!D21," 日") -> 令和 年 月 日 | CC9: A3サイズで印刷してください。
AP10: 至 | AW10: =CONCATENATE("令和 ",一括入力シート!B33," 年 ",一括入力シート!C33," 月 ",一括入力シート!D33," 日") -> 令和 年 月 日 | CC10: 下請契約を締結する場合には、下請金額にかかわらず施工体制台帳の作成等が義務付けられるています。
L11: 工 事 名 称 | R11: =一括入力シート!B9 -> 0
B13: 元請名 | F13: =一括入力シート!B66 -> 0 | N13: 工 事 | O13: 会社名・事業者ID | AE13: 工 事 | AF13: 会社名・事業者ID | AV13: 工 事 | AW13: 会社名・事業者ID | BM13: 工 事 | BN13: 会社名・事業者ID | CC13: 国土交通省「施工体制台帳、施工体系図等」作成例↓
O14: 代表者名 | AF14: 代表者名 | AW14: 代表者名 | BN14: 代表者名
O15: 許可番号 | AF15: 許可番号 | AW15: 許可番号 | BN15: 許可番号 | CC15: https://www.mlit.go.jp/totikensangyo/const/1_6_bt_000191.html
B16: 監督員名 | F16: =一括入力シート!B75 -> 0 | O16: 一般/特定の別 | X16: □ | Y16: 一般 | AA16: □ | AB16: 特定 | AF16: 一般/特定の別 | AO16: □ | AP16: 一般 | AR16: □ | AS16: 特定 | AW16: 一般/特定の別 | BF16: □ | BG16: 一般 | BI16: □ | BJ16: 特定 | BN16: 一般/特定の別 | BW16: □ | BX16: 一般 | BZ16: □ | CA16: 特定 | CC16: ↓記載内容と留意事項については近畿地方整備局HPを参照ください。
B17: 監理技術者名 主任技術者名 | O17: 安全衛生責任者 | AF17: 安全衛生責任者 | AW17: 安全衛生責任者 | BN17: 安全衛生責任者 | CC17: https://www.kkr.mlit.go.jp/kensei/kensetugyo/index.html
O18: 主任技術者 | AF18: 主任技術者 | AW18: 主任技術者 | BN18: 主任技術者 | CC18: 工期は手入力してください。
B19: 監理技術者補佐名 | Q19: 特定専門工事の該当 | X19: □ | Y19: 有 | Z19: ・ | AB19: □ | AC19: 無 | AH19: 特定専門工事の該当 | AO19: □ | AP19: 有 | AQ19: ・ | AS19: □ | AT19: 無 | AY19: 特定専門工事の該当 | BF19: □ | BG19: 有 | BH19: ・ | BJ19: □ | BK19: 無 | BP19: 特定専門工事の該当 | BW19: □ | BX19: 有 | BY19: ・ | CA19: □ | CB19: 無
B20: 専門技術者名 | O20: 専門技術者 | AF20: 専門技術者 | AW20: 専門技術者 | BN20: 専門技術者
B21: 担当工事内容 | S21: 担当工事内容 | AJ21: 担当工事内容 | BA21: 担当工事内容 | BR21: 担当工事内容
N22: 工期 | O22: R | Q22: 年 | S22: 月 | U22: 日 | V22: ～ | W22: R | Y22: 年 | AA22: 月 | AC22: 日 | AE22: 工期 | AF22: R | AH22: 年 | AJ22: 月 | AL22: 日 | AM22: ～ | AN22: R | AP22: 年 | AR22: 月 | AT22: 日 | AV22: 工期 | AW22: R | AY22: 年 | BA22: 月 | BC22: 日 | BD22: ～ | BE22: R | BG22: 年 | BI22: 月 | BK22: 日 | BM22: 工期 | BN22: R | BP22: 年 | BR22: 月 | BT22: 日 | BU22: ～ | BV22: R | BX22: 年 | BZ22: 月 | CB22: 日
B24: 専門技術者名
B25: 担当工事内容 | N25: 工 事 | O25: 会社名・事業者ID | AE25: 工 事 | AF25: 会社名・事業者ID | AV25: 工 事 | AW25: 会社名・事業者ID | BM25: 工 事 | BN25: 会社名・事業者ID
O26: 代表者名 | AF26: 代表者名 | AW26: 代表者名 | BN26: 代表者名
O27: 許可番号 | AF27: 許可番号 | AW27: 許可番号 | BN27: 許可番号
O28: 一般/特定の別 | X28: □ | Y28: 一般 | AA28: □ | AB28: 特定 | AF28: 一般/特定の別 | AO28: □ | AP28: 一般 | AR28: □ | AS28: 特定 | AW28: 一般/特定の別 | BF28: □ | BG28: 一般 | BI28: □ | BJ28: 特定 | BN28: 一般/特定の別 | BW28: □ | BX28: 一般 | BZ28: □ | CA28: 特定
O29: 安全衛生責任者 | AF29: 安全衛生責任者 | AW29: 安全衛生責任者 | BN29: 安全衛生責任者
O30: 主任技術者 | AF30: 主任技術者 | AW30: 主任技術者 | BN30: 主任技術者
Q31: 特定専門工事の該当 | X31: □ | Y31: 有 | Z31: ・ | AB31: □ | AC31: 無 | AH31: 特定専門工事の該当 | AO31: □ | AP31: 有 | AQ31: ・ | AS31: □ | AT31: 無 | AY31: 特定専門工事の該当 | BF31: □ | BG31: 有 | BH31: ・ | BJ31: □ | BK31: 無 | BP31: 特定専門工事の該当 | BW31: □ | BX31: 有 | BY31: ・ | CA31: □ | CB31: 無
O32: 専門技術者 | AF32: 専門技術者 | AW32: 専門技術者 | BN32: 専門技術者
S33: 担当工事内容 | AJ33: 担当工事内容 | BA33: 担当工事内容 | BR33: 担当工事内容
B34: 会長 | D34: 総括安全衛生責任者 | N34: 工期 | O34: R | Q34: 年 | S34: 月 | U34: 日 | V34: ～ | W34: R | Y34: 年 | AA34: 月 | AC34: 日 | AE34: 工期 | AF34: R | AH34: 年 | AJ34: 月 | AL34: 日 | AM34: ～ | AN34: R | AP34: 年 | AR34: 月 | AT34: 日 | AV34: 工期 | AW34: R | AY34: 年 | BA34: 月 | BC34: 日 | BD34: ～ | BE34: R | BG34: 年 | BI34: 月 | BK34: 日 | BM34: 工期 | BN34: R | BP34: 年 | BR34: 月 | BT34: 日 | BU34: ～ | BV34: R | BX34: 年 | BZ34: 月 | CB34: 日
N37: 工 事 | O37: 会社名・事業者ID | AE37: 工 事 | AF37: 会社名・事業者ID | AV37: 工 事 | AW37: 会社名・事業者ID | BM37: 工 事 | BN37: 会社名・事業者ID
O38: 代表者名 | AF38: 代表者名 | AW38: 代表者名 | BN38: 代表者名
O39: 許可番号 | AF39: 許可番号 | AW39: 許可番号 | BN39: 許可番号
E40: 元方安全衛生管理者 | O40: 一般/特定の別 | X40: □ | Y40: 一般 | AA40: □ | AB40: 特定 | AF40: 一般/特定の別 | AO40: □ | AP40: 一般 | AR40: □ | AS40: 特定 | AW40: 一般/特定の別 | BF40: □ | BG40: 一般 | BI40: □ | BJ40: 特定 | BN40: 一般/特定の別 | BW40: □ | BX40: 一般 | BZ40: □ | CA40: 特定
O41: 安全衛生責任者 | AF41: 安全衛生責任者 | AW41: 安全衛生責任者 | BN41: 安全衛生責任者
O42: 主任技術者 | AF42: 主任技術者 | AW42: 主任技術者 | BN42: 主任技術者
Q43: 特定専門工事の該当 | X43: □ | Y43: 有 | Z43: ・ | AB43: □ | AC43: 無 | AH43: 特定専門工事の該当 | AO43: □ | AP43: 有 | AQ43: ・ | AS43: □ | AT43: 無 | AY43: 特定専門工事の該当 | BF43: □ | BG43: 有 | BH43: ・ | BJ43: □ | BK43: 無 | BP43: 特定専門工事の該当 | BW43: □ | BX43: 有 | BY43: ・ | CA43: □ | CB43: 無
B44: 副会長 | O44: 専門技術者 | AF44: 専門技術者 | AW44: 専門技術者 | BN44: 専門技術者
S45: 担当工事内容 | AJ45: 担当工事内容 | BA45: 担当工事内容 | BR45: 担当工事内容
N46: 工期 | O46: R | Q46: 年 | S46: 月 | U46: 日 | V46: ～ | W46: R | Y46: 年 | AA46: 月 | AC46: 日 | AE46: 工期 | AF46: R | AH46: 年 | AJ46: 月 | AL46: 日 | AM46: ～ | AN46: R | AP46: 年 | AR46: 月 | AT46: 日 | AV46: 工期 | AW46: R | AY46: 年 | BA46: 月 | BC46: 日 | BD46: ～ | BE46: R | BG46: 年 | BI46: 月 | BK46: 日 | BM46: 工期 | BN46: R | BP46: 年 | BR46: 月 | BT46: 日 | BU46: ～ | BV46: R | BX46: 年 | BZ46: 月 | CB46: 日
N49: 工 事 | O49: 会社名・事業者ID | AE49: 工 事 | AF49: 会社名・事業者ID | AV49: 工 事 | AW49: 会社名・事業者ID | BM49: 工 事 | BN49: 会社名・事業者ID
O50: 代表者名 | AF50: 代表者名 | AW50: 代表者名 | BN50: 代表者名
O51: 許可番号 | AF51: 許可番号 | AW51: 許可番号 | BN51: 許可番号
O52: 一般/特定の別 | X52: □ | Y52: 一般 | AA52: □ | AB52: 特定 | AF52: 一般/特定の別 | AO52: □ | AP52: 一般 | AR52: □ | AS52: 特定 | AW52: 一般/特定の別 | BF52: □ | BG52: 一般 | BI52: □ | BJ52: 特定 | BN52: 一般/特定の別 | BW52: □ | BX52: 一般 | BZ52: □ | CA52: 特定
O53: 安全衛生責任者 | AF53: 安全衛生責任者 | AW53: 安全衛生責任者 | BN53: 安全衛生責任者
O54: 主任技術者 | AF54: 主任技術者 | AW54: 主任技術者 | BN54: 主任技術者
Q55: 特定専門工事の該当 | X55: □ | Y55: 有 | Z55: ・ | AB55: □ | AC55: 無 | AH55: 特定専門工事の該当 | AO55: □ | AP55: 有 | AQ55: ・ | AS55: □ | AT55: 無 | AY55: 特定専門工事の該当 | BF55: □ | BG55: 有 | BH55: ・ | BJ55: □ | BK55: 無 | BP55: 特定専門工事の該当 | BW55: □ | BX55: 有 | BY55: ・ | CA55: □ | CB55: 無
O56: 専門技術者 | AF56: 専門技術者 | AW56: 専門技術者 | BN56: 専門技術者
S57: 担当工事内容 | AJ57: 担当工事内容 | BA57: 担当工事内容 | BR57: 担当工事内容
N58: 工期 | O58: R | Q58: 年 | S58: 月 | U58: 日 | V58: ～ | W58: R | Y58: 年 | AA58: 月 | AC58: 日 | AE58: 工期 | AF58: R | AH58: 年 | AJ58: 月 | AL58: 日 | AM58: ～ | AN58: R | AP58: 年 | AR58: 月 | AT58: 日 | AV58: 工期 | AW58: R | AY58: 年 | BA58: 月 | BC58: 日 | BD58: ～ | BE58: R | BG58: 年 | BI58: 月 | BK58: 日 | BM58: 工期 | BN58: R | BP58: 年 | BR58: 月 | BT58: 日 | BU58: ～ | BV58: R | BX58: 年 | BZ58: 月 | CB58: 日
... 1 more rows

Sheet 14
P2: 工 事 設 計 変 更 内 訳 明 細 書
A6: =CONCATENATE(一括入力シート!B50," ",一括入力シート!D50) -> 一般財団法人 神戸住環境整備公社
A8: 理事長 宛
B10: 提出年月日 | S10: 令 和 | AA10: 年 | AG10: 月 | AM10: 日 | BJ10: 「提出年月日」は変更契約締結日を入力してください。（出力後の手書き可）
B14: 請 負 人 | J14: 住 所
S15: =一括入力シート!B65 -> 0
S17: =一括入力シート!B66 -> 0
J18: 氏 名
S19: =一括入力シート!B67 -> 0
S21: 現場代理人名 | Z21: =一括入力シート!B75 -> 0 | AK21: 連絡先 | AP21: =一括入力シート!B77 -> 0 | AU21: - | AW21: =一括入力シート!C77 -> 0 | BB21: - | BD21: =一括入力シート!D77 -> 0 | BJ21: 一括入力シートの現場代理人連絡先と異なる場合は手入力してください。
B23: 工事名 | R23: =一括入力シート!B9 -> 0
BJ28: 〔記載例〕 ※設計書に記載する種目内訳明細の工種，直接工事費の計，共通費（共通仮設費・現場管理費・一般管理費等）等を監督員の指示を受けて入力してください。
BJ29: 変更増減額について、減額の場合は△を金額の前に入力してください。
B30: 区分 | R30: 請負金額 | AD30: 変更増△減 | AP30: 変更請負金額 | BB30: 摘要 | BK30: 区分 | CA30: 請負金額 | CM30: 変更増△減 | CY30: 変更請負金額 | DK30: 摘要
B33: 工費 | AB33: 円 | AN33: 円 | AZ33: 円 | BK33: 工費 | CA33: =CI85 -> 25259040 | CK33: 円 | CM33: =CW85 -> 1405080 | CW33: 円 | CY33: =DH85 -> 26664120 | DI33: 円
A40: 工 種 | M40: 品質・寸法 | T40: 内 訳 | AH40: 変 更 増 △ 減 | AV40: 変 更 内 訳 | BG40: 備考 | BJ40: 工 種 | BV40: 品質・寸法 | CC40: 内 訳 | CQ40: 変 更 増 △ 減 | DE40: 変 更 内 訳 | DP40: 備考
C42: 種 別 | BL42: 種 別
T43: 数量 | W43: 単価 | Z43: 金 額 | AH43: 数量 | AK43: 単価 | AN43: 金 額 | AV43: 数量 | AY43: 金 額 | CC43: 数量 | CF43: 単価 | CI43: 金 額 | CQ43: 数量 | CT43: 単価 | CW43: 金 額 | DE43: 数量 | DH43: 金 額
E44: 名称 | BN44: 名称
BJ46: 1 | BN46: 建築主体工事費 | CC46: 1式 | CI46: 12650000 | CQ46: 1式 | CW46: 1020000 | DE46: 1式 | DH46: =SUM(CI46,CW46) -> 13670000
BJ49: 2 | BN49: とりこわし工事費 | CC49: 1式 | CI49: 2890000 | DE49: 1式 | DH49: =CI49 -> 2890000
E61: 直接工事費計 | Z61: =SUM(Z46:AG60) -> 0 | AN61: =SUM(AN46:AU60) -> 0 | AY61: =SUM(AY46:BF60) -> 0 | BN61: 直接工事費計 | CI61: =SUM(CI46:CP60) -> 15540000 | CW61: =SUM(CW46:DD60) -> 1020000 | DH61: =SUM(DH46:DO60) -> 16560000
E67: 共通仮設費 | T67: 1式 | AH67: 1式 | AV67: 1式 | BJ67: 3 | BN67: 共通仮設費 | CC67: 1式 | CI67: 2912000 | CQ67: 1式 | CW67: 35000 | DE67: 1式 | DH67: =SUM(CI67,CW67) -> 2947000
E70: 現場管理費 | T70: 1式 | AH70: 1式 | AV70: 1式 | BJ70: 4 | BN70: 現場管理費 | CC70: 1式 | CI70: 2691000 | CQ70: 1式 | CW70: 127000 | DE70: 1式 | DH70: =SUM(CI70,CW70) -> 2818000
E73: 一般管理費等 | T73: 1式 | AH73: 1式 | AV73: 1式 | BJ73: 5 | BN73: 一般管理費等 | CC73: 1式 | CI73: 2245000 | CQ73: 1式 | CW73: 119000 | DE73: 1式 | DH73: =SUM(CI73,CW73) -> 2364000
E79: 工事価格 | T79: 1式 | Z79: =SUM(Z67:AG75,Z61) -> 0 | AH79: 1式 | AN79: =SUM(AN67:AU75,AN61) -> 0 | AV79: 1式 | AY79: =SUM(AY67:BF75,AY61) -> 0 | BN79: 工事価格 | CC79: 1式 | CI79: =SUM(CI67:CP75,CI61) -> 23388000 | CQ79: 1式 | CW79: =SUM(CW67:DD75,CW61) -> 1301000 | DE79: 1式 | DH79: =SUM(DH67:DO75,DH61) -> 24689000
E82: 消費税相当額 | T82: 1式 | Z82: =ROUNDDOWN(Z79*0.1,0) -> 0 | AH82: 1式 | AN82: =ROUNDDOWN(AN79*0.1,0) -> 0 | AV82: 1式 | AY82: =ROUNDDOWN(AY79*0.1,0) -> 0 | BN82: 消費税相当額 | CC82: 1式 | CI82: =ROUNDDOWN(CI79*0.08,0) -> 1871040 | CQ82: 1式 | CW82: =ROUNDDOWN(CW79*0.08,0) -> 104080 | DE82: 1式 | DH82: =ROUNDDOWN(DH79*0.08,0) -> 1975120
E85: 工費合計 | T85: 1式 | Z85: =SUM(Z79:AG84) -> 0 | AH85: 1式 | AN85: =SUM(AN79:AU84) -> 0 | AV85: 1式 | AY85: =SUM(AY79:BF84) -> 0 | BN85: 工費合計 | CC85: 1式 | CI85: =SUM(CI79:CP84) -> 25259040 | CQ85: 1式 | CW85: =SUM(CW79:DD84) -> 1405080 | DE85: 1式 | DH85: =SUM(DH79:DO84) -> 26664120
C89: 工事価格（税込）のうち、現場労働者に関する健康保険、 | AR89: 円 | BK89: 法定福利費の入力を忘れずに
C91: 厚生年金保険及び雇用保険の法定の事業主負担額
... 1 more rows

Sheet 15-1
D1: 総務課確認欄 | H1: ← | K1: 工事担当課 | S1: (公社用)
G2: （決裁終了後は、甲乙ともに総務課へ送付すること） | R2: 15-1表面と15-3裏面を両面印刷で提出。
A3: =CONCATENATE("「建設工事に係る資材の再資源化等に関する法律」第13条に基づく書面") -> 「建設工事に係る資材の再資源化等に関する法律」第13条に基づく書面 | L3: ■ | M3: 当初 | N3: □ | O3: 変更 | R3: 該当する箇所について、□→■としてください。
Q4: =CONCATENATE("契約年月日 令和 ",一括入力シート!B17," 年 ",一括入力シート!C17," 月 ",一括入力シート!D17," 日") -> 契約年月日 令和 年 月 日
C5: 工事件名 | D5: =一括入力シート!B9 -> 0
A7: １ 分別解体等の方法 ＜（１）～（３）のうち該当するものに記入してください。＞
B8: （１）建築物に係る解体工事の場合
B9: 工程ごとの作業内容及び解体方法 | C9: 工 程 | D9: 作 業 内 容 | J9: 分別解体等の方法
C10: ①建築設備・内装材等 | D10: 建築設備・内装材等の取り外し | E10: □ | F10: 有 | G10: □ | H10: 無 | J10: □ | K10: 手作業 | L10: □ | M10: 手作業・機械作業の併用 | R10: 該当する箇所について、□→■としてください。
J11: 併用の場合の理由（ | Q11: ） | R11: 併用の場合の理由は、直接入力してください。
C12: ②屋根ふき材 | D12: 屋根ふき材の取り外し | E12: □ | F12: 有 | G12: □ | H12: 無 | J12: □ | K12: 手作業 | L12: □ | M12: 手作業・機械作業の併用
J13: 併用の場合の理由（ | Q13: ）
C14: ③外装材・上部構造部分 | D14: 外装材・上部構造部分の取り壊し | E14: □ | F14: 有 | G14: □ | H14: 無 | J14: □ | K14: 手作業 | L14: □ | M14: 手作業・機械作業の併用
C15: ④基礎・基礎ぐい | D15: 基礎・基礎ぐいの取り壊し | E15: □ | F15: 有 | G15: □ | H15: 無 | J15: □ | K15: 手作業 | L15: □ | M15: 手作業・機械作業の併用
C16: ⑤その他（ ） | D16: その他の取り壊し | E16: □ | F16: 有 | G16: □ | H16: 無 | J16: □ | K16: 手作業 | L16: □ | M16: 手作業・機械作業の併用
B19: （２）建築物に係る新築工事等の場合
B20: 工程ごとの作業内容及び解体方法 | C20: 工 程 | D20: 作 業 内 容 | I20: 分別解体等の方法
C21: ①造成等 | D21: 造成等の工事 | E21: □ | F21: 有 | G21: □ | H21: 無 | I21: □ | K21: 手作業 | L21: □ | M21: 手作業・機械作業の併用
C22: ②基礎・基礎ぐい | D22: 基礎・基礎ぐいの工事 | E22: □ | F22: 有 | G22: □ | H22: 無 | I22: □ | K22: 手作業 | L22: □ | M22: 手作業・機械作業の併用
C23: ③上部構造部分・外装 | D23: 上部構造部分・外装の工事 | E23: □ | F23: 有 | G23: □ | H23: 無 | I23: □ | K23: 手作業 | L23: □ | M23: 手作業・機械作業の併用
C24: ④屋根 | D24: 屋根の工事 | E24: □ | F24: 有 | G24: □ | H24: 無 | I24: □ | K24: 手作業 | L24: □ | M24: 手作業・機械作業の併用
C25: ⑤建築設備・内装等 | D25: 建築設備・内装等の工事 | E25: □ | F25: 有 | G25: □ | H25: 無 | I25: □ | K25: 手作業 | L25: □ | M25: 手作業・機械作業の併用
C26: ⑥その他（ ） | D26: その他の工事 | E26: □ | F26: 有 | G26: □ | H26: 無 | I26: □ | K26: 手作業 | L26: □ | M26: 手作業・機械作業の併用
B30: （３）建築物以外のものに係る解体工事又は新築工事等（土木工事等）の場合
B31: 工程ごとの作業内容及び解体方法 | C31: 工 程 | D31: 作 業 内 容 | I31: 分別解体等の方法
C32: ①仮設 | D32: 仮設工事 | E32: □ | F32: 有 | G32: □ | H32: 無 | I32: □ | K32: 手作業 | L32: □ | M32: 手作業・機械作業の併用
C33: ②土工 | D33: 土工事 | E33: □ | F33: 有 | G33: □ | H33: 無 | I33: □ | K33: 手作業 | L33: □ | M33: 手作業・機械作業の併用
C34: ③基礎 | D34: 基礎工事 | E34: □ | F34: 有 | G34: □ | H34: 無 | I34: □ | K34: 手作業 | L34: □ | M34: 手作業・機械作業の併用
C35: ④本体構造 | D35: 本体構造の工事 | E35: □ | F35: 有 | G35: □ | H35: 無 | I35: □ | K35: 手作業 | L35: □ | M35: 手作業・機械作業の併用
C36: ⑤本体付属品 | D36: 本体付属品の工事 | E36: □ | F36: 有 | G36: □ | H36: 無 | I36: □ | K36: 手作業 | L36: □ | M36: 手作業・機械作業の併用
C37: ⑥その他（ ） | D37: その他の工事 | E37: □ | F37: 有 | G37: □ | H37: 無 | I37: □ | K37: 手作業 | L37: □ | M37: 手作業・機械作業の併用
A41: ２ 解体工事に要する費用（受注者の見積金額） | L41: 円（税込）
B42: ※解体工事がない場合にはなしと記載してください。
A44: ３ 特定建設資材廃棄物の再資源化等に要する費用 | L44: 円（税込）
B45: （受注者の見積金額）
A47: ４ 再資源化等をするための施設の名称及び所在地
B49: 特定建設資材廃棄物の種類 | D49: 施設の名称 | J49: 所 在 地
B70: ※請負人が選択した施設を記載
B71: ※書ききれない場合は別紙に記載すること
B73: 確認のため、本書２通を作成し、当事者双方記名押印のうえ各自１通を所持する。
C75: 発注者 | D75: 住所 神戸市長田区二葉町５丁目１番３２号
D76: =CONCATENATE(" 氏名 ",一括入力シート!B50," ",一括入力シート!D50) -> 氏名 一般財団法人 神戸住環境整備公社
D77: =CONCATENATE(一括入力シート!A51," ",一括入力シート!B51) -> 理事長 碓永信幸
C79: 請負人 住所 | D79: =一括入力シート!B65 -> 0
C82: 氏名 | D82: =一括入力シート!B66&CHAR(10)&一括入力シート!B67 ->  | O82: 印
... 1 more rows

Sheet 15-2
S1: (業社用)
R2: 15-1表面と15-3裏面を両面印刷で提出。
A3: =CONCATENATE("「建設工事に係る資材の再資源化等に関する法律」第13条に基づく書面") -> 「建設工事に係る資材の再資源化等に関する法律」第13条に基づく書面 | L3: ■ | M3: 当初 | N3: □ | O3: 変更 | R3: 該当する箇所について、□→■としてください。
Q4: =CONCATENATE("契約年月日 令和",一括入力シート!B17,"年",一括入力シート!C17,"月",一括入力シート!D17,"日") -> 契約年月日 令和年月日
C5: 工事件名 | D5: =一括入力シート!B9 -> 0
A7: １ 分別解体等の方法 ＜（１）～（３）のうち該当するものに記入してください。＞
B8: （１）建築物に係る解体工事の場合
B9: 工程ごとの作業内容及び解体方法 | C9: 工 程 | D9: 作 業 内 容 | I9: 分別解体等の方法
C10: ①建築設備・内装材等 | D10: 建築設備・内装材等の取り外し | E10: □ | F10: 有 | G10: □ | H10: 無 | I10: □ | K10: 手作業 | L10: □ | M10: 手作業・機械作業の併用 | R10: 該当する箇所について、□→■としてください。
I11: 併用の場合の理由（ | Q11: ） | R11: 併用の場合の理由は、直接入力してください。
C12: ②屋根ふき材 | D12: 屋根ふき材の取り外し | E12: □ | F12: 有 | G12: □ | H12: 無 | I12: □ | K12: 手作業 | L12: □ | M12: 手作業・機械作業の併用
I13: 併用の場合の理由（ | Q13: ）
C14: ③外装材・上部構造部分 | D14: 外装材・上部構造部分の取り壊し | E14: □ | F14: 有 | G14: □ | H14: 無 | I14: □ | K14: 手作業 | L14: □ | M14: 手作業・機械作業の併用
C15: ④基礎・基礎ぐい | D15: 基礎・基礎ぐいの取り壊し | E15: □ | F15: 有 | G15: □ | H15: 無 | I15: □ | K15: 手作業 | L15: □ | M15: 手作業・機械作業の併用
C16: ⑤その他（ ） | D16: その他の取り壊し | E16: □ | F16: 有 | G16: □ | H16: 無 | I16: □ | K16: 手作業 | L16: □ | M16: 手作業・機械作業の併用
B19: （２）建築物に係る新築工事等の場合
B20: 工程ごとの作業内容及び解体方法 | C20: 工 程 | D20: 作 業 内 容 | J20: 分別解体等の方法
C21: ①造成等 | D21: 造成等の工事 | E21: □ | F21: 有 | G21: □ | H21: 無 | J21: □ | K21: 手作業 | L21: □ | M21: 手作業・機械作業の併用
C22: ②基礎・基礎ぐい | D22: 基礎・基礎ぐいの工事 | E22: □ | F22: 有 | G22: □ | H22: 無 | J22: □ | K22: 手作業 | L22: □ | M22: 手作業・機械作業の併用
C23: ③上部構造部分・外装 | D23: 上部構造部分・外装の工事 | E23: □ | F23: 有 | G23: □ | H23: 無 | J23: □ | K23: 手作業 | L23: □ | M23: 手作業・機械作業の併用
C24: ④屋根 | D24: 屋根の工事 | E24: □ | F24: 有 | G24: □ | H24: 無 | J24: □ | K24: 手作業 | L24: □ | M24: 手作業・機械作業の併用
C25: ⑤建築設備・内装等 | D25: 建築設備・内装等の工事 | E25: □ | F25: 有 | G25: □ | H25: 無 | J25: □ | K25: 手作業 | L25: □ | M25: 手作業・機械作業の併用
C26: ⑥その他（ ） | D26: その他の工事 | E26: □ | F26: 有 | G26: □ | H26: 無 | J26: □ | K26: 手作業 | L26: □ | M26: 手作業・機械作業の併用
B30: （３）建築物以外のものに係る解体工事又は新築工事等（土木工事等）の場合
B31: 工程ごとの作業内容及び解体方法 | C31: 工 程 | D31: 作 業 内 容 | J31: 分別解体等の方法
C32: ①仮設 | D32: 仮設工事 | E32: □ | F32: 有 | G32: □ | H32: 無 | J32: □ | K32: 手作業 | L32: □ | M32: 手作業・機械作業の併用
C33: ②土工 | D33: 土工事 | E33: □ | F33: 有 | G33: □ | H33: 無 | J33: □ | K33: 手作業 | L33: □ | M33: 手作業・機械作業の併用
C34: ③基礎 | D34: 基礎工事 | E34: □ | F34: 有 | G34: □ | H34: 無 | J34: □ | K34: 手作業 | L34: □ | M34: 手作業・機械作業の併用
C35: ④本体構造 | D35: 本体構造の工事 | E35: □ | F35: 有 | G35: □ | H35: 無 | J35: □ | K35: 手作業 | L35: □ | M35: 手作業・機械作業の併用
C36: ⑤本体付属品 | D36: 本体付属品の工事 | E36: □ | F36: 有 | G36: □ | H36: 無 | J36: □ | K36: 手作業 | L36: □ | M36: 手作業・機械作業の併用
C37: ⑥その他（ ） | D37: その他の工事 | E37: □ | F37: 有 | G37: □ | H37: 無 | J37: □ | K37: 手作業 | L37: □ | M37: 手作業・機械作業の併用
A41: ２ 解体工事に要する費用（受注者の見積金額） | L41: 円（税込）
B42: ※解体工事がない場合にはなしと記載してください。
A44: ３ 特定建設資材廃棄物の再資源化等に要する費用 | L44: 円（税込）
B45: （受注者の見積金額）
A47: ４ 再資源化等をするための施設の名称及び所在地
B49: 特定建設資材廃棄物の種類 | D49: 施設の名称 | J49: 所 在 地
B70: ※請負人が選択した施設を記載
B71: ※書ききれない場合は別紙に記載すること
B73: 確認のため、本書２通を作成し、当事者双方記名押印のうえ各自１通を所持する。
C75: 発注者 | D75: 住所 神戸市長田区二葉町５丁目１番３２号
D76: =CONCATENATE(" 氏名 ",一括入力シート!B50," ",一括入力シート!D50) -> 氏名 一般財団法人 神戸住環境整備公社
D77: =CONCATENATE(一括入力シート!A51," ",一括入力シート!B51) -> 理事長 碓永信幸
C79: 請負人 住所 | D79: =一括入力シート!B65 -> 0
C82: 氏名 | D82: =一括入力シート!B66&CHAR(10)&一括入力シート!B67 ->  | O82: 印
... 1 more rows

Sheet 16
A3: 建築物解体等作業届
A8: 事業場の名称 | P8: 作業場 | S8: 作業場の所在地 | Y8: =一括入力シート!B11&IF(一括入力シート!B13="","",CHAR(10)&一括入力シート!B13) -> 
A11: 仕事の範囲
A14: 解体する部材の種類
A17: 発注者名 | G17: 一般財団法人 神戸住環境整備公社 | U17: 工事請負金額 | AA17: =一括入力シート!B45 ->  | AM17: 円
A20: 仕事の開始 予定年月日 | G20: 令和 | K20: 年 | O20: 月 | S20: 日 | U20: 仕事の終了 予定年月日 | AA20: 令和 | AE20: 年 | AI20: 月 | AM20: 日
A23: 主たる事務所 の所在地 | G23: =一括入力シート!B65 -> 0
X26: 電話 | AA26: =一括入力シート!B70 -> 0 | AD26: - | AF26: =一括入力シート!C70 -> 0 | AI26: - | AK26: =一括入力シート!D70 -> 0
A28: 使用予定 労働者数 | L28: 人 | N28: 関係請負人の予定数 | Y28: 人 | AA28: 関係請負人の使用する労働者の予定数の合計 | AM28: 人
A32: 作業主任者 の氏名
A35: 石綿ばく露防止のための措置の概要 | AO35: ・除去する石綿等の種類
AO36: ・使用する機器や保護具
AO37: ・隔離・立入禁止の措置
AO38: ・粉じんの発散防止、抑制方法
AO39: ・換気方法
AO40: ・石綿濃度の測定
AO41: ・解体廃棄物の処理方法
AO42: などを記載します。
AO44: 建築物又は工作物の概要を示す図面を添付して下さい。
A48: 令和 | E48: 年 | I48: 月 | M48: 日 | AO48: 提出年月日を直接入力してください。
T51: 事業者職氏名 | AA51: =一括入力シート!B66&CHAR(10)&一括入力シート!B67 -> 
F55: 労働基準監督署長 殿 | AO55: 管轄労働基準監督署名を選択してください。
A58: 備考 １ 「使用予定労働者数」の欄は、届出事業者が直接雇用する労働者数を記入すること。 ２ 「関係請負人の使用する労働者の予定数の合計」の欄は、延数で記入すること。 ３ 「石綿ばく露防止のための措置の概要」の欄は、工事に当たって行う石綿ばく露防止対 策を講ずる措置の内容について、簡潔に記入すること。 ４ 氏名を記載し、押印することに代えて、署名することができる。
... 1 more rows

Sheet 17-1
AO1: 特定建築材料(吹付け石綿、石綿を含有する断熱材、保温材及び耐火被覆材)が使用されている建築物等を解体し、改造し、又は補修する作業を行う場合は、大気汚染防止法に基づく「特定粉じん排出等作業」に該当します。
A2: 特定粉じん排出等作業実施届出書
AO3: 「特定粉じん排出等作業」を行う場合は、工事開始の15日前(*)までに「特定粉じん排出等作業実施届出書」を提出して下さい。
A4: 神 戸 市 長 宛 | AO4: *：法律の条文は14日前となっていますが、届出日は日数の算定に加えないため、実質15日前までに届出が必要です。
Z5: 令和 | AE5: 年 | AI5: 月 | AM5: 日 | AO5: 提出年月日を直接入力してください。
L6: 届出者 | Q6: 住 所 | V6: 神戸市長田区二葉町5-1-32 新長田合同庁舎8階
V7: 電話 | X7: （ | Y7: 078 | AB7: ） | AG7: - | AM7: 番
Q8: 氏 名 | V8: =CONCATENATE(一括入力シート!B50," ",一括入力シート!D50) -> 一般財団法人 神戸住環境整備公社 | AO8: 電話番号は、工事担当課と協議の上、入力してください。
AC9: 理事長 | AG9: =一括入力シート!B51 -> 碓永信幸
A11: 吹付け石綿又は石綿を含有する断熱材、保温材若しくは耐火被覆材に係る特定粉じん排出等作業を実施するので、大気汚染防止法第18条の17第1項（第2項）の規定により、次のとおり届け出ます。
A14: 届出対象特定工事の場所 | N14: =一括入力シート!B11&IF(一括入力シート!B13="","",CHAR(10)&一括入力シート!B13) -> 
A16: 届出対象特定工事の元請業者又は自主施工者の氏名又は名称及び住所並びに法人にあっては、その代表者の氏名
A21: 特定粉じん排出等作業の種類 | N21: 大気汚染防止法施行規則別表第7 1の項 建築物等の解体作業（次項又は5の項を除く） 2の項 建築物等の解体作業のうち、石綿を含有する断熱材、保温材又は耐火被覆材を除去する作業（掻き落とし、切断、又は破砕以外の方法で特定建築材料を除去するもの）（5の項を除く） 5の項 特定建築材料の事前除去が著しく困難な解体作業
N29: 4の項 改造・補修作業 | AK29: 件
A30: 特定粉じん排出等作業の実施の期間 | N30: 自: | P30: 令和 | T30: 年 | X30: 月 | AB30: 日 | AD30: ※整理番号
N31: 至: | P31: 令和 | T31: 年 | X31: 月 | AB31: 日 | AD31: ※受理年月日 | AO31: 注意）
A32: 特定建築材料の種類 | N32: １ 吹付け石綿 ２ 石綿を含有する断熱材 ３ 石綿を含有する保温材 ４ 石綿を含有する耐火被覆材 | AD32: ※審査結果 | AO32: 特定建築材料に該当する石綿除去後に解体工事を行う場合は、兵庫県「環境の保全と創造に関する条例」にもとづく「特定工作物解体等工事実施届出書」の提出が必要な場合があります。
AO33: （非飛散性石綿が使用されている80m2以上の建築物の解体の場合、1000m2以上の建築物の解体の場合）
AO35: いわゆる「配管保温材の生け捕り」については、「特定粉じん排出等作業実施届出書」の提出は必要ありませんが、「特定工作物解体等工事実施届」の提出が必要です。
A37: 特定建築材料の使用箇所 | N37: 見取図のとおり。
A38: 特定建築材料の使用面積 | AB38: ㎡
A39: 特定粉じん排出等作業の方法 | N39: 別紙のとおり。
A40: 参考事項 | C40: 特定粉じん排出等作業の対象となる建築物等の概要 | N40: 建築物 | R40: □ | S40: 耐火 | U40: □ | V40: 準耐火 | Y40: □ | Z40: その他 | AD40: ※備考
N41: 延べ面積 | V41: m2（ | AA41: 階建）
N42: その他工作物
C43: 届出対象特定工事の元請業者又は自主施工者の現場責任者の氏名及び連絡場所 | N43: =一括入力シート!B66&" "&一括入力シート!B75 -> 
V46: 電話 | X46: （ | Y46: =一括入力シート!B77 -> 0 | AB46: ） | AC46: =一括入力シート!C77 -> 0 | AG46: - | AI46: =一括入力シート!D77 -> 0 | AM46: 番
C47: 下請負人が特定粉じん排出等作業を実施する場合の当該下請負人の現場責任者の氏名及び連絡場所
V50: 電話 | X50: （ | AB50: ） | AG50: - | AM50: 番
A51: 備考 1 吹付け石綿又は石綿を含有する断熱材、保温材若しくは耐火被覆材に係る特定粉じん排出等作業の対象となる建築物等の部分の見取図を添付すること。見取図は、主要寸法及び特定建築材料の使用箇所を記入すること。 2 参考事項の欄に掲げる事項は必須の記載事項ではないが、同欄に所定の事項を記載した場合は、同欄をもって、大気汚染防止法施行規則第10条の4第2項第1号に規定する事項のうち特定粉じん排出等作業の対象となる建築物等の概要及び同項第3号及び第4号に規定する事項を記載した書類とみなす。 3 ※印の欄には、記載しないこと。 4 届出書、見取図及び別紙の用紙の大きさは、図面、表等やむを得ないものを除き、日本工業規格A4とすること。 5 氏名（法人にあってはその代表者の氏名）を記載し、押印することに代えて、本人（法人にあってはその代表者）が署名することができる。 ※ 兵庫県「環境の保全と創造に関する条例」に基づき、掲示する標識の写しを添付すること。
A62: 別紙
A64: 特定粉じん排出等作業の方法
A67: 特定建築材料の処理方法 | N67: □ | P67: 除去 | T67: □ | V67: 囲い込み | AA67: □ | AC67: 封じ込め | AH67: □ | AJ67: その他
AO68: 該当する箇所について、□→■としてください。
A72: 集じん・排気装置 | C72: 機種・型式・設置数
C75: 排気能力 （㎥／min） | Y75: （1時間あたりの換気回数 | AL75: 回）
C78: 使用するフィルタの種類及びその集じん効率（％）
A81: 使用する資材及びその種類
A84: その他の特定粉じんの排出又は飛散の抑制方法
A88: 備考 1 本様式は、特定粉じん排出等作業ごとに作成すること。
A89: 2 使用する資材及びその種類の欄には、湿潤剤・固化液等の薬液、隔離用のシート・ 接着テープ等の特定粉じん排出等作業に使用する資材及びその種類を記載すること。
A91: 3 その他の特定粉じんの排出又は飛散の抑制方法の欄には、大気汚染防止法施行規則 別表第7に規定する「同等以上の効果を有する措置」の内容、散水の方法、囲い込み 又は封じ込めの方法等を記載すること。
A95: 4 作業場の隔離又は養生の状況、前室及び掲示板の設置状況を示す見取図を添付する こと。見取図は、主要寸法、隔離された作業場の容量（m3）並びに集じん・排気装 置の設置場所及び排気口の位置を記入すること。
... 1 more rows

Sheet 17-2
AO1: 特定工作物解体等工事実施届は下記のとおり添付書類を添えて届出ください。
A2: 特定工作物解体等工事実施届 | AO2: ※兵庫県「環境の保全と創造に関する条例」では、「特定工作物解体等工事」現場での標識掲示を義務付けています。
AO3: ※条例の条文は7日前となっていますが、届出日は日数の算定に加えないため（初日不算入）、実質8日前までに届出が必要です。 | CR3: 提出年月日を直接入力してください。
AP4: 必要書類 | BI4: 特定石綿含有材料を使用する | BW4: その他の石綿含有材料を使用する | CK4: 石綿を含有しない建築物の解体工事
X5: 令和 | AE5: 年 | AI5: 月 | AM5: 日 | BI5: 建築物等の解体・改修工事 ※1 | BW5: 建築物又は、石綿含有仕上塗材が | CK5: のうち、解体する部分の延べ床面積 | CY5: 明示すべき事項
BI6: （大気汚染防止法対象工事を除く） | BW6: 吹付け以外の工法で施工されたこ | CK6: が1,000㎡以上のもの
A7: 神 戸 市 長 宛 | BW7: とが明らかな建築物で、延べ床面
BW8: 積が80㎡以上の解体工事
AP9: 届出書表紙（様式第14号） | BO9: ○ | CC9: ○ | CQ9: ○
K10: 届出者 | Q10: 住 所 | V10: (法人にあっては、主たる事務所の所在地) | AP10: 別紙 | BO10: ○ | CC10: ○ | CQ10: ○
V11: =一括入力シート!B65 -> 0 | AP11: 解体工事に係るアスベストチェックリスト（棟毎） | BJ11: ○（工作物、改修工事は不要） | CC11: ○ | CQ11: ○ | CY11: 複数棟解体する場合は棟ごとに作成
AP12: 付近見取図 | BO12: ○ | CC12: ○ | CQ12: ○ | CY12: 工事場所
Q13: 氏 名 | V13: (法人にあっては、名称及び代表者の氏名) | AP13: 現場図面（仮設計画等） | BO13: ○ | CC13: ○ | CQ13: ○ | CY13: ①敷地・道路境界線,②標識掲示場所,③シート養生・散水栓の位置（解体工事のみ）
V14: =一括入力シート!B66&CHAR(10)&一括入力シート!B67 ->  | AP14: 工事工程表 | BO14: ○ | CC14: ○ | CQ14: ○
AP15: 標識（解体・改修工事のお知らせ等） | BO15: ○（黄色） | CC15: ○（白色） | CQ15: －
AP16: 近隣対応計画書 | BO16: ○ | CC16: ○ | CQ16: ○ | CY16: ※作成については工事担当課と協議してください。
Q17: 担当者氏名 | V17: =一括入力シート!B75 -> 0 | AP17: 作業要領（作業手順） | BO17: ○ | CC17: △ ※2 | CQ17: － | CY17: 作業方法の詳細を記載。説明図の添付
AP18: 使用機器・資材カタログ | BO18: ○ | CC18: △ ※2 | CQ18: － | CY18: HEPA掃除機,薬液,養生シート,接着テープ,廃棄袋など工法に必要なもの
V19: 電話 | X19: （ | Y19: =一括入力シート!B70 -> 0 | AB19: ） | AC19: =一括入力シート!C70 -> 0 | AG19: - | AI19: =一括入力シート!D70 -> 0 | AM19: 番 | AP19: ※1 石綿含有配管保温材の非石綿含有部分での切断（グローブバック方式等）、原型撤去作業
AP20: ※2 石綿含有成形板以外の特殊な石綿含有建材が使用されている場合は別途ご相談ください。
A22: 特定工作物解体等工事の名称 | Q22: =一括入力シート!B9 -> 0 | AO22: 請負人管理事務所がない場合は携帯電話番号を直接入力してください。
A25: 特定工作物解体等工事に係る工作物の種類 | Q25: 用 途
Q27: 構造・階数
A29: 特定工作物解体等工事の種類 | AO29: (1)石綿含有材料を使用しない建築物の解体の工事
AO30: (2)石綿含有材料を使用する部分を含む建築物等の解体の工事
AO31: (3) 特定石綿含有材料を使用する部分を含む建築物等の改修の工事
A32: 建築物にあっては、解体する部分の床面積の合計 | AL32: ｍ2
A35: 特定石綿含有材料の使用の有無 | V35: □ | Y35: 有 | AB35: □ | AE35: 無
AO36: 飛散性石綿（吹付け材、保温材等）について、該当する箇所に□→■としてください。
A37: 特定工作物解体等工事の場所 | Q37: =一括入力シート!B11&IF(一括入力シート!B13="","",CHAR(10)&一括入力シート!B13) -> 
A39: 特定工作物解体等工事の実施の期間 | T39: 自: | V39: 令和 | Z39: 年 | AD39: 月 | AH39: 日
T41: 至: | V41: 令和 | Z41: 年 | AD41: 月 | AH41: 日
A43: 粉じんの処理又は飛散の防止の方法 | Q43: 別紙のとおり
A46: 発注者の氏名又は名称及び住所並びに法人にあってはその代表者の氏名 | R46: =CONCATENATE(一括入力シート!B50,一括入力シート!D50," 理事長 ",一括入力シート!B51) -> 一般財団法人 神戸住環境整備公社 理事長 碓永信幸
R47: （工事担当課） | X47: =CONCATENATE(一括入力シート!B53,"部") -> 施設整備部 | AH47: =CONCATENATE(一括入力シート!D53,"課") -> 課
V49: 電話 | X49: （ | Y49: =一括入力シート!B58 -> 0 | AB49: ） | AC49: =一括入力シート!C58 -> 0 | AG49: - | AI49: =一括入力シート!D58 -> 0 | AM49: 番
A51: 下請負人が工事を実施する場合は、当該下請負人の氏名又は名称及び住所並びに法人にあっては、その代表者の氏名
V54: 電話 | X54: （ | AB54: ） | AG54: - | AM54: 番
A56: 備 考
A58: 注 「特定工作物解体等工事の種類」の欄には、次の種類の別を記入して下さい (1) 石綿含有材料を使用しない建築物の解体の工事 (2) 石綿含有材料を使用する部分を含む建築物等の解体の工事 (3) 特定石綿含有材料を使用する部分を含む建築物等の改修の工事
A62: 別紙
A63: すべての粉じん に係る共通事項 | D63: 防じんシート等の設置方法 | Q63: 別添のとおり
D68: 散 水 等 の 方 法 | Q68: 別添のとおり
A73: 石 綿 粉 じ ん に 係 る 事 項 | D73: 特定石綿含有材料の処理方法 | Q73: □ | S73: 除去 | W73: □ | Z73: 封じ込め | AF73: □ | AI73: 囲い込み
AO74: 該当する箇所について、□→■としてください。
Q76: （使用面積 | AA76: ｍ2 使用部分 別添図面のとおり）
D79: 散水その他の措置により石綿を含む水を排出するときは、排水の処理方法
AO80: 排水がある場合は処理方法を記入してください。
D83: 施 行 区 画 の 隔 離 方 法
D87: 隔離した施工区画の換気方法 | G87: 施 工 区 画 の 容 積 | U87: ｍ2×高さ | AE87: ｍ＝ | AL87: ｍ3
G90: 換気装置の換気能力 | U90: ｍ3／時× | AD90: 台＝ | AK90: ｍ3／時
G93: 1時間あたりの換気回数 | Q93: 換気能力÷施工区画の容積＝ | AK93: 回／時
G96: 換気装置の設置場所 | Q96: 別添のとおり
D99: 隔離した施工区画の集じん方法 | G99: 集じん機の種類・型式
G103: 集 じ ん 等 の 効 率
D107: 清 掃 等 の 方 法
D111: 標 識 | Q111: 別添のとおり
D115: そ の 他
A120: 注 この届出各欄に定めるもののほか、付近の見取図、建築物その他の工作物の配置図（解体又は改修の工事を行う部分の位置を記入したもの）及び工事の工程表を添付してください。
A122: Ａ４
AE123: 令和 | AH123: 年 | AK123: 月 | AN123: 日
A124: 解体工事に係るアスベストチェックリスト
A127: （兵庫県条例の飛散防止基準にもとづく施工計画）
AO128: 複数棟ある場合、棟ごとに作成してください。
AO129: 【記入例】 | AU129: 該当する箇所について、□→■としてください。
A130: １ 解体する建物の概要 | L130: （建築物名： | AF130: ） | AO130: １ 解体する建物の概要 | AZ130: （建築物名： | BE130: ○○連絡所 | BT130: ）
A132: 構造 | G132: □ | H132: 木造 | K132: □ | L132: 軽量鉄骨造 | Q132: □ | R132: 鉄骨造 | U132: □ | V132: 鉄骨鉄筋コンクリート造 | AE132: □ | AF132: 鉄筋コンクリート造 | AO132: 構造 | AU132: □ | AV132: 木造 | AY132: □ | AZ132: 軽量鉄骨造 | BE132: □ | BF132: 鉄骨造 | BI132: □ | BJ132: 鉄骨鉄筋コンクリート造 | BS132: ■ | BT132: 鉄筋コンクリート造
G133: □ | H133: コンクリートブロック造 | Q133: □ | R133: その他（ | AL133: ） | AU133: □ | AV133: コンクリートブロック造 | BE133: □ | BF133: その他（ | BZ133: ）
A134: 建築年 | G134: □ | H134: 明治 | J134: □ | K134: 大正 | M134: □ | N134: 昭和 | P134: □ | Q134: 平成 | W134: 年 | Y134: 延べ床面積 | AM134: ㎡ | AO134: 建築年 | AU134: □ | AV134: 明治 | AX134: □ | AY134: 大正 | BA134: ■ | BB134: 昭和 | BD134: □ | BE134: 平成 | BH134: 50 | BK134: 年 | BM134: 延べ床面積 | BS134: 1100 | CA134: ㎡
A135: 石綿有無の事前調査 | I135: □ | J135: 設計図書等による確認 | S135: □ | T135: 目視調査による確認 | AC135: □ | AD135: 分析調査による確認 | AO135: 石綿有無の事前調査 | AW135: □ | AX135: 設計図書等による確認 | BG135: ■ | BH135: 目視調査による確認 | BQ135: ■ | BR135: 分析調査による確認
G136: 有 | I136: □ | J136: 吹付け石綿 | O136: □ | P136: 保温材 | T136: □ | U136: 断熱材 | Y136: □ | Z136: 耐火被覆材 | AF136: □ | AG136: その他（ | AN136: ） | AU136: 有 | AW136: □ | AX136: 吹付け石綿 | BC136: ■ | BD136: 保温材 | BH136: □ | BI136: 断熱材 | BM136: □ | BN136: 耐火被覆材 | BT136: □ | BU136: その他（ | CB136: ）
A137: 特定石綿含有 | I137: （名称： | Y137: ，使用部位： | AN137: ） | AO137: 特定石綿含有 | AW137: （名称： | AZ137: 配管エルボ | BM137: ，使用部位： | CB137: ）
A138: 材料（飛散性） | G138: 無 | I138: ※石綿を含有しない吹付材の有無 | AO138: 材料（飛散性） | AW138: ※石綿を含有しない吹付材の有無
J139: □ | K139: 有（分析結果別添） | S139: □ | T139: 無 | AX139: □ | AY139: 有（分析結果別添） | BG139: □ | BH139: 無
I140: 外装材 | K140: □ | L140: 屋根材 | R140: ㎡ | S140: （名称： | AH140: ） | AW140: 外装材 | AY140: ■ | AZ140: 屋根材 | BC140: 200 | BF140: ㎡ | BG140: （名称： | BJ140: 波板スレート | BV140: ）
K141: □ | L141: 外壁材 | R141: ㎡ | S141: （名称： | AH141: ） | AY141: □ | AZ141: 外壁材 | BF141: ㎡ | BG141: （名称： | BV141: ）
K142: □ | L142: 軒天材 | R142: ㎡ | S142: （名称： | AH142: ） | AY142: □ | AZ142: 軒天材 | BF142: ㎡ | BG142: （名称： | BV142: ）
K143: □ | L143: その他 | R143: ㎡ | S143: （名称： | AH143: ） | AY143: ■ | AZ143: その他 | BC143: 200 | BF143: ㎡ | BG143: （名称： | BJ143: アスファルト防水 | BV143: ）
K144: □ | L144: 塗材（塗材層の名称： | Y144: ，工法： | AF144: ，使用部位： | AN144: ） | AY144: □ | AZ144: 塗材（塗材層の名称： | BH144: 下地調整剤 | BM144: ，工法： | BP144: ローラー塗 | BT144: ，使用部位： | BY144: 北面外壁 | CB144: ）
K145: 外装材の合計 | V145: ㎡ | AY145: 外装材の合計 | BE145: 400 | BJ145: ㎡
I146: 内装材 | K146: □ | L146: 壁材 | R146: ㎡ | AW146: 内装材 | AY146: ■ | AZ146: 壁材 | BC146: =SUM(BX151,BR147:BV149) -> 1100 | BF146: ㎡
L147: □ | M147: 台所 | P147: （名称： | AC147: ， | AI147: ㎡） | AZ147: □ | BA147: 台所 | BD147: （名称： | BQ147: ， | BW147: ㎡）
L148: □ | M148: 浴室 | P148: （名称： | AC148: ， | AI148: ㎡） | AZ148: □ | BA148: 浴室 | BD148: （名称： | BQ148: ， | BW148: ㎡）
L149: □ | M149: トイレ | P149: （名称： | AC149: ， | AI149: ㎡） | AZ149: □ | BA149: トイレ | BD149: （名称： | BQ149: ， | BW149: ㎡）
L150: □ | M150: 廊下 | P150: （名称： | AC150: ， | AI150: ㎡） | AZ150: □ | BA150: 廊下 | BD150: （名称： | BQ150: ， | BW150: ㎡）
G151: 有 | L151: □ | M151: その他 | P151: （使用部位： | Y151: 名称： | AI151: ， | AM151: ㎡） | AU151: 有 | AZ151: ■ | BA151: その他 | BD151: （使用部位： | BI151: 事務所 | BM151: 名称： | BP151: 石膏ボード | BW151: ， | BX151: 1100 | CA151: ㎡）
A152: 非飛散性石綿 | K152: □ | L152: 天井材 | R152: ㎡ | AO152: 非飛散性石綿 | AY152: ■ | AZ152: 天井材 | BC152: =SUM(BR153:BV155,BX157) -> 56 | BF152: ㎡
A153: 含有材料 | L153: □ | M153: 台所 | P153: （名称： | AC153: ， | AI153: ㎡） | AZ153: □ | BA153: 台所 | BD153: （名称： | BQ153: ， | BW153: ㎡）
L154: □ | M154: 浴室 | P154: （名称： | AC154: ， | AI154: ㎡） | AZ154: □ | BA154: 浴室 | BD154: （名称： | BQ154: ， | BW154: ㎡）
L155: □ | M155: トイレ | P155: （名称： | AC155: ， | AI155: ㎡） | AZ155: ■ | BA155: トイレ | BD155: （名称： | BG155: ケイ酸カルシウム板 | BQ155: ， | BR155: 56 | BW155: ㎡）
L156: □ | M156: 廊下 | P156: （名称： | AC156: ， | AI156: ㎡） | AZ156: □ | BA156: 廊下 | BD156: （名称： | BQ156: ， | BW156: ㎡）
L157: □ | M157: その他 | P157: （使用部位： | Y157: 名称： | AI157: ， | AM157: ㎡） | AZ157: □ | BA157: その他 | BD157: （使用部位： | BM157: 名称： | BW157: ， | CA157: ㎡）
K158: □ | L158: 床材 | R158: ㎡ | S158: （名称： | AH158: ） | AY158: ■ | AZ158: 床材 | BC158: 863 | BF158: ㎡ | BG158: （名称： | BJ158: Ｐタイル | BV158: ） | BW158: 内装材の合計
K159: □ | L159: その他 | O159: （使用部位： | X159: 名称： | AH159: ， | AL159: ㎡） | AY159: □ | AZ159: その他 | BC159: （使用部位： | BL159: 名称： | BV159: ， | BZ159: ㎡）
K160: 内装材の合計 | V160: ㎡ | AY160: 内装材の合計 | BE160: 2019 | BJ160: ㎡
A163: ２ 粉じん防止対策等 | AO163: ２ 粉じん防止対策等
A165: 建築物の養生 | G165: □ | H165: 防音シート | N165: □ | O165: 防じんシート | V165: □ | W165: その他（ | AN165: ） | AO165: 建築物の養生 | AU165: ■ | AV165: 防音シート | BB165: □ | BC165: 防じんシート | BJ165: □ | BK165: その他（ | CB165: ）
H166: 高さ | N166: ｍ | O166: （施工状況は別図のとおり） | AV166: 高さ | AX166: 6 | BB166: ｍ | BC166: （施工状況は別図のとおり）
A167: 湿潤化 | G167: □ | H167: 散水 | J167: （ | K167: □ | L167: ハイウォッシャー | R167: □ | S167: その他 | V167: ） | W167: □ | X167: 薬液 | Z167: （名称： | AN167: ） | AO167: 湿潤化 | AU167: ■ | AV167: 散水 | AX167: （ | AY167: ■ | AZ167: ハイウォッシャー | BF167: □ | BG167: その他 | BJ167: ） | BK167: □ | BL167: 薬液 | BN167: （名称： | CB167: ）
G168: □ | H168: その他 | K168: （ | AB168: ） | AD168: （散水栓の位置は別図のとおり） | AU168: □ | AV168: その他 | AY168: （ | BP168: ） | BR168: （散水栓の位置は別図のとおり）
A169: その他の対策 | AO169: その他の対策
A173: ３ 施工計画 | AO173: ３ 施工計画
A175: 1 | C175: 石綿含有建材の撤去方法 | P175: □ | Q175: 手作業 | AO175: 1 | AQ175: 石綿含有建材の撤去方法 | BD175: ■ | BE175: 手作業
P176: □ | Q176: 手作業・機械作業の併用 | BD176: □ | BE176: 手作業・機械作業の併用
Q177: （理由： | AN177: ） | BE177: （理由： | CB177: ）
A178: 2 | C178: 石綿含有建材撤去後の清掃方法 | P178: □ | Q178: 掃除機 | T178: （HEPAフィルター付き） | AO178: 2 | AQ178: 石綿含有建材撤去後の清掃方法 | BD178: ■ | BE178: 掃除機 | BH178: （HEPAフィルター付き）
P179: □ | Q179: その他 | T179: （ | AN179: ） | BD179: □ | BE179: その他 | BH179: （ | CB179: ）
A181: 3 | C181: 石綿含有廃棄物の搬出方法 | P181: □ | Q181: 原型のまま積込 | W181: □ | X181: 袋詰め | AB181: □ | AC181: シート掛け | AO181: 3 | AQ181: 石綿含有廃棄物の搬出方法 | BD181: ■ | BE181: 原型のまま積込 | BK181: ■ | BL181: 袋詰め | BP181: ■ | BQ181: シート掛け
P182: □ | Q182: 非飛散性石綿含有資材であることの表示 | BD182: ■ | BE182: 非飛散性石綿含有資材であることの表示
P183: □ | Q183: その他 | T183: （ | AN183: ） | BD183: □ | BE183: その他 | BH183: （ | CB183: ）
... 1 more rows

Sheet 18-1
A1: 法又は条例に基づく作業届出不要の石綿建材を含む解体・改修工事の場合 | AL1: ※掲示サイズはＡ３（42.0㎝×29.7㎝）以上
A2: 建 築 物 等 の 解 体 等 の 作 業 に 関 す る お 知 ら せ
CS3: 記入例を参考にして、入力してください。
CS6: 該当する箇所について、□→■としてください。
C8: 石綿障害予防規則、大気汚染防止法及び環境の保全と創造に関する条例の規定に基づき、適切な石綿のばく露防止対策及び石綿粉じんの飛散防止対策の実施について、
C10: 以下の通り、お知らせします。
C12: 事業場の名称 ： | V12: =一括入力シート!B11&IF(一括入力シート!B13="","",CHAR(10)&一括入力シート!B13) -> 
D18: 看 板 表 示 年 月 日 | AX18: 令和 | BC18: 年 | BG18: 月 | BK18: 日 | BM18: 元請負業者（解体工事等の施工者かつ調査者）
I20: 解体等工事期間 | AF20: 令和 | AK20: 年 | AO20: 月 | AS20: 日 | AU20: ～ | AX20: 令和 | BC20: 年 | BG20: 月 | BK20: 日 | BM20: 氏名または名称（法人にあっては代表者の氏名），住所
BN21: =一括入力シート!B65 -> 0
D22: 石綿除去（特定粉じん排出）作業等の作業期間 | AF22: 令和 | AK22: 年 | AO22: 月 | AS22: 日 | AU22: ～ | AX22: 令和 | BC22: 年 | BG22: 月 | BK22: 日
D24: 調 査 方 法 の 概 要 （ 調 査 箇 所 ） | BN24: =一括入力シート!B66 -> 0
D26: ■ | F26: 設計図書等による確認 | AU26: （調査箇所）
BN27: =一括入力シート!B67 -> 0
D28: ■ | F28: 現場における目視調査
D30: □ | F30: 分析での確認 | M30: （ | N30: □ | P30: JIS法による定性分析 | Z30: □ | AB30: JIS法による定量分析 | AL30: □ | AN30: その他 | AR30: ）
BM31: 現場責任者 氏名・連絡場所（電話）
D32: □
BR33: =一括入力シート!B75 -> 0 | CS33: 現場責任者・現場代理人の連絡先が
D34: 調査結果の概要（部分と石綿含有建材（特定建築材料）の種類、判断根拠） | CS34: 一括入力シートと異なる場合は直接入力してください。
BN35: （電話） | BR35: =一括入力シート!B77 -> 0 | BX35: - | BZ35: =一括入力シート!C77 -> 0 | CH35: - | CJ35: =一括入力シート!D77 -> 0
BM38: 調査者（分析等の実施者）
BM42: 氏名または名称（法人にあっては代表者の氏名），住所
C48: 石綿除去等作業（特定粉じん排出等作業）の方法
D50: 石綿含有建材（特定建築材料）の処理方法 | AL50: □ | AN50: 除去 | AT50: ・ | AV50: □ | AX50: その他
D52: 特定粉じんの排出又は飛散の抑制方法
BM53: その他必要な事項
CS54: 該当するものを選択してください。
D56: 使用する資材及びその種類
D60: 備考：その他の条例等の届出年月日
... 1 more rows

Sheet 18-2
A1: 法又は条例に基づく作業届出の対象工事の場合 | AL1: ※掲示サイズはＡ３（42.0㎝×29.7㎝）以上 | BL1: ※下地の色は飛散性アスベストが黄色、非飛散性アスベストが白色
A2: 建 築 物 等 の 解 体 等 の 作 業 に 関 す る お 知 ら せ | CV2: 記入例にしたがって入力してください。
D5: □ | F5: 石綿障害予防規則第４条の２及び大気汚染防止法第18条の15第６項の規定による事前調査結果の報告を行っております。 | CV5: 該当するものについて、□→■としてください。
D7: また、 | H7: □ | J7: 労働安全衛生法第88条第３項（労働安全衛生規則第90条第5号の2）の規定による計画の届出
H9: □ | J9: 大気汚染防止法第18条の17第１項の規定による作業実施の届出
H11: □ | J11: 環境の保全と創造に関する条例第57条の規定による作業の届出 | BV11: を行っております。
C13: 石綿障害予防規則、大気汚染防止法及び環境の保全と創造に関する条例の規定に基づき、適切な石綿のばく露防止対策及び石綿粉じんの飛散防止対策の実施について、以下のとおり、お知らせします。
C16: 事業場の名称 | L16: =一括入力シート!B11&IF(一括入力シート!B13="","",CHAR(10)&一括入力シート!B13) -> 
B19: 届出先及び 届出年月日 | AI19: =IF(CW29="","",IF(CW29="西宮労働基準監督署","（0798-26-3733）",IF(CW29="神戸東労働基準監督署","（078-332-5353）",IF(CW29="神戸西労働基準監督署","（078-576-1831）","")))) ->  | BA19: 令和 | BF19: 年 | BJ19: 月 | BN19: 日 | BP19: 発 注 者
L21: 神戸市環境局環境保全部環境保全指導課 | AI21: （078-595-6222） | BA21: 令和 | BF21: 年 | BJ21: 月 | BN21: 日 | BP21: 氏名または名称（法人にあっては代表者の氏名），住所 | CV21: 届出先の労働基準監督署
CV22: （西宮,神戸東,神戸西）を選択してください。
D23: 調 査 終 了 年 月 日 | BA23: 令和 | BF23: 年 | BJ23: 月 | BN23: 日 | BQ23: 神戸市長田区二葉町5-1-32 新長田合同庁舎8階
D25: 看 板 表 示 年 月 日 | BA25: 令和 | BF25: 年 | BJ25: 月 | BN25: 日
BQ26: =CONCATENATE(一括入力シート!D50," 代表者 ",一括入力シート!A51," ",一括入力シート!B51) -> 神戸住環境整備公社 代表者 理事長 碓永信幸
I27: 解体等工事の期間 | AF27: 令和 | AK27: 年 | AO27: 月 | AS27: 日 | AU27: ～ | BA27: 令和 | BF27: 年 | BJ27: 月 | BN27: 日
BQ28: =CONCATENATE("（工事担当課）",一括入力シート!B53,"部",一括入力シート!D53,"課") -> （工事担当課）施設整備部課
B29: 石綿除去（特定粉じん排出）作業等の作業期間 | AF29: 令和 | AK29: 年 | AO29: 月 | AS29: 日 | AU29: ～ | BA29: 令和 | BF29: 年 | BJ29: 月 | BN29: 日
D31: 調 査 方 法 の 概 要 （ 調 査 箇 所 ） | BP31: 元請負業者（工事の施工者かつ調査者）
D33: ■ | F33: 設計図書等による確認 | R33: ■ | T33: 現場における目視調査 | AZ33: （調査箇所） | BP33: 氏名または名称（法人にあっては代表者の氏名），住所
BQ34: =一括入力シート!B65 -> 0
D35: □ | F35: 分析での確認 | M35: （ | N35: □ | P35: JIS法による定性分析 | Z35: □ | AB35: JIS法による定量分析 | AL35: □ | AN35: その他 | AR35: ）
D37: □ | BQ37: =一括入力シート!B66 -> 0
D39: 調 査 結 果 の 概 要 （ 部 分 と 特 定 建 築 材 料 の 種 類、判断根拠 ） | BQ39: =一括入力シート!B67 -> 0
BP41: 現場責任者 氏名・連絡場所（電話）
BQ42: =一括入力シート!B75 -> 0
BQ44: （電話） | BU44: =一括入力シート!B77 -> 0 | CA44: - | CD44: =一括入力シート!C77 -> 0 | CJ44: - | CL44: =一括入力シート!D77 -> 0 | CV44: 現場責任者・現場代理人の連絡先が
CV45: 一括入力シートと異なる場合は直接入力してください。
BP46: 石綿作業主任者氏名
CB47: を石綿作業主任者に選任しています。
CV48: 作業主任者は直接入力してください。
BP49: 調査を行った者（分析等の実施者）
D51: 石 綿 除 去 等 作 業 （ 特 定 粉 じ ん 排 出 等 作 業 の 方 法 ） | BP51: 氏名または名称，住所
BP52: ・事前調査・試料採取を実施した者
C53: 石綿含有建材（特定建築材料）の処理方法 | AA53: □ | AC53: 除去 | AI53: □ | AK53: 囲い込み | AT53: □ | AV53: 封じ込め | BE53: □ | BG53: その他
B55: 排気装置 集じん・ | F55: 機 種 ・ 型 式 ・ 設 置 数
BP56: ・分析を実施した者
F57: 排 気 能 力 （m2/min）
F59: 使用するフィルタの種類 およびその集じん効果 （％）
BP61: その他事項
C62: 使用する資材およびその種類
C64: その他の石綿（特定粉じん）の排出または飛散の抑制方法
C67: 備考：その他の条例等の届出年月日 | BA67: 令和 | BF67: 年 | BJ67: 月 | BN67: 日
... 1 more rows

Sheet 19
U2: 作成：令和 | AC2: 年 | AF2: 月 | AI2: 日 | AJ2: （ | AK2: / | AN2: ） | AO2: 発行年月日(曜日)を入力してください。（印刷後の手書き可）
Q4: 設備課 | AC4: 建築課
B5: ■ | E5: 打 合 せ 簿 | Q5: 総括監督員 | U5: 主任監督員 | Y5: 担当監督員 | AC5: 総括監督員 | AG5: 主任監督員 | AK5: 担当監督員 | AO5: 該当する箇所について、□→■としてください。
B7: □ | E7: 指 示 書 | AP7: 年 | AQ7: 月 | AR7: 日 | AS7: 年月日 | AT7: 和暦年度
AP8: =一括入力シート!B17 -> 0 | AQ8: =一括入力シート!C17 -> 0 | AR8: =一括入力シート!D17 -> 0 | AS8: =IFERROR(("R"&AP8&"."&AQ8&"."&AR8)*1,"") ->  | AT8: =IFERROR(EDATE(AS8,-3),"") -> 
A11: 令和 | C11: =AT8 ->  | E11: 年度 | G11: 工事名 | K11: =一括入力シート!B9 -> 0 | AO11: ※公共建築工事標準仕様書（建築工事編）1.1.2用語の定義より抜粋
AO13: 書面とは？
A14: № | C14: 図面番号 | G14: 指 示 事 項 | AO14: 発行年月日が記載され，署名又は捺印された文書をいう。
AO16: 「監督職員の承諾」
AO17: 受注者等が監督職員に対し，書面で申し出た事項について監督職員が書面をもって了解することをいう。
AO19: 「監督職員の指示」
AO20: 監督職員が受注者に対し，工事の施工上必要な事項を書面によって示すことをいう。
AO22: 「監督職員と協議」
AO23: 協議事項について，監督職員と受注者等とが結論を得るために合議し，その結果を書面に残すことをいう。
AK62: 請 負 人
U69: 作成：令和 | AC69: 年 | AF69: 月 | AI69: 日 | AJ69: （ | AK69: / | AN69: ）
A71: № | C71: 図面番号 | G71: 指 示 事 項
AK129: 請 負 人
... 1 more rows

Sheet 19-1
U2: 作成：令和 | AC2: 年 | AF2: 月 | AI2: 日 | AJ2: （ | AK2: / | AN2: ） | AO2: 発行年月日(曜日)を入力してください。（印刷後の手書き可）
Q4: 設備課 | AC4: 建築課
B5: ■ | E5: 打 合 せ 簿 | Q5: 総括監督員 | U5: 主任監督員 | Y5: 担当監督員 | AC5: 総括監督員 | AG5: 主任監督員 | AK5: 担当監督員 | AO5: 該当する箇所について、□→■としてください。
B7: □ | E7: 指 示 書 | AP7: 年 | AQ7: 月 | AR7: 日 | AS7: 年月日 | AT7: 和暦年度
AP8: =一括入力シート!B17 -> 0 | AQ8: =一括入力シート!C17 -> 0 | AR8: =一括入力シート!D17 -> 0 | AS8: =IFERROR(("R"&AP8&"."&AQ8&"."&AR8)*1,"") ->  | AT8: =IFERROR(EDATE(AS8,-3),"") -> 
A11: 令和 | C11: =AT8 ->  | E11: 年度 | G11: 工事名 | K11: =一括入力シート!B9 -> 0 | AO11: ※公共建築工事標準仕様書（建築工事編）1.1.2用語の定義より抜粋
AO13: 書面とは？
A14: № | C14: 図面番号 | G14: 指 示 事 項 | AO14: 発行年月日が記載され，署名又は捺印された文書をいう。
AO16: 「監督職員の承諾」
AO17: 受注者等が監督職員に対し，書面で申し出た事項について監督職員が書面をもって了解することをいう。
AO19: 「監督職員の指示」
AO20: 監督職員が受注者に対し，工事の施工上必要な事項を書面によって示すことをいう。
AO22: 「監督職員と協議」
AO23: 協議事項について，監督職員と受注者等とが結論を得るために合議し，その結果を書面に残すことをいう。
AK62: 請 負 人
U69: 作成：令和 | AC69: 年 | AF69: 月 | AI69: 日 | AJ69: （ | AK69: / | AN69: ）
A71: № | C71: 図面番号 | G71: 指 示 事 項
AK129: 請 負 人
... 1 more rows

Sheet 19-2
U2: 作成：令和 | AC2: 年 | AF2: 月 | AI2: 日 | AJ2: （ | AK2: / | AN2: ） | AO2: 発行年月日(曜日)を入力してください。（印刷後の手書き可）
Q4: 設備課 | AC4: 建築課
B5: ■ | E5: 打 合 せ 簿 | Q5: 総括監督員 | U5: 主任監督員 | Y5: 担当監督員 | AC5: 総括監督員 | AG5: 主任監督員 | AK5: 担当監督員 | AO5: 該当する箇所について、□→■としてください。
B7: □ | E7: 指 示 書 | AP7: 年 | AQ7: 月 | AR7: 日 | AS7: 年月日 | AT7: 和暦年度
AP8: =一括入力シート!B17 -> 0 | AQ8: =一括入力シート!C17 -> 0 | AR8: =一括入力シート!D17 -> 0 | AS8: =IFERROR(("R"&AP8&"."&AQ8&"."&AR8)*1,"") ->  | AT8: =IFERROR(EDATE(AS8,-3),"") -> 
A11: 令和 | C11: =AT8 ->  | E11: 年度 | G11: 工事名 | K11: =一括入力シート!B9 -> 0 | AO11: ※公共建築工事標準仕様書（建築工事編）1.1.2用語の定義より抜粋
AO13: 書面とは？
A14: № | C14: 図面番号 | G14: 指 示 事 項 | AO14: 発行年月日が記載され，署名又は捺印された文書をいう。
AO16: 「監督職員の承諾」
AO17: 受注者等が監督職員に対し，書面で申し出た事項について監督職員が書面をもって了解することをいう。
AO19: 「監督職員の指示」
AO20: 監督職員が受注者に対し，工事の施工上必要な事項を書面によって示すことをいう。
AO22: 「監督職員と協議」
AO23: 協議事項について，監督職員と受注者等とが結論を得るために合議し，その結果を書面に残すことをいう。
AK62: 請 負 人
U69: 作成：令和 | AC69: 年 | AF69: 月 | AI69: 日 | AJ69: （ | AK69: / | AN69: ）
A71: № | C71: 図面番号 | G71: 指 示 事 項
AK129: 請 負 人
... 1 more rows

Sheet 20
AA7: 令和 | AE7: 年 | AI7: 月 | AM7: 日
AO8: 提出年月日を直接入力してください。
B11: =CONCATENATE(一括入力シート!D50," ",一括入力シート!B53,"部 ",一括入力シート!D53,"課長 宛") -> 神戸住環境整備公社 施設整備部 課長 宛
T15: 請負人 | Y15: =一括入力シート!B66&CHAR(10)&一括入力シート!B67 -> 
T18: 現場代理人 | Y18: =一括入力シート!B75 -> 0
T21: 連絡先 | Y21: =一括入力シート!B77 -> 0 | AB21: - | AD21: =一括入力シート!C77 -> 0 | AI21: - | AK21: =一括入力シート!D77 -> 0
AO23: 一括入力シートの現場代理人連絡先と異なる場合は手入力してください。
A25: 検 査 職 員 の 派 遣 に つ い て （依 頼）
A32: 住 所
A33: 下記の工事について、現地等において検査の必要がありますので、検査職員の派遣を依頼します。
A38: 記
A42: １．工事名 | H42: =一括入力シート!B9 -> 0
A45: ２．検査日時 | H45: 令和 | O45: 年 | U45: 月 | AA45: 日 | AG45: 時から
A48: ３．検査場所 | H48: （名称）
H51: （住所）
A54: ４．検査対象
A59: ５．検査内容
... 1 more rows

Sheet 21
AO2: 提出年月日を直接入力してください。
AA4: 令和 | AE4: 年 | AI4: 月 | AM4: 日
A7: =CONCATENATE(一括入力シート!D50," ",一括入力シート!B53,"部 ",一括入力シート!D53,"課長 宛") -> 神戸住環境整備公社 施設整備部 課長 宛
T11: 請負人 | Y11: =一括入力シート!B66&CHAR(10)&一括入力シート!B67 -> 
T14: 現場代理人 | Y14: =一括入力シート!B75 -> 0
T17: 連絡先 | Y17: =一括入力シート!B77 -> 0 | AC17: - | AE17: =一括入力シート!C77 -> 0 | AI17: - | AK17: =一括入力シート!D77 -> 0
AO19: 一括入力シートの現場代理人連絡先と異なる場合は手入力してください。
A21: 休日 | T21: 作 業 届
AO23: 届け出る作業（夜間、休日、休日夜間）を選んでください。
A27: 下記の工事につきまして 下記の作業をしたいので、許可くださるようお願いいたします。
A32: 記
A37: １．工事名 | H37: =一括入力シート!B9 -> 0
A41: ２．期 間 | H41: 令和 | L41: 年 | P41: 月 | T41: 日 | V41: ～ | X41: 令和 | AB41: 年 | AF41: 月 | AJ41: 日
A45: ３．時 間 | L45: 時 | R45: 分 | T45: ～ | Z45: 時 | AF45: 分 | AO45: 24時間表記で直接入力してください。
A49: ４．作業内容 | AO49: 作業内容を簡潔に記載ください。
A53: ５．理 由 | AO53: （例）平日は施設利用者多数で作業安全確保が困難なため
... 1 more rows

Sheet 22
AC2: 令和 | AG2: 年 | AJ2: 月 | AM2: 日 | AO2: 提出年月日を直接入力してください。
A5: 長期休暇の現場管理及び緊急連絡方法について
A9: =CONCATENATE(一括入力シート!D50," ",一括入力シート!B53,"部",一括入力シート!D53,"課長 宛") -> 神戸住環境整備公社 施設整備部課長 宛
Q12: 請 負 人 | V12: =一括入力シート!B66&CHAR(10)&一括入力シート!B67 -> 
Q14: 現場代理人 | V14: =一括入力シート!B75 -> 0
Q16: 連 絡 先 | V16: =一括入力シート!B77 -> 0 | Z16: - | AA16: =一括入力シート!C77 -> 0 | AE16: - | AF16: =一括入力シート!D77 -> 0
AO17: 一括入力シートの現場代理人連絡先と異なる場合は手入力してください。
I19: =一括入力シート!B9 -> 0
A20: １． | C20: 工事名
I23: =一括入力シート!B11&IF(一括入力シート!B13="","",CHAR(10)&一括入力シート!B13) -> 
A24: ２． | C24: 工事場所
AO26: 該当する箇所について、□→■としてください。
AO27: 電話番号を直接入力してください。
A28: ３． | C28: 現場連絡先 | I28: □ | J28: 公社・委託監督員事務所 | Z28: ℡ | AB28: ( | AF28: ) | AJ28: -
I30: □ | J30: 請負人事務所 | Z30: ℡ | AB30: ( | AF30: ) | AJ30: -
I33: 令和 | M33: 年 | Q33: 月 | U33: 日 | W33: ～ | Y33: 令和 | AC33: 年 | AG33: 月 | AK33: 日
A34: ４． | C34: 現場休業期間
A38: ５． | C38: 緊急連絡先
C40: □ | D40: 請負人会社 | J40: ℡ | L40: ( | P40: ) | T40: -
C42: □ | D42: 現場代理人氏名 | W42: 自宅 | Z42: ℡ | AB42: ( | AF42: ) | AJ42: - | AO42: 該当する箇所について、□→■としてください。
W43: 携帯 | Z43: ℡ | AB43: ( | AF43: ) | AJ43: - | AO43: 電話番号を直接入力してください。
C44: □ | D44: 現場員氏名 | W44: 自宅 | Z44: ℡ | AB44: ( | AF44: ) | AJ44: -
W45: 携帯 | Z45: ℡ | AB45: ( | AF45: ) | AJ45: -
C46: □ | D46: 警備会社名 | W46: 会社 | Z46: ℡ | AB46: ( | AF46: ) | AJ46: -
A50: ６． | C50: 管理方法
C52: □ | D52: 警備員 | I52: ･･････ | L52: □ | M52: 常駐 | AO52: 該当する箇所について、□→■としてください。
L53: □ | M53: １日 | T53: 回以上の巡回警備を実施
C54: □ | D54: 現場員 | I54: ･･････ | L54: □ | M54: 常駐
L55: □ | M55: １日 | T55: 回以上の巡回警備を実施
C56: □ | D56: 進入路 | I56: ･･････ | L56: □ | M56: 工事用門扉施錠
L57: □ | M57: 施設管理者による管理
C58: □ | D58: 危険箇所 | I58: ･･････ | L58: ※ | M58: なし
L59: □
C60: □ | D60: 危険物 | I60: ･･････ | L60: ※ | M60: なし
L61: □
C62: □ | D62: その他 | I62: ･･････ | L62: □
A66: ７． | C66: 現場到着までに要する時間 | V66: 時間 | AC66: 分
... 1 more rows

Sheet 23
A1: =一括入力シート!I50 -> （一財）神戸住環境整備公社 | N1: 担当者 | Q1: =一括入力シート!B54 -> 0 | W1: 宛 | AA1: TEL | AD1: =一括入力シート!B58 -> 0 | AF1: - | AG1: =一括入力シート!C58 -> 0 | AJ1: - | AK1: =一括入力シート!D58 -> 0
B2: =CONCATENATE(一括入力シート!B53,"部") -> 施設整備部 | I2: =CONCATENATE(一括入力シート!D53,"課") -> 課
AA3: FAX | AD3: =一括入力シート!B60 -> 0 | AF3: - | AG3: =一括入力シート!C60 -> 0 | AJ3: - | AK3: =一括入力シート!D60 -> 0
A5: 台風時等の工事現場安全対策報告 | Y5: 報告日時 | AC5: 令和 | AH5: 年 | AK5: 月 | AN5: 日 | AO5: 報告年月日は直接入力してください。
AK8: 時 | AN8: 分 | AO8: 報告時間は24時間表記で直接入力してください。 | BE8: (例.13時00分）
A10: 工 事 名 | E10: =一括入力シート!B9 -> 0 | T10: 請 負 人 | Y10: =一括入力シート!B66&CHAR(10)&一括入力シート!B67 -> 
A14: 工事場所 | E14: =一括入力シート!B11&IF(一括入力シート!B13="","",CHAR(10)&一括入力シート!B13) ->  | T14: 緊急連絡先 | Y14: =一括入力シート!B75 -> 0
T16: 氏名・電話 | Y16: （電話） | AB16: ( | AC16: =一括入力シート!B77 -> 0 | AF16: ) | AG16: =一括入力シート!C77 -> 0 | AJ16: - | AK16: =一括入力シート!D77 -> 0 | AO16: 一括入力シートの現場代理人の緊急連絡先と異なる場合は直接入力してください。
A18: 報 告 内 容
A21: 項 目 | E21: 内 容 | N21: 措 置 | AO21: 該当する箇所について、□→■としてください。
AR22: 記入例
A23: 管理体制
E24: ■ | F24: 現場確認時刻 | O24: 令和 | S24: 年 | V24: 月 | Y24: 日 | Z24: [ | AA24: □ | AB24: 午前 | AD24: □ | AE24: 午後 | AG24: ] | AI24: 時 | AL24: 分ごろ | AR24: 管理体制
AV25: ■ | AW25: 現場確認時刻 | BF25: 令和 | BH25: 2 | BJ25: 年 | BK25: 7 | BM25: 月 | BN25: 29 | BP25: 日 | BQ25: [ | BR25: ■ | BS25: 午前 | BU25: □ | BV25: 午後 | BX25: ] | BY25: 8 | BZ25: 時 | CB25: 30 | CC25: 分ごろ
E26: ■ | F26: 巡回の方法 | O26: □ | P26: 常 駐 | T26: □ | U26: １日 | Z26: 回 | AB26: 、 | AE26: □ | AF26: 警備員 | AJ26: □ | AK26: 現場員
N27: （ | AM27: ） | AV27: ■ | AW27: 巡回の方法 | BF27: ■ | BG27: 常 駐 | BK27: □ | BL27: １日 | BQ27: 回 | BS27: 、 | BV27: ■ | BW27: 警備員 | CA27: □ | CB27: 現場員
E28: □ | BE28: （ | CD28: ）
AV29: □
A30: 仮囲い等
E31: □ | F31: 地盤への固定等 | N31: ○ | AR31: 仮囲い等
AV32: ■ | AW32: 地盤への固定等 | BE32: ○ | BF32: 支柱控えを1.9ｍ毎に増設し、アンカーを打込み
E33: □ | F33: 各部接合状態 | N33: ○
AV34: ■ | AW34: 各部接合状態 | BE34: ○ | BF34: クランプの全数点検、緩みは締め直し
E35: □ | N35: ○
AV36: □ | BE36: ○ | BF36: Ａ型バリケードを撤去
E37: □ | N37: ○
AV38: □ | BE38: ○
E39: □ | N39: ○
AV40: □ | BE40: ○
A41: 足場
E42: □ | F42: 各部接合状態 | N42: ○ | AR42: 足場
AV43: ■ | AW43: 各部接合状態 | BE43: ○ | BF43: クランプの全数点検、緩みは締め直し
E44: □ | F44: 躯体等への固定度 | N44: ○
AV45: ■ | AW45: 躯体等への固定度 | BE45: ○ | BF45: 躯体への控えアンカーを20本打ち増し
E46: □ | F46: 養生シート | N46: ○
AV47: ■ | AW47: 養生シート | BE47: ○ | BF47: 養生シートのすべてを巻取りおよび撤去
E48: □ | N48: ○
AV49: □ | BE49: ○
E50: □ | N50: ○
AV51: □ | BE51: ○
A52: その他
E53: □ | F53: 軟弱地盤対策 | N53: ○ | AR53: その他
AV54: ■ | AW54: 軟弱地盤対策 | BE54: ○
E55: □ | F55: 大型建設機械 | N55: ○
AV56: ■ | AW56: 大型建設機械 | BE56: ○ | BF56: ジブを地上に倒し強風時の転倒防止を講じた
E57: □ | F57: 資材置場の養生 | N57: ○
AV58: ■ | AW58: 資材置場の養生 | BE58: ○ | BF58: ジブを地上に倒し強風時の転倒防止を講じた
E59: □ | N59: ○
AV60: □ | BE60: ○
E61: □ | N61: ○
AV62: □ | BE62: ○
... 1 more rows

Sheet 24
A3: =一括入力シート!I50 -> （一財）神戸住環境整備公社 | N3: 担当者 | Q3: =一括入力シート!B54 -> 0 | W3: 宛 | AA3: TEL | AD3: =一括入力シート!B58 -> 0 | AF3: - | AG3: =一括入力シート!C58 -> 0 | AJ3: - | AK3: =一括入力シート!D58 -> 0
A4: =CONCATENATE(一括入力シート!B53,"部") -> 施設整備部 | I4: =CONCATENATE(一括入力シート!D53,"課") -> 課
AA5: FAX | AD5: =一括入力シート!B60 -> 0 | AF5: - | AG5: =一括入力シート!C60 -> 0 | AJ5: - | AK5: =一括入力シート!D60 -> 0
A7: 工事現場の熱中症予防対策報告 | W7: 報告日時 | AC7: 令和 | AH7: 年 | AK7: 月 | AN7: 日 | AO7: 報告年月日は直接入力してください。
AK10: 時 | AN10: 分 | AO10: 報告時間は24時間表記で直接入力してください。
A12: 工 事 名 | E12: =一括入力シート!B9 -> 0 | R12: 請 負 人 | W12: =一括入力シート!B66&CHAR(10)&一括入力シート!B67 -> 
A15: 工事場所 | E15: =一括入力シート!B11&IF(一括入力シート!B13="","",CHAR(10)&一括入力シート!B13) ->  | R15: 緊急連絡先 氏名・電話 | W15: =一括入力シート!B75 -> 0
W17: （電話） | AB17: ( | AC17: =一括入力シート!B77 -> 0 | AF17: ) | AG17: =一括入力シート!C77 -> 0 | AJ17: - | AK17: =一括入力シート!D77 -> 0 | AO17: 一括入力シートの現場代理人の緊急連絡先と異なる場合は直接入力してください。
A18: 報 告 内 容
A20: 項 目 | E20: 内 容 | AE20: 「いいえ」の場合の対応
A22: 作業環境 | E22: WBGT値を活用し、熱中症予防対策を実施していますか （WBGT値とは、暑熱環境による熱ストレスの評価を行う暑さ指数のことで、熱中症のリスクを客観的に判断する値のこと）
W25: □ | X25: はい | AA25: □ | AB25: いいえ | AO25: 該当する箇所について、□→■としてください。
E26: 作業場所の近くに涼しい休憩場所（冷房の効いた部屋や日陰）はありますか
W28: □ | X28: はい | AA28: □ | AB28: いいえ
E29: 作業場所、休憩場所にスポーツドリンク等を備え、作業中、休憩時に作業者が容易に水分や塩分を補給できるようにしていますか
W31: □ | X31: はい | AA31: □ | AB31: いいえ
E32: 身体を冷やすための準備（氷や冷たいおしぼり等）をしていますか
W34: □ | X34: はい | AA34: □ | AB34: いいえ
A35: 作業管理 | E35: 作業状況に応じ、作業休止時間や休憩時間の適切な確保を行なっていますか
W37: □ | X37: はい | AA37: □ | AB37: いいえ
E38: 休憩時には、休憩所、または日陰等の直射日光や照り返しを遮ることができる場所で休憩するようにさせていますか
W40: □ | X40: はい | AA40: □ | AB40: いいえ
E41: 自覚症状の有無にかかわらず、作業者に水分・塩分を摂取させていますか
W43: □ | X43: はい | AA43: □ | AB43: いいえ
E44: 作業中の巡視を頻繁に行っていますか（午前1回、午後2回程度）
W46: □ | X46: はい | AA46: □ | AB46: いいえ
A47: 健康管理 | E47: 健康診断に基づき、就業場所の変更・作業転換などの措置を講じていますか
W49: □ | X49: はい | AA49: □ | AB49: いいえ
E50: 日常の健康管理について、作業者に指導していますか
W52: □ | X52: はい | AA52: □ | AB52: いいえ
E53: 朝礼、作業開始前、作業中の巡視時に、作業者の健康状態を確認していますか
W55: □ | X55: はい | AA55: □ | AB55: いいえ
E56: 体温計等を常備し、必要に応じて身体の状況を確認できるようにしていますか
W58: □ | X58: はい | AA58: □ | AB58: いいえ
A59: 衛生教育 | E59: 熱中症を予防するための労働衛生教育を行っていますか
W61: □ | X61: はい | AA61: □ | AB61: いいえ
A62: 救急措置 | E62: 熱中症の発症に備えて、緊急連絡網を作成し、関係者に周知していますか
W64: □ | X64: はい | AA64: □ | AB64: いいえ
E65: 熱中症を疑わせる症状が現れた場合の救急処置を周知していますか
W67: □ | X67: はい | AA67: □ | AB67: いいえ
... 1 more rows

Sheet 25
AD3: =一括入力シート!B50&CHAR(10)&一括入力シート!D50 -> 一般財団法人 神戸住環境整備公社
A5: 工 事 安 全 点 検 表
A8: 工事名 ： | F8: =一括入力シート!B9 -> 0 | U8: ＜記入要領＞
V9: １ 点検結果は、点検当日の作業所の状況を記入して下さい。
A10: 請負人 ： | F10: =一括入力シート!B66 -> 0
V11: ２ 点検の結果、「否」の場合は行った措置内容を記入して下さい。
A12: 現場代理人： | F12: =一括入力シート!B75 -> 0
V13: ３ 是正が完了し確認を行った場合は、是正確認欄に「済」を記入して下さい。
A14: 点検実施日： | F14: 令和 | J14: 年 | M14: 月 | P14: 日 | AO14: 点検実施日を直接入力してください。
A17: 日 常 管 理 ・ 安 全 教 育
A19: 点 検 項 目 | X19: 準拠条項 | AB19: 点検 結果 | AE19: 措 置 内 容 | AM19: 是正 確認
AB20: 適 | AC20: 否 | AD20: 該当 なし
A22: 個別工事の着手前に、元請と協力業者が安全について打合わせを実施しているか | AB22: □ | AC22: □ | AD22: □
A23: 安全施工サイクルの諸活動が、計画にもとづき実施されているか | AB23: □ | AC23: □ | AD23: □
B24: 毎日 | C24: 安全朝礼 | AB24: □ | AC24: □ | AD24: □
C25: 作業開始前KYミーティングの実施状況、記録 | AB25: □ | AC25: □ | AD25: □
C26: 設備、機械、環境点検測定 | AB26: □ | AC26: □ | AD26: □
C27: 特定元方事業者による作業所の巡視（1回以上／1日） | X27: 安衛則637 | AB27: □ | AC27: □ | AD27: □
C28: 作業指示書の内容は、具体的に打合せ、指示がされているか | AB28: □ | AC28: □ | AD28: □
C29: 作業中の指導・監督（指示事項の是正確認をしているか） | AB29: □ | AC29: □ | AD29: □
C30: 元方事業者（統括安全責任者）と協力会社間、協力会社相互間における連絡調整 | X30: 安衛則636 | AB30: □ | AC30: □ | AD30: □
C31: 持場片付け | AB31: □ | AC31: □ | AD31: □
C32: 終了時確認 | AB32: □ | AC32: □ | AD32: □
AB33: □ | AC33: □ | AD33: □
B34: 毎週 | C34: 週間点検（ | K34: 曜日 | O34: 項実施） | AB34: □ | AC34: □ | AD34: □
C35: 一斉片付け（ | K35: 曜日 | O35: 項実施） | AB35: □ | AC35: □ | AD35: □
C36: 週間工程打合せ（ | N36: 曜日 | R36: 項実施） | AB36: □ | AC36: □ | AD36: □
C37: 全ての協力業者が参加する協議会を設置し、定期的に会議を開催 | X37: 安衛則635 | AB37: □ | AC37: □ | AD37: □
M38: （直近 | R38: / | T38: 開催）
AB39: □ | AC39: □ | AD39: □
B40: 毎月 | C40: 月次災害防止協議会 （直近 | R40: / | T40: 開催） | AB40: □ | AC40: □ | AD40: □
AB41: □ | AC41: □ | AD41: □
B42: 随時 | C42: 新規入場者の受入教育入場予定業者との事前打合せ | AB42: □ | AC42: □ | AD42: □
AB43: □ | AC43: □ | AD43: □
A44: 新規入場社者教育を実施しているか、又、実施記録はあるか | X44: 安衛則35 | AB44: □ | AC44: □ | AD44: □
A45: 危険、有害業務に対する特別教育を実施しているか、又、実施記録はあるか | X45: 安衛則36 | AB45: □ | AC45: □ | AD45: □
A46: 協力業者の各職長は職長教育を受けているか、又、実施記録はあるか | X46: 安衛則40 | AB46: □ | AC46: □ | AD46: □
A47: 社内安全パトロールの実施 | AB47: □ | AC47: □ | AD47: □
A48: （ | F48: 回／月・直近実施日 | R48: 月 | V48: 日）
A49: 作業主任者、作業指揮者の直接指揮を指導しているか | AB49: □ | AC49: □ | AD49: □
AB50: □ | AC50: □ | AD50: □
A51: 設 置 届 ・ 報 告
A53: 点 検 項 目 | X53: 準拠条項 | AB53: 点検 結果 | AE53: 措 置 内 容 | AM53: 是正 確認
AB54: 適 | AC54: 否 | AD54: 該当 なし
A56: 機械の設置届、報告はなされているか | AB56: □ | AC56: □ | AD56: □
B57: 着工30日前設置届（報告） | AB57: □ | AC57: □ | AD57: □ | AE57: 届出日（ | AL57: ）
B58: 移動式クレーン設置報告着工事前デリック着工30日前設置届（報告） | AB58: □ | AC58: □ | AD58: □ | AE58: 届出日（ | AL58: ）
B59: エレベーター着工30日前設置届（報告） | AB59: □ | AC59: □ | AD59: □ | AE59: 届出日（ | AL59: ）
B60: 建設用リフト着工30日前設置届（報告） | AB60: □ | AC60: □ | AD60: □ | AE60: 届出日（ | AL60: ）
B61: ゴンドラ着工30日前設置届（報告） | AB61: □ | AC61: □ | AD61: □ | AE61: 届出日（ | AL61: ）
AB62: □ | AC62: □ | AD62: □ | AE62: 届出日（ | AL62: ）
AB63: □ | AC63: □ | AD63: □
A65: 安衛則：労働安全衛生規則
A69: 整 理 整 頓
A71: 点 検 項 目 | X71: 準拠条項 | AB71: 点検 結果 | AE71: 措 置 内 容 | AM71: 是正 確認
AB72: 適 | AC72: 否 | AD72: 該当 なし
A74: 整理整頓はよいか | AB74: □ | AC74: □ | AD74: □
B75: 物の置き方は良いか（安定性、高さ、荷くずれ、ころがり防止、種類別仕分け、採光妨害防止、非常口前の確保） | AB75: □ | AC75: □ | AD75: □
B77: 道路、通路上の積置きがないか | AB77: □ | AC77: □ | AD77: □
B78: 不要物は処分されているか | AB78: □ | AC78: □ | AD78: □
B79: 危険物は厳正に保管されているか | AB79: □ | AC79: □ | AD79: □
B80: 水たまりは補修されているか | AB80: □ | AC80: □ | AD80: □
A81: 通路は安全に確保されているか | X81: 安衛則540 | AB81: □ | AC81: □ | AD81: □
A82: 危険物の置場は整理整頓し、可燃性の物又は酸化性の物を置いていないか | X82: 安衛則256-5 | AB82: □ | AC82: □ | AD82: □
A84: 不要材、廃材の整理はよいか | AB84: □ | AC84: □ | AD84: □
A85: 第三者災害防止措置はよいか | AB85: □ | AC85: □ | AD85: □
B86: 足場上の不要物は除去されているか | AB86: □ | AC86: □ | AD86: □
B87: 強風による飛散防止対策はとられているか | AB87: □ | AC87: □ | AD87: □
B88: 塵埃物への散水は行われているか | AB88: □ | AC88: □ | AD88: □
A89: 工事現場進入口の履工板等で、滑りかつまづきによる歩行者の転倒のおそれはないか | AB89: □ | AC89: □ | AD89: □
A91: 工事現場進入口、及び周辺道路の路面の清掃・散水・養生の状況は適切か | AB91: □ | AC91: □ | AD91: □
A93: 洗車施設（設備）は設置しているか、排水処理は適切か | AB93: □ | AC93: □ | AD93: □
AB94: □ | AC94: □ | AD94: □
A95: 現 場 内 通 路 （ 屋 外 ・ 屋 内 ）
A97: 点 検 項 目 | X97: 準拠条項 | AB97: 点検 結果 | AE97: 措 置 内 容 | AM97: 是正 確認
AB98: 適 | AC98: 否 | AD98: 該当 なし
A100: 通路の安全確保はよいか | AB100: □ | AC100: □ | AD100: □
B101: 安全通路の表示はあるか | X101: 安衛則540 | AB101: □ | AC101: □ | AD101: □
B102: 照明は確保されているか | X102: 安衛則541 | AB102: □ | AC102: □ | AD102: □
B103: 高さ1.8m以内に障害物が置かれていないか | X103: 安衛則542 | AB103: □ | AC103: □ | AD103: □
B104: 機械間の通路は80㎝以上確保されているか | X104: 安衛則543 | AB104: □ | AC104: □ | AD104: □
B105: 架設通路は安衛法に適合しているか | X105: 安衛則552 | AB105: □ | AC105: □ | AD105: □
B106: 滑り、つまづき、踏み抜きの危険がないか | X106: 安衛則542 | AB106: □ | AC106: □ | AD106: □
B107: 通路上作業は原則的に禁止されているか | AB107: □ | AC107: □ | AD107: □
B108: 墜落防止の対策がとられているか（排水溝、開口部、マンホール、荷揚場、斜面） | AB108: □ | AC108: □ | AD108: □
A110: 屋内通路の安全確保はよいか | AB110: □ | AC110: □ | AD110: □
B111: 安全通路の標示があるか（非常口を含む） | X111: 安衛則540 | AB111: □ | AC111: □ | AD111: □
B112: 照明及び必要な照度は確保されているか | X112: 安衛則541 | AB112: □ | AC112: □ | AD112: □
B113: 適切な通路巾が確保されているか | X113: 安衛則542 | AB113: □ | AC113: □ | AD113: □
B114: 高さ1.8m以内に障害物が置かれていないか | X114: 安衛則542 | AB114: □ | AC114: □ | AD114: □
B115: 滑り、つまづき、踏み抜きの危険がないか | X115: 安衛則542 | AB115: □ | AC115: □ | AD115: □
A116: 現場内での車輌速度制限は十分か | AB116: □ | AC116: □ | AD116: □
A117: 道路上に資材等を置いてないか | AB117: □ | AC117: □ | AD117: □
A118: 路肩の崩壊のおそれはないか | AB118: □ | AC118: □ | AD118: □
AB119: □ | AC119: □ | AD119: □
A121: 安衛則：労働安全衛生規則
A137: 屋 内 作 業 場
A139: 点 検 項 目 | X139: 準拠条項 | AB139: 点検 結果 | AE139: 措 置 内 容 | AM139: 是正 確認
AB140: 適 | AC140: 否 | AD140: 該当 なし
A142: 作業場床面の安全確保はよいか | AB142: □ | AC142: □ | AD142: □
B143: 防網、安全帯を使用しているか | X143: 安衛則518 | AB143: □ | AC143: □ | AD143: □
B144: 囲い、手すり、覆い等があるか | X144: 安衛則519 | AB144: □ | AC144: □ | AD144: □
B145: 凹凸はないか | X145: 安衛則544 | AB145: □ | AC145: □ | AD145: □
B146: すべりつまづきの危険はないか | X146: 安衛則544 | AB146: □ | AC146: □ | AD146: □
B147: 巾は40mm以上あるか | X147: 安衛則563 | AB147: □ | AC147: □ | AD147: □
B148: 採光、照明は確保されているか（普通の作業 150Lx、精密な作業 300Lx、粗な作業 70Lx） | X148: 安衛則604 | AB148: □ | AC148: □ | AD148: □
AB150: □ | AC150: □ | AD150: □
A151: 標 識
A153: 点 検 項 目 | X153: 準拠条項 | AB153: 点検 結果 | AE153: 措 置 内 容 | AM153: 是正 確認
AB154: 適 | AC154: 否 | AD154: 該当 なし
A156: 看板類の標示はよいか | AB156: □ | AC156: □ | AD156: □
B157: 建築基準法による確認済 | X157: 建築基準法89 | AB157: □ | AC157: □ | AD157: □
B158: 労働保険関係成立票 | X158: 徴収規77 | AB158: □ | AC158: □ | AD158: □
B159: 建設業の許可票 | X159: 建設業法40 | AB159: □ | AC159: □ | AD159: □
B160: 道路占有使用許可証 | X160: 神戸市道路占用規則8 | AB160: □ | AC160: □ | AD160: □
B161: 工事標示板 | X161: 特記仕様書 | AB161: □ | AC161: □ | AD161: □
B162: 建設業許可票等の掲示及び有効期限の確認（下請業者含む） | X162: 建設業法3 | AB162: □ | AC162: □ | AD162: □
B163: 施工体系図の掲示 | X163: 建設業法24の7 | AB163: □ | AC163: □ | AD163: □
B164: 建設業退職金共済制度加入標識 | X164: 適正化指針 | AB164: □ | AC164: □ | AD164: □
B165: 夜間・緊急時の連絡先の掲示 | AB165: □ | AC165: □ | AD165: □
B166: 鉄骨製作工場の掲示板 | X166: 建設省住指発第３ ４ ７ 号 | AB166: □ | AC166: □ | AD166: □
B167: アスベスト関連掲示板は標示されているか（下記の各標識又は建築課内規による標識） | AB167: □ | AC167: □ | AD167: □
C169: 石綿障害予防規則第5条に基づく標識が設置されているか | AB169: □ | AC169: □ | AD169: □
C170: 大気汚染防止法第18条の15、同施行規則第10条の4に基づく標識が設置されているか | AB170: □ | AC170: □ | AD170: □
C172: 環境の保全と創造に関する条例第57条、同施規則15条に基づく標識が設置されているか | AB172: □ | AC172: □ | AD172: □
B174: イメージアップの標識（設計図書記載の標示板）が設置されているか | X174: 特記仕様書 | AB174: □ | AC174: □ | AD174: □
B176: 各種標識は所定の大きさを満たしているか | AB176: □ | AC176: □ | AD176: □
A177: 第三者に対する注意標識はよいか | AB177: □ | AC177: □ | AD177: □
A178: 車輌出入口等の標識、パドライトは設置されているか | AB178: □ | AC178: □ | AD178: □
AB179: □ | AC179: □ | AD179: □
A180: 第 三 者 立 入 禁 止 設 備
A182: 点 検 項 目 | X182: 準拠条項 | AB182: 点検 結果 | AE182: 措 置 内 容 | AM182: 是正 確認
AB183: 適 | AC183: 否 | AD183: 該当 なし
A185: 近隣居住者等への周知は実施されているか | X185: 公衆災8 | AB185: □ | AC185: □ | AD185: □
A186: 第三者への危険が予測される場合、柵等を設けているか | AB186: □ | AC186: □ | AD186: □
A187: 出入口の施錠はあるか | AB187: □ | AC187: □ | AD187: □
A188: 作業場の出入口の構造・措置は適切か | AB188: □ | AC188: □ | AD188: □
A189: 強風等により倒壊しない強度を有しているか | AB189: □ | AC189: □ | AD189: □
A190: 作業場に第三者の出入を禁止する措置をしているか | AB190: □ | AC190: □ | AD190: □
AB191: □ | AC191: □ | AD191: □
A193: 安衛則：労働安全衛生規則、徴収規：労働保険の保険料の徴収等に関する法律施行規則
A194: 適正化指針：公共工事の入札及び契約の適正化を図るための措置に関する指針、公衆災：建設工事公衆災害防止対策要綱
A205: 消 火 設 備
A207: 点 検 項 目 | X207: 準拠条項 | AB207: 点検 結果 | AE207: 措 置 内 容 | AM207: 是正 確認
AB208: 適 | AC208: 否 | AD208: 該当 なし
A210: 火気の使用を禁止する標識等は設置しているか | X210: 安衛則288 | AB210: □ | AC210: □ | AD210: □
A211: 火災予防上の設備は適切か | X211: 安衛則291 | AB211: □ | AC211: □ | AD211: □
A212: 建築物等の規模又は広さ、取扱われるものの種類等により予想される爆発又は火災の症状に適応した消火設備を設置しているか | X212: 安衛則289 | AB212: □ | AC212: □ | AD212: □
AB214: □ | AC214: □ | AD214: □
A215: 熱 中 症 予 防 対 策
A217: 点 検 項 目 | X217: 準拠条項 | AB217: 点検 結果 | AE217: 措 置 内 容 | AM217: 是正 確認
AB218: 適 | AC218: 否 | AD218: 該当 なし
A220: 作業環境 | B220: WBGT値を活用し、熱中症予防対策を実施しているか（WBGT値とは、暑熱環境による熱ストレスの評価を行う暑さ指数のことで、熱中症のリスクを客観的に判断する値のこと） | AB220: □ | AC220: □ | AD220: □
B223: 作業場所の近くに涼しい休憩場所（冷房の効いた部屋や日陰）はあるか | AB223: □ | AC223: □ | AD223: □
B224: 作業場所、休憩場所にスポーツドリンク等を備え、作業中、休憩時に作業者が容易に水分や塩分を補給できるようにしているか | AB224: □ | AC224: □ | AD224: □
B226: 身体を冷やすための準備（氷や冷たいおしぼり等）をしているか | AB226: □ | AC226: □ | AD226: □
A227: 作業管理 | B227: 作業状況に応じ、作業休止時間や休憩時間の適切な確保を行なっているか | AB227: □ | AC227: □ | AD227: □
B228: 休憩時には、休憩所、または日陰等の直射日光や照り返しを遮ることができる場所で水分や塩分を補給できるようにしているか | AB228: □ | AC228: □ | AD228: □
B230: 自覚症状の有無にかかわらず、作業者に水分・塩分を摂取させているか | AB230: □ | AC230: □ | AD230: □
B231: 作業中の巡視を頻繁に行っているか（午前1回、午後2回程度） | AB231: □ | AC231: □ | AD231: □
A232: 健康管理 | B232: 健康診断に基づき、就業場所の変更・作業転換などの措置を講じているか | AB232: □ | AC232: □ | AD232: □
B233: 日常の健康管理について、作業者に指導しているか | AB233: □ | AC233: □ | AD233: □
B234: 朝礼、作業開始前、作業中の巡視時に、作業者の健康状態を確認しているか | AB234: □ | AC234: □ | AD234: □
B235: 体温計等を常備し、必要に応じて身体の状況を確認できるようにしているか | AB235: □ | AC235: □ | AD235: □
A236: 衛生教育 | B236: 熱中症を予防するための労働衛生教育を行っているか | AB236: □ | AC236: □ | AD236: □
AB237: □ | AC237: □ | AD237: □
A238: 救急措置 | B238: 熱中症の発症に備えて、緊急連絡網を作成し、関係者に周知しているか | AB238: □ | AC238: □ | AD238: □
B239: 熱中症を疑わせる症状が現れた場合の救急処置を周知しているか | AB239: □ | AC239: □ | AD239: □
AB240: □ | AC240: □ | AD240: □
A241: そ の 他
A243: 点 検 項 目 | X243: 準拠条項 | AB243: 点検 結果 | AE243: 措 置 内 容 | AM243: 是正 確認
AB244: 適 | AC244: 否 | AD244: 該当 なし
A246: 緊急事態発生時の連絡網の掲示、安全対策事項の掲示は適切か | AB246: □ | AC246: □ | AD246: □
J247: （掲示場所： | V247: ）
A248: 防犯灯の球切れの有無、危険箇所の赤色灯の設置状況は適切か | AB248: □ | AC248: □ | AD248: □
A249: 警備員等の適切配置がなされているか、又、誘導は適切か | AB249: □ | AC249: □ | AD249: □
A250: 工事車輌はあらかじめ決められた経路を通行しているか、又、速度を遵守しているか | AB250: □ | AC250: □ | AD250: □
A252: 生コン車等はあらかじめ決められた場所で待機しているか | AB252: □ | AC252: □ | AD252: □
A253: 喫煙場所は決められた場所としているか | AB253: □ | AC253: □ | AD253: □
A254: 喫煙場所には防火用水、消火器等が設置されているか | AB254: □ | AC254: □ | AD254: □
A255: 仮囲いの設置状況は適切か | AB255: □ | AC255: □ | AD255: □
B256: 工事現場と工事現場外が明確に区分されているか | AB256: □ | AC256: □ | AD256: □
B257: 破損等がないか | AB257: □ | AC257: □ | AD257: □
B258: 下端に隙間がないか | AB258: □ | AC258: □ | AD258: □
B259: 控え（万能鋼板H=3.0mの場合は@1800）の設置状況は適切か | AB259: □ | AC259: □ | AD259: □
B260: 支柱及び控えの根入れは十分か | AB260: □ | AC260: □ | AD260: □
B261: 出隅部分の保護カバー等による追突時の対策は十分か | AB261: □ | AC261: □ | AD261: □
B262: 支柱、水平つなぎ等のクランプのボルトは締まっているか（増締め確認） | AB262: □ | AC262: □ | AD262: □
AB264: □ | AC264: □ | AD264: □
A266: 安衛則：労働安全衛生規則
A273: 足 場 （1）
A275: 点 検 項 目 | X275: 準拠条項 | AB275: 点検 結果 | AE275: 措 置 内 容 | AM275: 是正 確認
AB276: 適 | AC276: 否 | AD276: 該当 なし
A278: 単管 | B278: 壁つなぎは専用の金具を使用し、取付間隔は良いか（垂直5m、水平5.5m以下） | X278: 安衛則570 | AB278: □ | AC278: □ | AD278: □
B280: 最大積載荷重を表示しているか | X280: 安衛則562 | AB280: □ | AC280: □ | AD280: □
B281: ベース金具を使用し、敷板等で沈下防止等の措置を行っているか | X281: 安衛則570 | AB281: □ | AC281: □ | AD281: □
B282: 根がらみを確実に取り付けているか | X282: 安衛則570 | AB282: □ | AC282: □ | AD282: □
B283: 建地の間隔は、けた行方向が1.85m以下、はり間方向が1.5m以下となっているか | X283: 安衛則571 | AB283: □ | AC283: □ | AD283: □
B285: 足場の1段目の高さは地盤から2.0m以下となっているか | X285: 安衛則571 | AB285: □ | AC285: □ | AD285: □
B286: 作業床は巾40cm以上、すき間3cm以下で固定しているか | X286: 安衛則563 | AB286: □ | AC286: □ | AD286: □
... 531 more rows

Sheet 26
AD3: =一括入力シート!B50&CHAR(10)&一括入力シート!D50 -> 一般財団法人 神戸住環境整備公社
A5: 工 事 安 全 点 検 表 （ 報 告 版 ）
A8: 工事名 ： | F8: =一括入力シート!B9 -> 0 | U8: ＜記入要領＞
V9: １ 点検結果は、点検当日の作業所の状況を記入して下さい。
A10: 請負人 ： | F10: =一括入力シート!B66 -> 0
V11: ２ 点検の結果、「否」の場合は行った措置内容を記入して下さい。
A12: 現場代理人： | F12: =一括入力シート!B75 -> 0
V13: ３ 是正が完了し確認を行った場合は、是正確認欄に「済」を記入して下さい。
A14: 点検実施日： | F14: 令和 | J14: 年 | M14: 月 | P14: 日 | AO14: 点検実施日を直接入力してください。
A17: 日 常 管 理 ・ 安 全 教 育
A19: 点 検 項 目 | X19: 準拠条項 | AB19: 点検 結果 | AE19: 措 置 内 容 | AM19: 是正 確認
AB20: 適 | AC20: 否 | AD20: 該当 なし
A22: 安全施工サイクルの諸活動が、計画にもとづき実施されているか | AB22: □ | AC22: □ | AD22: □
B23: （毎日） | C23: 作業開始前KYミーティングの実施状況、記録 | AB23: □ | AC23: □ | AD23: □
C24: 特定元方事業者による作業所の巡視（1回以上／1日） | X24: 安衛則637 | AB24: □ | AC24: □ | AD24: □
C25: 作業指示書の内容は、具体的に打合せ、指示がされているか | AB25: □ | AC25: □ | AD25: □
C26: 作業中の指導・監督（指示事項の是正確認をしているか） | AB26: □ | AC26: □ | AD26: □
C27: 元方事業者（統括安全責任者）と協力会社間、協力会社相互間における連絡調整 | X27: 安衛則636 | AB27: □ | AC27: □ | AD27: □
AB29: □ | AC29: □ | AD29: □
A30: 危険、有害業務に対する特別教育を実施しているか、又、実施記録はあるか | X30: 安衛則36 | AA30: 安衛則36 | AB30: □ | AC30: □ | AD30: □
A32: 社内安全パトロールの実施 | J32: ( | L32: 回/月・直近実施日 | S32: 月 | U32: 日 | V32: ） | AB32: □ | AC32: □ | AD32: □
AB33: □ | AC33: □ | AD33: □
A34: 整 理 整 頓
A36: 点 検 項 目 | X36: 準拠条項 | AB36: 点検 結果 | AE36: 措 置 内 容 | AM36: 是正 確認
AB37: 適 | AC37: 否 | AD37: 該当 なし
A39: 整理整頓はよいか | AB39: □ | AC39: □ | AD39: □
B40: 物の置き方は良いか（安定性、高さ、荷くずれ、ころがり防止、種類別仕分け、採光妨害防止、非常口前の確保） | AB40: □ | AC40: □ | AD40: □
A42: 通路は安全に確保されているか | X42: 安衛則540 | Y42: 安衛則540 | Z42: 安衛則540 | AA42: 安衛則540 | AB42: □ | AC42: □ | AD42: □
A43: 危険物の置場は整理整頓し、可燃性の物又は酸化性の物を置いていないか | X43: 安衛則256-5 | AB43: □ | AC43: □ | AD43: □
A45: 第三者災害防止措置はよいか | AB45: □ | AC45: □ | AD45: □
B46: 足場上の不要物は除去されているか | AB46: □ | AC46: □ | AD46: □
B47: 強風による飛散防止対策はとられているか | AB47: □ | AC47: □ | AD47: □
B48: 塵埃物への散水は行われているか | AB48: □ | AC48: □ | AD48: □
A49: 工事現場進入口の履工板等で、滑りかつまづきによる歩行者の転倒のおそれはないか | AB49: □ | AC49: □ | AD49: □
A51: 工事現場進入口、及び周辺道路の路面の清掃・散水・養生の状況は適切か | AB51: □ | AC51: □ | AD51: □
AB53: □ | AC53: □ | AD53: □
A54: 現 場 内 通 路 （ 屋 外 ・ 屋 内 ）
A56: 点 検 項 目 | X56: 準拠条項 | AB56: 点検 結果 | AE56: 措 置 内 容 | AM56: 是正 確認
AB57: 適 | AC57: 否 | AD57: 該当 なし
A59: 通路の安全確保はよいか | AB59: □ | AC59: □ | AD59: □
B60: 安全通路の表示はあるか | X60: 安衛則540 | AB60: □ | AC60: □ | AD60: □
B61: 照明は確保されているか | X61: 安衛則541 | AB61: □ | AC61: □ | AD61: □
B62: 架設通路は安衛法に適合しているか | X62: 安衛則552 | AB62: □ | AC62: □ | AD62: □
B63: 滑り、つまづき、踏み抜きの危険がないか | X63: 安衛則542 | AB63: □ | AC63: □ | AD63: □
B64: 墜落防止の対策がとられているか（排水溝、開口部、マンホール、荷揚場、斜面） | AB64: □ | AC64: □ | AD64: □
A66: 路肩の崩壊のおそれはないか | AB66: □ | AC66: □ | AD66: □
AB67: □ | AC67: □ | AD67: □
A68: 安衛則：労働安全衛生規則
A69: 屋 内 作 業 場
A71: 点 検 項 目 | X71: 準拠条項 | AB71: 点検 結果 | AE71: 措 置 内 容 | AM71: 是正 確認
AB72: 適 | AC72: 否 | AD72: 該当 なし
A74: 作業場床面の安全確保はよいか | AB74: □ | AC74: □ | AD74: □
B75: 囲い、手すり、覆い等があるか | X75: 安衛則519 | AB75: □ | AC75: □ | AD75: □
B76: すべりつまづきの危険はないか | X76: 安衛則544 | AB76: □ | AC76: □ | AD76: □
B77: 巾は40mm以上あるか | X77: 安衛則563 | AB77: □ | AC77: □ | AD77: □
B78: 採光、照明は確保されているか（普通の作業 150Lx、精密な作業 300Lx、粗な作業 70Lx） | X78: 安衛則604 | AB78: □ | AC78: □ | AD78: □
AB80: □ | AC80: □ | AD80: □
A81: 標 識
A83: 点 検 項 目 | X83: 準拠条項 | AB83: 点検 結果 | AE83: 措 置 内 容 | AM83: 是正 確認
AB84: 適 | AC84: 否 | AD84: 該当 なし
A86: 看板類の標示はよいか | AB86: □ | AC86: □ | AD86: □
B87: 建築基準法による確認済 | X87: 建築基準法89 | AB87: □ | AC87: □ | AD87: □
B88: 労働保険関係成立票 | X88: 徴収規77 | AB88: □ | AC88: □ | AD88: □
B89: 建設業の許可票 | X89: 建設業法40 | AB89: □ | AC89: □ | AD89: □
B90: 道路占有使用許可証 | X90: 神戸市道路 占用規則8 | AB90: □ | AC90: □ | AD90: □
B92: 工事標示板 | X92: 特記仕様書 | AB92: □ | AC92: □ | AD92: □
B93: 建設業許可票等の掲示及び有効期限の確認（下請業者含む） | X93: 建設業法3 | AB93: □ | AC93: □ | AD93: □
B94: 施工体系図の掲示 | X94: 建設業法24の7 | AB94: □ | AC94: □ | AD94: □
B95: 建設業退職金共済制度加入標識 | X95: 適正化指針 | AB95: □ | AC95: □ | AD95: □
B96: 夜間・緊急時の連絡先の掲示 | AB96: □ | AC96: □ | AD96: □
B97: 鉄骨製作工場の掲示板 | X97: 建設省住指 発第３４７号 | AB97: □ | AC97: □ | AD97: □
B99: アスベスト関連掲示板は標示されているか（下記の各標識又は建築課内規による標識） | AB99: □ | AC99: □ | AD99: □
C101: 石綿障害予防規則第5条に基づく標識が設置されているか | AB101: □ | AC101: □ | AD101: □
C102: 大気汚染防止法第18条の15、同施行規則第10条の4に基づく標識が設置されているか | AB102: □ | AC102: □ | AD102: □
C104: 環境の保全と創造に関する条例第57条、同施規則15条に基づく標識が設置されているか | AB104: □ | AC104: □ | AD104: □
B106: イメージアップの標識（設計図書記載の標示板）が設置されているか | X106: 特記仕様書 | AB106: □ | AC106: □ | AD106: □
B107: 各種標識は所定の大きさを満たしているか | AB107: □ | AC107: □ | AD107: □
AB108: □ | AC108: □ | AD108: □
A109: そ の 他
A111: 点 検 項 目 | X111: 準拠条項 | AB111: 点検 結果 | AE111: 措 置 内 容 | AM111: 是正 確認
AB112: 適 | AC112: 否 | AD112: 該当 なし
A114: 緊急事態発生時の連絡網の掲示、安全対策事項の掲示は適切か | AB114: □ | AC114: □ | AD114: □
J115: （掲示場所： | V115: ）
A116: 警備員等の適切配置がなされているか、又、誘導は適切か | AB116: □ | AC116: □ | AD116: □
A117: 仮囲いの設置状況は適切か | AB117: □ | AC117: □ | AD117: □
B118: 工事現場と工事現場外が明確に区分されているか | AB118: □ | AC118: □ | AD118: □
B119: 破損等がないか | AB119: □ | AC119: □ | AD119: □
B120: 下端に隙間がないか | AB120: □ | AC120: □ | AD120: □
B121: 控え（万能鋼板H=3.0mの場合は@1800）の設置状況は適切か | AB121: □ | AC121: □ | AD121: □
B122: 支柱及び控えの根入れは十分か | AB122: □ | AC122: □ | AD122: □
B123: 出隅部分の保護カバー等による追突時の対策は十分か | AB123: □ | AC123: □ | AD123: □
B124: 支柱、水平つなぎ等のクランプのボルトは締まっているか（増締め確認） | AB124: □ | AC124: □ | AD124: □
AB126: □ | AC126: □ | AD126: □
A128: 安衛則：労働安全衛生規則、徴収規：労働保険の保険料の徴収等に関する法律施行規則
A129: 適正化指針：公共工事の入札及び契約の適正化を図るための措置に関する指針
A137: 足 場 （1）
A139: 点 検 項 目 | X139: 準拠条項 | AB139: 点検 結果 | AE139: 措 置 内 容 | AM139: 是正 確認
AB140: 適 | AC140: 否 | AD140: 該当 なし
A142: 単管 | B142: 壁つなぎは専用の金具を使用し、取付間隔は良いか（垂直5m、水平5.5m以下） | X142: 安衛則570 | AB142: □ | AC142: □ | AD142: □
B144: 最大積載荷重を表示しているか | X144: 安衛則562 | AB144: □ | AC144: □ | AD144: □
B145: ベース金具を使用し、敷板等で沈下防止等の措置を行っているか | X145: 安衛則570 | AB145: □ | AC145: □ | AD145: □
B146: 根がらみを確実に取り付けているか | X146: 安衛則570 | AB146: □ | AC146: □ | AD146: □
B147: 建地の間隔は、けた行方向が1.85m以下、はり間方向が1.5m以下となっているか | X147: 安衛則571 | AB147: □ | AC147: □ | AD147: □
B149: 足場の1段目の高さは地盤から2.0m以下となっているか | X149: 安衛則571 | AB149: □ | AC149: □ | AD149: □
B150: 作業床は巾40cm以上、すき間3cm以下で固定しているか | X150: 安衛則563 | AB150: □ | AC150: □ | AD150: □
B151: 筋かいで補強をされているか | X151: 安衛則570 | AB151: □ | AC151: □ | AD151: □
B152: 手摺は全面に入っているか | X152: 安衛則563 | AB152: □ | AC152: □ | AD152: □
B153: 最上層と五層以内ごとに水平筋かいを設けているか | X153: 安衛則571 | AB153: □ | AC153: □ | AD153: □
B154: 最高部から31mを超える部分は鋼管を二本組にしているか | X154: 安衛則571 | AB154: □ | AC154: □ | AD154: □
B155: 手すり先行工法としているか | X155: 特記仕様書 | AB155: □ | AC155: □ | AD155: □
B156: 高さ85cm以上の位置に手すり又はこれと同等以上の機能を有する設備又は中さん等を設置しているか | X156: 安衛則563-3 | AB156: □ | AC156: □ | AD156: □
B158: 作業のため物体が落下することにより労働者に危険を及ぼす恐れがある場合、巾木（H=100以上）、メッシュシート若しくは防網又はこれらと同等以上の機能を有する設備を設置しているか | X158: 安衛則563-6 | AB158: □ | AC158: □ | AD158: □
B161: 手すり及び中さんを設けた上で巾木を設けたもの又はこれらと同等以上の措置が講じられているか | X161: 働きやすい 安心感の ある足場 | AB161: □ | AC161: □ | AD161: □
B163: 足場組立手順は遵守しているか（手すり先送り→床板→建地→階段の手すり、中さん→中さん、巾木→上桟の順に各層で完成させてから上層に組立てる。解体は組立の逆） | X163: 働きやすい 安心感の ある足場 | AB163: □ | AC163: □ | AD163: □
B166: 昇降設備が設置されているか | X166: 安衛則526 | AB166: □ | AC166: □ | AD166: □
A167: 枠組 | B167: 壁つなぎは専用の金具を使用し、取付間隔は良いか（ｼｰﾄ張りのない場合：垂直9m以下、水平8m以下、ｼｰﾄ張りのある場合：2層2ｽﾊﾟﾝ以下） | X167: 安衛則570 | AB167: □ | AC167: □ | AD167: □
B170: 作業床は巾40cm以上、すき間3cm以下で固定しているかつかみ金具の外れ止めは確実にロックされているか | X170: 安衛則563 | AB170: □ | AC170: □ | AD170: □
B172: 足場組立手順は遵守しているか（手すり先送り→床板→建枠→交差筋かい→階段の手すり、中さん→下桟、巾木→上桟の順に各層で完成させてから上層に組立てる。解体は組立の逆） | X172: 働きやすい 安心感の ある足場 | AB172: □ | AC172: □ | AD172: □
B175: 中さん若しくは15cm以上の巾木、又はこれらと同等以上の機能を有する設備又は手すりわくを設置しているか | X175: 安衛則563-3 | AB175: □ | AC175: □ | AD175: □
B177: ベース金具を使用し、敷板等で沈下防止等の措置を行っているか敷板には釘止めされているか | X177: 安衛則570 | AB177: □ | AC177: □ | AD177: □
B179: 根がらみを確実に取り付けているか | X179: 安衛則570 | AB179: □ | AC179: □ | AD179: □
B180: 建地の間隔は、けた行方向が1.85m以下、はり間方向が1.5m以下となっているか | X180: 安衛則571 | AB180: □ | AC180: □ | AD180: □
B182: ブレースは、全面に確実に入っているか、交差筋交いピンはロックされているか | X182: 安衛則570 | AB182: □ | AC182: □ | AD182: □
B184: 布枠の取付状態は良いか、アームロックはロックされているか | AB184: □ | AC184: □ | AD184: □
B185: 最大積載荷重を表示しているか | X185: 安衛則562 | AB185: □ | AC185: □ | AD185: □
B186: 手すり先行工法としているか（手すり先送り方式、手すり据置き方式、手すり先行専用足場方式） | X186: 特記仕様書 | AB186: □ | AC186: □ | AD186: □
B188: 作業のため物体が落下することにより労働者に危険を及ぼす恐れがある場合、巾木(H=100以上)、メッシュシート若しくは防網又はこれらと同等以上の機能を有する設備を設置しているか | X188: 安衛則563-6 | AB188: □ | AC188: □ | AD188: □
B191: 墜落のおそれのある箇所には、中さん若しくは巾木に加えて上さんを設けたもの、又はこれらの措置と同等以上の機能を有する手すりわくを設けたものにしているか | X191: 働きやすい 安心感の ある足場 | AB191: □ | AC191: □ | AD191: □
AB194: □ | AC194: □ | AD194: □
A196: 安衛則：労働安全衛生規則
A205: 足 場 （2）
A207: 点 検 項 目 | X207: 準拠条項 | AB207: 点検 結果 | AE207: 措 置 内 容 | AM207: 是正 確認
AB208: 適 | AC208: 否 | AD208: 該当 なし
A210: 枠組 | B210: 妻面（端部）は、手すり及び中さんを設けた上で巾木を設けたもの、又はこれと同等以上の措置を講じられているか | X210: 働きやすい 安心感のある足場 | AB210: □ | AC210: □ | AD210: □
X211: 安衛則519
B212: 緊結金具（クランプ等）、継手金具に損傷、腐食はないか | AB212: □ | AC212: □ | AD212: □
B213: 敷板、敷角に異常な沈下、滑動はないか | AB213: □ | AC213: □ | AD213: □
B214: 床材と建地又は脚柱には隙間がないか | AB214: □ | AC214: □ | AD214: □
B215: 床付き布枠のつかみ金具は、外れ止めが確実にされているか | AB215: □ | AC215: □ | AD215: □
B216: 足場の最上端の壁つなぎからの足場の立上り高さは、原則として、足場2層以下となっているか | AB216: □ | AC216: □ | AD216: □
B218: 足場の最側端の壁つなぎからの足場のはみ出し長さは、原則として、足場1スパン以下となっているか | AB218: □ | AC218: □ | AD218: □
B220: 朝顔設置箇所には、壁つなぎを主材の上下にスパンごとに取付けているか | AB220: □ | AC220: □ | AD220: □
B222: 安全通路、昇降階段等の単管端部には保護カバーが設けられているか | AB222: □ | AC222: □ | AD222: □
A224: 移動 | B224: 作業床は、足場板等のすき間3cm以下で固定しているか | X224: 指針3-2 | AB224: □ | AC224: □ | AD224: □
B225: 最大積載荷重、使用上の注意事項等を表示しているか | X225: 指針4-4 | AB225: □ | AC225: □ | AD225: □
B226: 使用中は、キャスターのブレーキを4箇所確実にきかせているか | X226: 安衛則570 | AB226: □ | AC226: □ | AD226: □
B227: 手摺は、90cm以上で中桟等を設置しているか | X227: 指針3-6 | AB227: □ | AC227: □ | AD227: □
B228: 昇降設備はあるか | X228: 指針3-5 | AB228: □ | AC228: □ | AD228: □
B229: 組立て高さは制限高さ以下か（高さ≦7.7L-5.0m） | X229: 指針3-1 | AB229: □ | AC229: □ | AD229: □
B230: ローリングタワーベース使用の場合は、以下の基準に従うこと＜高層用：5段以下＞＜低層用：3段以下＞ | AB230: □ | AC230: □ | AD230: □
A232: うま・移動式作業床 | B232: 足場板のはね出しは10cm以上で、足場板長さの18分の1以下となっているか | X232: 安衛則563 | AB232: □ | AC232: □ | AD232: □
B233: 足場板は、支持物の上で、20cm以上重ね合わせているか | X233: 安衛則563 | AB233: □ | AC233: □ | AD233: □
B234: 脚立と足場板は、ゴムバンド等で固定しているか | AB234: □ | AC234: □ | AD234: □
B235: 足場板は3点で支持しているか | X235: 安衛則563 | AB235: □ | AC235: □ | AD235: □
B236: 足場板の幅は20cm以上か、足場板の厚さは3.5cm以上か、足場板の長さは3.6m以上か | X236: 安衛則563 | AB236: □ | AC236: □ | AD236: □
B238: 設置場所は水平で安定した場所か | AB238: □ | AC238: □ | AD238: □
B239: 脚立と脚立の間隔は1.8m以下となっているか | X239: 安衛則563 | AB239: □ | AC239: □ | AD239: □
B240: 開き止めは完全に開いているか | X240: 安衛則528 | AB240: □ | AC240: □ | AD240: □
B241: 脚部に滑り止めがついているか | AB241: □ | AC241: □ | AD241: □
A242: 脚立 | B242: 開き止めは完全に開いているか | X242: 安衛則528 | AB242: □ | AC242: □ | AD242: □
B243: 脚部に滑り止めがついているか | AB243: □ | AC243: □ | AD243: □
B244: 設置場所は水平で安定した場所か | AB244: □ | AC244: □ | AD244: □
B245: 脚柱と水平面の角度は75°以下になっているか | X245: 安衛則528 | AB245: □ | AC245: □ | AD245: □
B246: 踏面（天板）のついているものを使用しているか | X246: 安衛則528 | AB246: □ | AC246: □ | AD246: □
AB247: □ | AC247: □ | AD247: □
A248: 作 業 床
A250: 点 検 項 目 | X250: 準拠条項 | AB250: 点検 結果 | AE250: 措 置 内 容 | AM250: 是正 確認
AB251: 適 | AC251: 否 | AD251: 該当 なし
A253: 固定式 | B253: 作業床は幅40cm以上、すき間3cm以下で固定しているか | X253: 安衛則563 | AB253: □ | AC253: □ | AD253: □
B254: ゴムバンド等で固定しているか | AB254: □ | AC254: □ | AD254: □
B255: 支持物の上で20cm以上重ね合わせているか | X255: 安衛則563 | AB255: □ | AC255: □ | AD255: □
B256: 足場板の厚さは3.5cm以上か | X256: 安衛則563 | AB256: □ | AC256: □ | AD256: □
B257: 足場板の場合は、3点支持（支点間1.8m以内）にしているか | X257: 安衛則563 | AB257: □ | AC257: □ | AD257: □
B258: 布枠の四隅は、支持物につめ金具で固定されているか | X258: 安衛則563 | AB258: □ | AC258: □ | AD258: □
A259: スレート・木毛板等の屋根上での作業で、踏み抜きのおそれはないか（巾30cm以上の歩み板の設置、親綱の設置、安全帯の使用） | X259: 安衛則524 | AB259: □ | AC259: □ | AD259: □
AB261: □ | AC261: □ | AD261: □
A263: 安衛則：労働安全衛生規則、指針：移動式足場の安全基準に関する技術上の指針
A273: 昇 降 ・ 渡 り 廊 下
A275: 点 検 項 目 | X275: 準拠条項 | AB275: 点検 結果 | AE275: 措 置 内 容 | AM275: 是正 確認
AB276: 適 | AC276: 否 | AD276: 該当 なし
A278: 移動梯子 | B278: 転位を防止する措置を行っているか | X278: 安衛則527 | AB278: □ | AC278: □ | AD278: □
B279: 昇降設備は丈夫な構造となっているか | X279: 安衛則527 | AB279: □ | AC279: □ | AD279: □
B280: 材料には、著しく損傷、腐食等がないものを使用しているか | X280: 安衛則527 | AB280: □ | AC280: □ | AD280: □
B281: 梯子の幅は30cm以上か | X281: 安衛則527 | AB281: □ | AC281: □ | AD281: □
B282: 滑り止めが付いているか | X282: 安衛則527 | AB282: □ | AC282: □ | AD282: □
B283: 梯子の設置角度は75度以下か | AB283: □ | AC283: □ | AD283: □
B284: 踏桟の間隔は25～35cmで等間隔に設けているか | AB284: □ | AC284: □ | AD284: □
B285: 全体の長さは9m以下か | AB285: □ | AC285: □ | AD285: □
B286: 梯子の上端を、上部床から60cm以上突出しているか | X286: 安衛則556 | AB286: □ | AC286: □ | AD286: □
A287: タラップ | B287: 手摺の高さは90cm以上で中桟を設けているか | AB287: □ | AC287: □ | AD287: □
B288: 昇降階段の表示はあるか | AB288: □ | AC288: □ | AD288: □
B289: タラップは、等間隔で取り付けられているか | AB289: □ | AC289: □ | AD289: □
B290: 支持物に固定しているか | AB290: □ | AC290: □ | AD290: □
B291: クランプ金物及び単管の端部には保護キャップを取付けているか | AB291: □ | AC291: □ | AD291: □
B292: 高さ又は深さが1.5mを超える箇所で作業を行うときは、労働者が安全に昇降するための設備を設けているか | X292: 安衛則526 | AB292: □ | AC292: □ | AD292: □
B294: 支持物に固定しているか | AB294: □ | AC294: □ | AD294: □
A295: 渡り廊下 | B295: 手摺の高さは90cm以上で中桟を設けているか | X295: 安衛則552 | AB295: □ | AC295: □ | AD295: □
B296: 滑り止めの措置を行っているか（勾配が15°を超えるもの） | X296: 安衛則552 | AB296: □ | AC296: □ | AD296: □
B297: 勾配は30°以下としているか | X297: 安衛則552 | AB297: □ | AC297: □ | AD297: □
B298: 支持物に固定しているか | AB298: □ | AC298: □ | AD298: □
... 116 more rows

Sheet 27
AE2: 令和 | AH2: 年 | AK2: 月 | AN2: 日 | AO2: 提出年月日を直接入力してください。
A3: 安 全 パ ト ロ ー ル 是 正 報 告 書
A6: 工 事 名 | G6: =一括入力シート!B9 -> 0
A9: 請 負 人 | G9: =一括入力シート!B66&" "&一括入力シート!B67 -> 
A12: 現場代理人 氏名 | G12: =一括入力シート!B75 -> 0 | T12: 是正確認者 職・氏名 | Z12: 技術職員 | AE12: =一括入力シート!B54 -> 0
A15: パトロール 実 施 日 | G15: 令和 | L15: 年 | O15: 月 | R15: 日 | AO15: パトロール実施日を直接入力してください。
A20: № | D20: 指摘事項 | T20: 是正措置 | AJ20: 是正日 | AM20: 確認日
A22: 1
AJ23: / | AM23: /
A26: 2
AJ27: / | AM27: /
A30: 3
AJ31: / | AM31: /
A34: 4
AJ35: / | AM35: /
A38: 5
AJ39: / | AM39: /
A42: 6
AJ43: / | AM43: /
A46: 7
AJ47: / | AM47: /
A50: 8
AJ51: / | AM51: /
A54: 9
AJ55: / | AM55: /
A58: 10
AJ59: / | AM59: /
AJ63: / | AM63: /
A66: ※指摘事項がある場合は是正措置を講じた後、指摘事項・是正措置を記入のうえ、本報告書に
A67: 是正前後の写真を添えて、早急に監督員に提出して確認を受けること。
... 1 more rows

Sheet 28
A2: 搬 出 車 両 記 録 表
A3: 工事名称： | B3: =一括入力シート!B9 -> 0 | I3: 搬出物の種別、搬出先は直接入力してください。 | L3: 搬出種別ごとに作成してください。
A4: 種別： | B4: （アスファルト殻・コンクリート殻・土砂） | F4: 搬出先： | I4: 種別： | J4: 土砂 | K4: 搬出先： | L4: ポートアイランド沖
H5: 単位：t | M5: 単位：t
B6: 車両番号 | J6: 車両番号 | K6: 神戸12あ 5687 | L6: 神戸12え852 | M6: 神戸12ふ6587
B7: 最大積載量 | J7: 最大積載量 | K7: 10 | L7: 4 | M7: 2
A8: 年月日 | B8: 伝票番号 | I8: 年月日 | J8: 伝票番号
I9: 2010-09-01 | J9: 115982 | K9: 9.923
I10: 2010-09-01 | J10: 115987 | L10: 3.503
I11: 2010-09-02 | J11: 115992 | K11: 8.912
I12: 2010-09-02 | J12: 115994 | L12: 3.876
I13: 2010-09-03 | J13: 116001 | K13: 9.698
I14: 2010-09-03 | J14: 116002 | M14: 1.654
I15: 2010-09-06 | J15: 116030 | K15: 10.201
I16: 2010-09-06 | J16: 116032 | L16: 3.879
I17: 2010-09-06 | J17: 116043 | K17: 10.612
I18: 2010-09-06 | J18: 116045 | L18: 3.997
I19: 2010-09-06 | J19: 116051 | K19: 9.899
I20: 2010-09-06 | J20: 116053 | L20: 3.976
I21: 2010-09-06 | J21: 116069 | K21: 9.867
I22: 2010-09-06 | J22: 116074 | L22: 3.976
I23: 2010-09-06 | J23: 116078 | K23: 9.971
I24: 2010-09-06 | J24: 116083 | L24: 2.134
I25: 運搬台数（台） | K25: =IF(COUNTA(K9:K24)=0,"",COUNTA(K9:K24)) -> 8 | L25: =IF(COUNTA(L9:L24)=0,"",COUNTA(L9:L24)) -> 7 | M25: =IF(COUNTA(M9:M24)=0,"",COUNTA(M9:M24)) -> 1
I26: 平均積載量（ｔ） | K26: =IF(COUNTA(K9:K24)=0,"",AVERAGE(K9:K24)) -> 9.885375 | L26: =IF(COUNTA(L9:L24)=0,"",AVERAGE(L9:L24)) -> 3.620142857 | M26: =IF(COUNTA(M9:M24)=0,"",AVERAGE(M9:M24)) -> 1.654
I27: 過積載台数（台） | K27: =COUNTIF(K9:K24,">"&K7) -> 2 | L27: =COUNTIF(L9:L24,">"&L7) -> 0 | M27: =COUNTIF(M9:M24,">"&M7) -> 0
I28: 最大積載量（ｔ） | K28: =IF(COUNTA(K9:K24)=0,"",MAX(K9:K24)) -> 10.612 | L28: =IF(COUNTA(L9:L24)=0,"",MAX(L9:L24)) -> 3.997 | M28: =IF(COUNTA(M9:M24)=0,"",MAX(M9:M24)) -> 1.654
I29: 最大過積載率（％） | K29: =IF(COUNTA(K9:K24)=0,"",IF(K28/K7-1<0,"",ROUND(K28/K7-1,3))) -> 0.061 | L29: =IF(COUNTA(L9:L24)=0,"",IF(L28/L7-1<0,"",L28/L7-1)) ->  | M29: =IF(COUNTA(M9:M24)=0,"",IF(M28/M7-1<0,"",M28/M7-1)) -> 
I30: 過積載台数率（％） | K30: =IF(K27="","",ROUND(K27/K25,3)) -> 0.25 | L30: =IF(L27="","",ROUND(L27/L25,3)) -> 0 | M30: =IF(M27="","",ROUND(M27/M25,3)) -> 0
A35: 運搬台数（台）
A36: 平均積載量（ｔ）
A37: 過積載台数（台）
A38: 最大積載量（ｔ）
A39: 最大過積載率（％）
A40: 過積載台数率（％）
... 1 more rows

Sheet 29
A4: 改 善 報 告 書
W7: 令和 | AC7: 年 | AH7: 月 | AM7: 日 | AO7: 報告年月日を入力してください。
A8: =CONCATENATE(一括入力シート!B50) -> 一般財団法人
A9: =CONCATENATE(一括入力シート!D50) -> 神戸住環境整備公社
A11: 理 事 長 宛
Q12: 請 負 人 | V12: =一括入力シート!B65 -> 0
Q13: 所 在 地
Q15: 商号又は名称 | V15: =一括入力シート!B66 -> 0
Q17: 代表者又は | V17: =一括入力シート!B67 -> 0
Q18: 受 注 者 名
Q19: 現場代理人 | V19: =一括入力シート!B75 -> 0
A22: 工 事 名： | H22: =一括入力シート!B9 -> 0
A25: 令和 | E25: 年 | I25: 月 | M25: 日 | O25: に指示のあったことについて、下記のとおり改善したので報告します。 | AO25: 日付を入力してください。
A29: １ 発生原因 （別添資料による説明も可）
AO32: 発生原因、改善内容、添付資料について入力してください。
A40: ２ 改善内容 （別添資料による説明も可）
A51: 〈添付資料〉
... 1 more rows

Sheet 30
A3: 工事部分払請求書兼工事出来高内訳書（第 | AH3: 回）
AO4: 第〇回と提出年月日を直接入力してください。
A6: 提出年月日 | I6: 令和 | M6: 年 | Q6: 月 | U6: 日 | W6: 検査員職氏名
A8: 請 負 人 | I8: =一括入力シート!B66 -> 0
A10: 住 所 | I10: =一括入力シート!B65 -> 0
A12: 氏 名 | I12: =一括入力シート!B67 -> 0
A14: 登録番号 | I14: =IF(一括入力シート!B68="無","登録なし",一括入力シート!C68&一括入力シート!D68) -> T | Y14: 連絡先 | AB14: =一括入力シート!B70 -> 0 | AE14: - | AF14: =一括入力シート!C70 -> 0 | AJ14: - | AK14: =一括入力シート!D70 -> 0
A16: 工 事 名 | I16: =一括入力シート!B9 -> 0
A18: 工 種 | M18: 内 訳 | AD18: 出 来 高
C20: 種 別
M21: 数量 | O21: 単価 | S21: 税率 | U21: 金 額（税抜） | AD21: 数量 | AF21: 税率 | AH21: 金 額（税抜）
E22: 名称
U24: =M24*O24 -> 0 | AB24: 円 | AH24: =AD24*O24 -> 0 | AM24: 円
U27: =M27*O27 -> 0 | AB27: 円 | AH27: =AD27*O27 -> 0 | AM27: 円
U30: =M30*O30 -> 0 | AB30: 円 | AH30: =AD30*O30 -> 0 | AM30: 円
U33: =M33*O33 -> 0 | AB33: 円 | AH33: =AD33*O33 -> 0 | AM33: 円
U36: =M36*O36 -> 0 | AB36: 円 | AH36: =AD36*O36 -> 0 | AM36: 円
U39: =M39*O39 -> 0 | AB39: 円 | AH39: =AD39*O39 -> 0 | AM39: 円
U42: =M42*O42 -> 0 | AB42: 円 | AH42: =AD42*O42 -> 0 | AM42: 円
U45: =M45*O45 -> 0 | AB45: 円 | AH45: =AD45*O45 -> 0 | AM45: 円
U48: =M48*O48 -> 0 | AB48: 円 | AH48: =AD48*O48 -> 0 | AM48: 円
U51: =M51*O51 -> 0 | AB51: 円 | AH51: =AD51*O51 -> 0 | AM51: 円
U54: =M54*O54 -> 0 | AB54: 円 | AH54: =AD54*O54 -> 0 | AM54: 円
U57: =M57*O57 -> 0 | AB57: 円 | AH57: =AD57*O57 -> 0 | AM57: 円
U60: =M60*O60 -> 0 | AB60: 円 | AH60: =AD60*O60 -> 0 | AM60: 円
E63: 金額合計 | U63: =SUM(U24:AA62) -> 0 | AB63: 円 | AH63: =SUM(AH24:AL62) -> 0 | AM63: 円
E66: 消費税 | U66: =ROUNDDOWN(U63*0.1,0) -> 0 | AB66: 円 | AH66: =ROUNDDOWN(AH63*0.1,0) -> 0 | AM66: 円
A70: （注） 出来高欄については，検査員が認定作成すること。
... 1 more rows

Sheet 31
A1: 様式１（教育委員会事務局提出用）
A9: 校園設備等使用承認申請書兼承認書
A12: 神戸市教育委員会事務局総務部学校経営支援課長 宛
A14: 貴校園設備から下記の通り供給を願いたく、使用について申請いたします。
A16: 記
A18: １．校園名 | AO18: 学校園名称を直接入力してください。
A20: ２．工事名 | G20: =一括入力シート!B9 -> 0
G22: 【関連工事： | M22: □ | O22: 建築 | R22: □ | T22: 電気 | W22: □ | Y22: 機械 | AB22: □ | AD22: ガス | AG22: □ | AI22: 昇降機 | AL22: 】 | AO22: 校園設備等の使用する工事に関連する工事種別を選択してください。（□→■）
A24: ３．所在地 | AO24: 提出する学校園の住所を入力してください。
A26: ４．種別 | I26: □ | K26: 上下水道 | Z26: □ | AB26: 電気 | AO26: 種別を選択してください。（□→■）
K28: 水栓番号 | Z28: □ | AB28: 業務用電力
Z29: □ | AB29: 従量電灯
Z30: □ | AB30: 低圧電力
A32: ５．用途 | G32: □ | H32: 算定式による計算 | P32: □ | Q32: 子メーターに設置 | Y32: □ | Z32: 算定式による計算 | AG32: □ | AH32: 子メーターに設置
AO33: 使用用途を選択してください。（□→■）
A34: ６．使用期間 | G34: 自: | I34: 令和 | M34: 年 | Q34: 月 | U34: 日 | Y34: 自: | AA34: 令和 | AE34: 年 | AI34: 月 | AM34: 日 | AO34: 使用する期間を直接入力してください。
G36: 至: | I36: 令和 | M36: 年 | Q36: 月 | U36: 日 | Y36: 至: | AA36: 令和 | AE36: 年 | AI36: 月 | AM36: 日
A38: 令和 | E38: 年 | I38: 月 | M38: 日 | AO38: 提出日を直接入力して下さい
C40: 申請者 | G40: 住 所 | K40: =一括入力シート!B65 -> 0
G42: 社 名 | K42: =一括入力シート!B66 -> 0
G44: TEL | K44: （ | L44: =一括入力シート!B70 -> 0 | O44: ） | P44: =一括入力シート!C70 -> 0 | S44: - | T44: =一括入力シート!D70 -> 0 | X44: FAX | AB44: （ | AC44: =一括入力シート!B72 -> 0 | AF44: ） | AG44: =一括入力シート!C72 -> 0 | AJ44: - | AK44: =一括入力シート!D72 -> 0
G46: 代表者 | K46: =一括入力シート!B67 -> 0 | X46: 担 当 | AB46: =一括入力シート!B75 -> 0 | AL46: ㊞
A50: 先に申請のあった標記のことについて、下記の内容・条件により承認します。 １．使用量について 様式２により毎月使用量を確認し、使用期間終了後※速やかに報告すること。 ※なお、使用期間が当該年12月末を超える場合は12月末、当該年度末(3月末)を 超える(複数年度工事)場合は3月末にも、あわせて報告すること。 ２．費用負担について 報告量に基づき、神戸市教育委員会の算式により算出した金額を負担すること。 ３．支払方法について 指定の納付期限までに、納付書により支払うこと。 ４．その他 使用期間の延長が必要な場合は再度、書類を提出すること。 承認者 神戸市中央区東川崎町1丁目３－３ 神戸市教育委員会事務局総務部学校経営支援課 TEL 078-984-0661，FAX 078-984-0670
A69: =CONCATENATE("様式2（",一括入力シート!D50,"提出）") -> 様式2（ 神戸住環境整備公社提出） | AO69: 様式1-2は、上記様式1-1の内容が自動入力されます。
P71: (設備課) | AB71: (建築課)
P72: 課長 | T72: 係長 | X72: 係 | AB72: 課長 | AF72: 係長 | AJ72: 係
M76: （工事担当課返却先： 建築課・設備課 担当： ）
A77: 校園設備等使用承認申請書兼承認書
A80: 神戸市教育委員会事務局総務部学校経営支援課長 宛
A82: 貴校園設備から下記の通り供給を願いたく、使用について申請いたします。
A84: 記
A86: １．校園名 | G86: =G18 -> 0
A88: ２．工事名 | G88: =G20 -> 0
G90: 【関連工事： | M90: =M22 -> □ | O90: 建築 | R90: =R22 -> □ | T90: 電気 | W90: =W22 -> □ | Y90: 機械 | AB90: =AB22 -> □ | AD90: ガス | AG90: =AG22 -> □ | AI90: 昇降機 | AL90: 】
A92: ３．所在地 | G92: =$G$24 -> 0
A94: ４．種別 | I94: =I26 -> □ | K94: 上下水道 | Z94: =Z26 -> □ | AB94: 電気
K96: 水栓番号 | Z96: =Z28 -> □ | AB96: 業務用電力
K97: =IF(K29="","",K29) ->  | Z97: =Z29 -> □ | AB97: 従量電灯
Z98: =Z30 -> □ | AB98: 低圧電力
A100: ５．用途 | G100: □ | H100: 算定式による計算 | P100: □ | Q100: 子メーターに設置 | Y100: □ | Z100: 算定式による計算 | AG100: □ | AH100: 子メーターに設置
A102: ６．使用期間 | G102: 自: | I102: 令和 | K102: =IF(K34="","",K34) ->  | M102: 年 | O102: =IF(O34="","",O34) ->  | Q102: 月 | S102: =IF(S34="","",S34) ->  | U102: 日 | Y102: 自: | AA102: 令和 | AC102: =IF(AC34="","",AC34) ->  | AE102: 年 | AG102: =IF(AG34="","",AG34) ->  | AI102: 月 | AK102: =IF(AK34="","",AK34) ->  | AM102: 日
G104: 至: | I104: 令和 | K104: =IF(K36="","",K36) ->  | M104: 年 | O104: =IF(O36="","",O36) ->  | Q104: 月 | S104: =IF(S36="","",S36) ->  | U104: 日 | Y104: 至: | AA104: 令和 | AC104: =IF(AC36="","",AC36) ->  | AE104: 年 | AG104: =IF(AG36="","",AG36) ->  | AI104: 月 | AK104: =IF(AK36="","",AK36) ->  | AM104: 日
A106: 令和 | C106: =IF(C38="","",C38) ->  | E106: 年 | G106: =IF(G38="","",G38) ->  | I106: 月 | K106: =IF(K38="","",K38) ->  | M106: 日
C108: 申請者 | G108: 住 所 | K108: =K40 -> 0
G110: 社 名 | K110: =K42 -> 0
G112: TEL | K112: =K44 -> （ | L112: =L44 -> 0 | O112: =O44 -> ） | P112: =P44 -> 0 | S112: =S44 -> - | T112: =T44 -> 0 | X112: =X44 -> FAX | AB112: =AB44 -> （ | AC112: =AC44 -> 0 | AF112: =AF44 -> ） | AG112: =AG44 -> 0 | AJ112: =AJ44 -> - | AK112: =AK44 -> 0
G114: 代表者 | K114: =K46 -> 0 | X114: 担 当 | AB114: =AB46 -> 0 | AL114: ㊞
A118: 先に申請のあった標記のことについて、下記の内容・条件により承認します。 １．使用量について 様式２により毎月使用量を確認し、使用期間終了後※速やかに報告すること。 ※なお、使用期間が当該年12月末を超える場合は12月末、当該年度末(3月末)を 超える(複数年度工事)場合は3月末にも、あわせて報告すること。 ２．費用負担について 報告量に基づき、神戸市教育委員会の算式により算出した金額を負担すること。 ３．支払方法について 指定の納付期限までに、納付書により支払うこと。 ４．その他 使用期間の延長が必要な場合は再度、書類を提出すること。 承認者 神戸市中央区東川崎町1丁目３－３ 神戸市教育委員会事務局総務部学校経営支援課 TEL 078-984-0661，FAX 078-984-0670
A137: 様式３（工事請負業者用） | AO137: 様式1-3は、上記様式1-1の内容が自動入力されます。
A145: 校園設備等使用承認申請書兼承認書
A148: 神戸市教育委員会事務局総務部学校経営支援課長 宛
A150: 貴校園設備から下記の通り供給を願いたく、使用について申請いたします。
A152: 記
A154: １．校園名 | G154: =G18 -> 0
A156: ２．工事名 | G156: =G20 -> 0
G158: 【関連工事： | M158: =M22 -> □ | O158: 建築 | R158: =R22 -> □ | T158: 電気 | W158: =W22 -> □ | Y158: 機械 | AB158: =AB22 -> □ | AD158: ガス | AG158: =AG22 -> □ | AI158: 昇降機 | AL158: 】
A160: ３．所在地 | G160: =G24 -> 0
A162: ４．種別 | I162: =I94 -> □ | K162: 上下水道 | Z162: =Z26 -> □ | AB162: 電気
K164: 水栓番号 | Z164: =Z28 -> □ | AB164: 業務用電力
K165: =K97 ->  | Z165: =Z29 -> □ | AB165: 従量電灯
Z166: =Z30 -> □ | AB166: 低圧電力
A168: ５．用途 | G168: □ | H168: 算定式による計算 | P168: □ | Q168: 子メーターに設置 | Y168: □ | Z168: 算定式による計算 | AG168: □ | AH168: 子メーターに設置
A170: ６．使用期間 | G170: 自: | I170: 令和 | K170: =K102 ->  | M170: 年 | O170: =O102 ->  | Q170: 月 | S170: =S102 ->  | U170: 日 | Y170: 自: | AA170: 令和 | AC170: =AC102 ->  | AE170: 年 | AG170: =AG102 ->  | AI170: 月 | AK170: =AK102 ->  | AM170: 日
G172: 至: | I172: 令和 | K172: =K104 ->  | M172: 年 | O172: =O104 ->  | Q172: 月 | S172: =S104 ->  | U172: 日 | Y172: 至: | AA172: 令和 | AC172: =AC104 ->  | AE172: 年 | AG172: =AG104 ->  | AI172: 月 | AK172: =AK104 ->  | AM172: 日
A174: 令和 | C174: =C106 ->  | E174: 年 | G174: =G106 ->  | I174: 月 | K174: =K106 ->  | M174: 日
C176: 申請者 | G176: 住 所 | K176: =K40 -> 0
G178: 社 名 | K178: =K42 -> 0 | AL178: =AL42 -> 0
G180: TEL | K180: =K44 -> （ | L180: =L44 -> 0 | O180: =O44 -> ） | P180: =P44 -> 0 | S180: =S44 -> - | T180: =T44 -> 0 | X180: =X44 -> FAX | AB180: =AB44 -> （ | AC180: =AC44 -> 0 | AF180: =AF44 -> ） | AG180: =AG44 -> 0 | AJ180: =AJ44 -> - | AK180: =AK44 -> 0
G182: 代表者 | K182: =K46 -> 0 | X182: 担 当 | AB182: =AB46 -> 0 | AL182: ㊞
A186: 先に申請のあった標記のことについて、下記の内容・条件により承認します。 １．使用量について 様式2－1～2により毎月使用量を確認し、使用期間終了後※速やかに報告すること。 ※なお、使用期間が当該年12月末を超える場合は12月末、当該年度末(3月末)を 超える(複数年度工事)場合は3月末にも、あわせて報告すること。 ２．費用負担について 報告量に基づき、神戸市教育委員会の算式により算出した金額を負担すること。 ３．支払方法について 指定の納付期限までに、納付書により支払うこと。 ４．その他 使用期間の延長が必要な場合は再度、書類を提出すること。 承認者 神戸市中央区東川崎町1丁目３－３ 神戸市教育委員会事務局総務部学校経営支援課 TEL 078-984-0661，FAX 078-984-0670
... 1 more rows

Sheet 32
A1: 様式1 （教育委員会事務局提出用）
A10: 使 用 量 等 確 認 書 兼 報 告 書
A12: 神戸市教育委員会事務局総務部学校経営支援課長 宛
A14: 先に使用承認のあった水道等の使用量について、下記の通り報告いたします。
A16: 記
R18: 校園名 | AO18: 申請書の学校園名が自動入力されます。
R20: 工事名 | W20: =一括入力シート!B9 -> 0
A22: 【水道】 | F22: （ | G22: □ | H22: 算定式による計算 | Q22: □ | R22: 子メーター設置 | Z22: ） | AO22: 選択してください。（□→■）
A23: 区 分 | L23: 使 用 期 間 | U23: 使 用 量 | Z23: 摘 要
A25: 令和 | F25: 年 | J25: 月 | N25: 日～ | S25: 日 | X25: ㎥
A27: 令和 | F27: 年 | J27: 月 | N27: 日～ | S27: 日 | X27: ㎥
A29: 令和 | F29: 年 | J29: 月 | N29: 日～ | S29: 日 | X29: ㎥
A31: 令和 | F31: 年 | J31: 月 | N31: 日～ | S31: 日 | X31: ㎥
A33: 令和 | F33: 年 | J33: 月 | N33: 日～ | S33: 日 | X33: ㎥
A35: 令和 | F35: 年 | J35: 月 | N35: 日～ | S35: 日 | X35: ㎥
A37: 令和 | F37: 年 | J37: 月 | N37: 日～ | S37: 日 | X37: ㎥
A39: 令和 | F39: 年 | J39: 月 | N39: 日～ | S39: 日 | X39: ㎥
A41: 【電気】 | G41: （ | H41: □ | I41: 算定式による計算 | R41: □ | S41: 子メーター設置 | AA41: ） | AO41: 選択してください。（□→■）
A42: 区 分 | L42: 使 用 期 間 | U42: 使 用 量 | Z42: 摘 要
A44: 令和 | F44: 年 | J44: 月 | N44: 日～ | S44: 日 | X44: kwh
A46: 令和 | F46: 年 | J46: 月 | N46: 日～ | S46: 日 | X46: kwh
A48: 令和 | F48: 年 | J48: 月 | N48: 日～ | S48: 日 | X48: kwh
A50: 令和 | F50: 年 | J50: 月 | N50: 日～ | S50: 日 | X50: kwh
A52: 令和 | F52: 年 | J52: 月 | N52: 日～ | S52: 日 | X52: kwh
A54: 令和 | F54: 年 | J54: 月 | N54: 日～ | S54: 日 | X54: kwh
A56: 令和 | F56: 年 | J56: 月 | N56: 日～ | S56: 日 | X56: kwh
A58: 令和 | F58: 年 | J58: 月 | N58: 日～ | S58: 日 | X58: kwh
A60: 令和 | E60: 年 | I60: 月 | M60: 日 | AO60: 提出日を直接入力してください。
E61: 申請者 | K61: 住所 | N61: =一括入力シート!B65 -> 0
K62: 社名 | N62: =一括入力シート!B66 -> 0
K63: TEL | N63: =一括入力シート!B70 -> 0 | Q63: - | R63: =一括入力シート!C70 -> 0 | U63: - | V63: =一括入力シート!D70 -> 0 | Z63: FAX | AC63: =一括入力シート!B72 -> 0 | AF63: - | AG63: =一括入力シート!C72 -> 0 | AJ63: - | AK63: =一括入力シート!D72 -> 0
K64: 代表者 | N64: =一括入力シート!B67 -> 0 | Z64: 担当 | AC64: =一括入力シート!B75 -> 0 | AM64: 印
A65: ※ 本様式2は、① まずファックス（本紙のみ※送り状不要）により、学校経営支援課運営係（FAX番号：078-984-0670）に報告するとともに、② あわせて紙ベースで工事担当課に提出すること
A70: =CONCATENATE("様式2（",一括入力シート!D50,"提出）") -> 様式2（ 神戸住環境整備公社提出） | AO70: 様式2は、上記様式1の内容が自動入力されます。
O72: (設備課) | AA72: (建築課)
O74: 課長 | S74: 係長 | W74: 係 | AA74: 課長 | AE74: 係長 | AI74: 係
K78: （工事担当課返却先： 建築課・設備課 担当： ）
A79: 使 用 量 等 確 認 書 兼 報 告 書
A81: 神戸市教育委員会事務局総務部学校経営支援課長 宛
A83: 先に使用承認のあった水道等の使用量について、下記の通り報告いたします。
A85: 記
R87: =R18 -> 校園名 | W87: =W18 -> 0
R89: =R20 -> 工事名 | W89: =W20 -> 0
A91: 【水道】 | F91: （ | G91: =G22 -> □ | H91: 算定式による計算 | Q91: =Q22 -> □ | R91: 子メーター設置 | Z91: ）
A92: =A23 -> 区 分 | L92: =L23 -> 使 用 期 間 | U92: =U23 -> 使 用 量 | Z92: =Z23 -> 摘 要
A94: =A25 -> 令和 | D94: =IF(D25="","",D25) ->  | F94: =F25 -> 年 | H94: =IF(H25="","",H25) ->  | J94: =J25 -> 月 | L94: =IF(L25="","",L25) ->  | N94: =N25 -> 日～ | Q94: =IF(Q25="","",Q25) ->  | S94: =S25 -> 日 | U94: =IF(U25="","",U25) ->  | X94: =X25 -> ㎥ | Z94: =IF(Z25="","",Z25) -> 
A96: =A27 -> 令和 | D96: =IF(D27="","",D27) ->  | F96: =F27 -> 年 | H96: =IF(H27="","",H27) ->  | J96: =J27 -> 月 | L96: =IF(L27="","",L27) ->  | N96: =N27 -> 日～ | Q96: =IF(Q27="","",Q27) ->  | S96: =S27 -> 日 | U96: =IF(U27="","",U27) ->  | X96: =X27 -> ㎥ | Z96: =IF(Z27="","",Z27) -> 
A98: =A29 -> 令和 | D98: =IF(D29="","",D29) ->  | F98: =F29 -> 年 | H98: =IF(H29="","",H29) ->  | J98: =J29 -> 月 | L98: =IF(L29="","",L29) ->  | N98: =N29 -> 日～ | Q98: =IF(Q29="","",Q29) ->  | S98: =S29 -> 日 | U98: =IF(U29="","",U29) ->  | X98: =X29 -> ㎥ | Z98: =IF(Z29="","",Z29) -> 
A100: =A31 -> 令和 | D100: =IF(D31="","",D31) ->  | F100: =F31 -> 年 | H100: =IF(H31="","",H31) ->  | J100: =J31 -> 月 | L100: =IF(L31="","",L31) ->  | N100: =N31 -> 日～ | Q100: =IF(Q31="","",Q31) ->  | S100: =S31 -> 日 | U100: =IF(U31="","",U31) ->  | X100: =X31 -> ㎥ | Z100: =IF(Z31="","",Z31) -> 
A102: =A33 -> 令和 | D102: =IF(D33="","",D33) ->  | F102: =F33 -> 年 | H102: =IF(H33="","",H33) ->  | J102: =J33 -> 月 | L102: =IF(L33="","",L33) ->  | N102: =N33 -> 日～ | Q102: =IF(Q33="","",Q33) ->  | S102: =S33 -> 日 | U102: =IF(U33="","",U33) ->  | X102: =X33 -> ㎥ | Z102: =IF(Z33="","",Z33) -> 
A104: =A35 -> 令和 | D104: =IF(D35="","",D35) ->  | F104: =F35 -> 年 | H104: =IF(H35="","",H35) ->  | J104: =J35 -> 月 | L104: =IF(L35="","",L35) ->  | N104: =N35 -> 日～ | Q104: =IF(Q35="","",Q35) ->  | S104: =S35 -> 日 | U104: =IF(U35="","",U35) ->  | X104: =X35 -> ㎥ | Z104: =IF(Z35="","",Z35) -> 
A106: =A37 -> 令和 | D106: =IF(D37="","",D37) ->  | F106: =F37 -> 年 | H106: =IF(H37="","",H37) ->  | J106: =J37 -> 月 | L106: =IF(L37="","",L37) ->  | N106: =N37 -> 日～ | Q106: =IF(Q37="","",Q37) ->  | S106: =S37 -> 日 | U106: =IF(U37="","",U37) ->  | X106: =X37 -> ㎥ | Z106: =IF(Z37="","",Z37) -> 
A108: =A39 -> 令和 | D108: =IF(D39="","",D39) ->  | F108: =F39 -> 年 | H108: =IF(H39="","",H39) ->  | J108: =J39 -> 月 | L108: =IF(L39="","",L39) ->  | N108: =N39 -> 日～ | Q108: =IF(Q39="","",Q39) ->  | S108: =S39 -> 日 | U108: =IF(U39="","",U39) ->  | X108: =X39 -> ㎥ | Z108: =IF(Z39="","",Z39) -> 
A110: 【電気】 | G110: （ | H110: =H41 -> □ | I110: 算定式による計算 | R110: =R41 -> □ | S110: 子メーター設置 | AA110: ）
A111: =A42 -> 区 分 | L111: =L42 -> 使 用 期 間 | U111: =U42 -> 使 用 量 | Z111: =Z42 -> 摘 要
A113: =A44 -> 令和 | D113: =IF(D44="","",D44) ->  | F113: =F44 -> 年 | H113: =IF(H44="","",H44) ->  | J113: =J44 -> 月 | L113: =IF(L44="","",L44) ->  | N113: =N44 -> 日～ | Q113: =IF(Q44="","",Q44) ->  | S113: =S44 -> 日 | U113: =IF(U44="","",U44) ->  | X113: =X44 -> kwh | Z113: =IF(Z44="","",Z44) -> 
A115: =A46 -> 令和 | D115: =IF(D46="","",D46) ->  | F115: =F46 -> 年 | H115: =IF(H46="","",H46) ->  | J115: =J46 -> 月 | L115: =IF(L46="","",L46) ->  | N115: =N46 -> 日～ | Q115: =IF(Q46="","",Q46) ->  | S115: =S46 -> 日 | U115: =IF(U46="","",U46) ->  | X115: =X46 -> kwh | Z115: =IF(Z46="","",Z46) -> 
A117: =A48 -> 令和 | D117: =IF(D48="","",D48) ->  | F117: =F48 -> 年 | H117: =IF(H48="","",H48) ->  | J117: =J48 -> 月 | L117: =IF(L48="","",L48) ->  | N117: =N48 -> 日～ | Q117: =IF(Q48="","",Q48) ->  | S117: =S48 -> 日 | U117: =IF(U48="","",U48) ->  | X117: =X48 -> kwh | Z117: =IF(Z48="","",Z48) -> 
A119: =A50 -> 令和 | D119: =IF(D50="","",D50) ->  | F119: =F50 -> 年 | H119: =IF(H50="","",H50) ->  | J119: =J50 -> 月 | L119: =IF(L50="","",L50) ->  | N119: =N50 -> 日～ | Q119: =IF(Q50="","",Q50) ->  | S119: =S50 -> 日 | U119: =IF(U50="","",U50) ->  | X119: =X50 -> kwh | Z119: =IF(Z50="","",Z50) -> 
A121: =A52 -> 令和 | D121: =IF(D52="","",D52) ->  | F121: =F52 -> 年 | H121: =IF(H52="","",H52) ->  | J121: =J52 -> 月 | L121: =IF(L52="","",L52) ->  | N121: =N52 -> 日～ | Q121: =IF(Q52="","",Q52) ->  | S121: =S52 -> 日 | U121: =IF(U52="","",U52) ->  | X121: =X52 -> kwh | Z121: =IF(Z52="","",Z52) -> 
A123: =A54 -> 令和 | D123: =IF(D54="","",D54) ->  | F123: =F54 -> 年 | H123: =IF(H54="","",H54) ->  | J123: =J54 -> 月 | L123: =IF(L54="","",L54) ->  | N123: =N54 -> 日～ | Q123: =IF(Q54="","",Q54) ->  | S123: =S54 -> 日 | U123: =IF(U54="","",U54) ->  | X123: =X54 -> kwh | Z123: =IF(Z54="","",Z54) -> 
A125: =A56 -> 令和 | D125: =IF(D56="","",D56) ->  | F125: =F56 -> 年 | H125: =IF(H56="","",H56) ->  | J125: =J56 -> 月 | L125: =IF(L56="","",L56) ->  | N125: =N56 -> 日～ | Q125: =IF(Q56="","",Q56) ->  | S125: =S56 -> 日 | U125: =IF(U56="","",U56) ->  | X125: =X56 -> kwh | Z125: =IF(Z56="","",Z56) -> 
A127: =A58 -> 令和 | D127: =IF(D58="","",D58) ->  | F127: =F58 -> 年 | H127: =IF(H58="","",H58) ->  | J127: =J58 -> 月 | L127: =IF(L58="","",L58) ->  | N127: =N58 -> 日～ | Q127: =IF(Q58="","",Q58) ->  | S127: =S58 -> 日 | U127: =IF(U58="","",U58) ->  | X127: =X58 -> kwh | Z127: =IF(Z58="","",Z58) -> 
A129: =A60 -> 令和 | C129: =IF(C60="","",C60) ->  | E129: =E60 -> 年 | G129: =IF(G60="","",G60) ->  | I129: =I60 -> 月 | K129: =IF(K60="","",K60) ->  | M129: =M60 -> 日
E130: =E61 -> 申請者 | K130: =K61 -> 住所 | N130: =N61 -> 0
K131: =K62 -> 社名 | N131: =N62 -> 0
K132: =K63 -> TEL | N132: =N63 -> 0 | Q132: - | R132: =R63 -> 0 | V132: - | W132: =V63 -> 0 | Z132: =Z63 -> FAX | AC132: =AC63 -> 0 | AF132: - | AG132: =AG63 -> 0 | AL132: =AK63 -> 0
K133: =K64 -> 代表者 | N133: =N64 -> 0 | Z133: =Z64 -> 担当 | AC133: =AC64 -> 0 | AM133: =AM64 -> 印
A134: ※ 本様式2は、① まずファックス（本紙のみ※送り状不要）により、学校経営支援課運営係（FAX番号：078-984-0670）に報告するとともに、② あわせて紙ベースで工事担当課に提出すること
... 1 more rows

Sheet 33
A1: 物 品 引 渡 書 | AI1: 1 | AK1: ／ | AM1: 2
A3: 神戸市長 宛 | Z3: 令和 | AE3: 年 | AI3: 月 | AM3: 日 | AO3: 工事目的物引渡しの年月日を記入してください。
V6: =一括入力シート!B65 -> 0
A8: 下記のとおり、物品を引き渡します。 | R8: 請負人 | V8: =一括入力シート!B66 -> 0
V10: =一括入力シート!B67 -> 0
X12: 連絡先 | AB12: =一括入力シート!B70 -> 0 | AE12: - | AG12: =一括入力シート!C70 -> 0 | AJ12: - | AL12: =一括入力シート!D70 -> 0
AO14: 記入例 | AR14: (一財）神戸住環境整備公社公社 施設整備部 設備or都市整備 課 ○○○○（課長名）
R15: 工事担当課
AR17: （施設名）＋（施設代表者サイン）
A18: 下記の物品を受け取りました。
A20: 工事名 | G20: =一括入力シート!B9 -> 0
A23: 棟名称 | AR23: （注意）
AR24: ・請負人,工事担当課の引渡書には鍵番号を記載しないこと。
A26: 物品名または施錠箇所 | Q26: 一組当たり の数量 | W26: 鍵番号 | AF26: 備 考
A68: （注意）
A69: ・請負人,工事担当課の引渡書には鍵番号を記載しないこと。
AI71: 2 | AK71: ／ | AM71: =AM1 -> 2
A73: 物品名または施錠箇所 | Q73: 一組当たり の数量 | W73: 鍵番号 | AF73: 備 考
... 1 more rows

Sheet 34
AA2: 令和 | AE2: 年 | AI2: 月 | AM2: 日
AP3: 日付を入力してください
B4: ='31'!G18 -> 0 | P4: 宛
I7: 鍵 借 用 書
T11: 請負人 | Y11: =一括入力シート!B66&CHAR(10)&一括入力シート!B67 -> 
T14: 現場代理人 | Y14: =一括入力シート!B75 -> 0
J18: 下記により、鍵を借用いたします。
R22: 記
D24: 1. | F24: 学校名 | N24: ： | P24: ='31'!G18 -> 0
D27: 2. | F27: 工事名称 | N27: ： | P27: =一括入力シート!B9 -> 0
D30: 3. | F30: 借用期間 | N30: ： | P30: 自 | R30: 令和 | W30: 年 | AA30: 月 | AE30: 日
A32: 住 所 | P32: 至 | R32: 令和 | W32: 年 | AA32: 月 | AE32: 日
D35: 4. | F35: 保管責任者 | N35: ：
P38: 電話 | T38: ： | Z38: - | AF38: -
P40: 携帯電話 | V40: ： | AA40: - | AF40: -
C43: 借用については、次の事項を守ります。
D46: (1) | G46: 鍵は，保管責任者が責任を持って所持し，合鍵は一切作成しません。
D48: (2) | G48: 鍵の保管については，万全の注意を払います。
D50: (3) | G50: 使用期間内にあっても，工事完了等により鍵が不要になれば，すみやかに返却いたします。
D52: (4) | G52: 借用期間が過ぎるおそれがある時は，直ちに連絡し，貴校の指示に従います。
D54: (5) | G54: 鍵を紛失した場合は，借用者の負担と責任により全施設の鍵の取替を行うなど，貴校の指示に異議なく従います。
M59: 鍵種別
M64: 貸出責任者
C70: 学校管理者不在時の休日・夜間作業等における基本的な「取り決め事項」について
C74: 学校改修工事において、休日や夜間など学校管理者が不在時にやむを得ず作業を行う場合について、基本的な「取り決め事項」を下記のとおりとしますので、対応をお願いします。 なお、学校により事情が異なりますので、個別の対応については、事前にその取り扱いについて、学校管理者と十分に協議するようお願いします。
C82: 【休日・夜間作業にかかる計画書の事前提出】
C84: １． | E84: 現場代理人は、休日・夜間作業を行う場合は近隣に迷惑のかからない範囲で、また学校運営への支障を極力抑えるよう努めるものとし、事前にその計画書を提出し、学校管理者の了解を得ること。また、その計画内容が変更となる場合は、学校管理者に速やかに連絡すること。連絡は緊急時を除き、必ず事前に行うこと。
C90: 【鍵の貸し出し】
C92: ２． | E92: 学校管理者が不在時に休日・夜間作業を行う場合は、学校管理上支障のない範囲において、学校管理者から現場代理人に対し、工事現場に入るための鍵を貸し出すものとする。この場合、現場代理人は、鍵借用書を作成し、責任をもって鍵を管理すること。ただし、マスターキーの貸し出しは行わない。
C98: 【学校門扉の開閉】
C100: ３． | E100: 学校門扉の開閉は現場代理人が責任をもって行うこと。特に最初の開錠と作業終了後の施錠（作業範囲の最終確認を含む）は現場代理人が直接行うこと。また、学校門扉は開け放しせず、その都度閉鎖するか、警備員を配置し、無断侵入者がないよう注意すること。
C106: 【工事範囲外への立入禁止の徹底】
C108: ４． | E108: 現場代理人は、休日・夜間作業に従事する作業員名簿を作成し、学校管理者に提出すること。作業員は腕章、または大きな名札で工事関係者であることを明示すること。工事範囲をカラーコーンなどで明示し、その範囲外に立ち入らないよう作業員全員に周知徹底すること。
C114: 【事故発生時等の対応】
C116: ５． | E116: 現場代理人は作業時に校内の器物や児童生徒の作品などを破損しないよう十分に注意すること。また、学校管理者が不在時に、万が一、破損事故等が発生した場合は、工事監理者及び学校管理者に直ちに連絡し、その指示に従うこと。現場代理人は緊急時に備え、学校管理者も含めた緊急連絡簿を事前に作成しておくこと。
C122: 【近隣への周知】
C124: ６． | E124: 休日・夜間作業を行う場合は、近隣への周知の要否について、学校管理者に協議すること。また、看板設置やチラシを配布する場合は時間外でも、連絡が可能な電話番号を明示すること。
... 1 more rows

Sheet 35
A9: 補 修 連 絡 先 一 覧 表
AD10: =一括入力シート!B35 -> 0 | AG10: 年 | AI10: =一括入力シート!C35 -> 0 | AK10: 月引渡し
A11: 所属長 | E11: 係 長 | I11: 係 | N11: （施設名）ﾏｲｸﾛＮｏ． | AE11: （ | AH11: 枚の内 | AM11: ）
O12: =一括入力シート!B9 -> 0
Y14: 造・地上 | AE14: 階、地下 | AK14: 階建て
A15: 工事内容 | H15: 請負人 | O15: 補修連絡先部署・担当者 | AG15: 電話
A16: 建築工事 | AB16: ・
A17: 電気工事 | AB17: ・
A18: 給排水設備工事 | AB18: ・
A19: ガス設備工事 | AB19: ・
A20: 昇降機設備工事 | AB20: ・
A21: 屋外附帯工事 | AB21: ・
A22: 植栽工事 | AB22: ・
AB23: ・
A24: 材料項目 | H24: ﾒｰｶｰ名 | O24: 品番・工法 | V24: 補修連絡先部署・担当者 | AG24: 電話
A25: 建物外部 | B25: 屋根 | AB25: ・
B26: 防水 | AB26: ・
B27: 外壁 | AB27: ・
B28: 腰 | AB28: ・
B29: 壁塗材 | AB29: ・
AB30: ・
A31: 建具 | B31: アルミ製建具 | AB31: ・
B32: 鋼製建具 | AB32: ・
B33: 玄関建具 | AB33: ・
B34: 吊り戸 | AB34: ・
B35: シャッター | AB35: ・
B36: 建具錠前 | AB36: ・
AB37: ・
A38: 建物内部 | B38: フローリング | AB38: ・
B39: 長尺シート | AB39: ・
B40: キッチンユニット | AB40: ・
B41: ガスレンジ | AB41: ・
B42: ユニットバス | AB42: ・
B43: 洗面化粧台 | AB43: ・
B44: 洗濯防水パン | AB44: ・
B45: 室名札 | AB45: ・
B46: ﾎﾟﾘ等化粧板 | AB46: ・
AB47: ・
AB48: ・
A49: 屋外 | B49: フェンス | AB49: ・
B50: 門扉 | AB50: ・
B51: サインポスト | AB51: ・
B52: 集合郵便受 | AB52: ・
A53: 設備 | B53: 給湯器 | AB53: ・
B54: エアコン | AB54: ・
B55: インターホン | AB55: ・
B56: 全ての水洗 | AB56: ・
AB57: ・
AB58: ・
A59: =CONCATENATE("（注）この様式は完成時に作成し、3部提出する。書ききれない場合は別紙可。【",一括入力シート!D50,"】") -> （注）この様式は完成時に作成し、3部提出する。書ききれない場合は別紙可。【 神戸住環境整備公社】
... 1 more rows

Sheet 36
U3: 令和 | AA3: 年 | AF3: 月 | AK3: 日 | AO3: 提出する年月日を直接入力してください。
A6: =一括入力シート!B50 -> 一般財団法人
A8: =CONCATENATE(一括入力シート!D50," 理事長 宛") -> 神戸住環境整備公社 理事長 宛
A14: 請負人 | E14: 所在地 | L14: =一括入力シート!B65 -> 0
E16: 商号又は名称 | L16: =一括入力シート!B66 -> 0
E19: 代表者氏名 | L19: =一括入力シート!B67 -> 0
E22: 連絡先 | L22: =一括入力シート!B70 -> 0 | S22: - | V22: =一括入力シート!C70 -> 0 | AC22: - | AG22: =一括入力シート!D70 -> 0
A28: 工事施工における創意工夫等実施状況報告書
A32: 工事における創意工夫等の実施状況について、下記のとおり報告します。
A35: 記
A38: 工事名
A39: =一括入力シート!B9 -> 0
A43: 工事場所
A44: =一括入力シート!B11&CHAR(10)&一括入力シート!B13 -> 
A48: 工期 | U48: 請負代金額
B49: 着工期日 | G49: 令和 | I49: =一括入力シート!B21 -> 0 | K49: 年 | M49: =一括入力シート!C21 -> 0 | O49: 月 | Q49: =一括入力シート!D21 -> 0 | S49: 日 | U49: =一括入力シート!B45 ->  | AL49: 円
B51: 完成期限 | G51: 令和 | I51: =一括入力シート!B30 -> 0 | K51: 年 | M51: =一括入力シート!C30 -> 0 | O51: 月 | Q51: =一括入力シート!D30 -> 0 | S51: 日
A53: 工事特性・創意工夫・社会性等に関する実施状況
A54: ・ 別紙１，別紙２のとおり
A58: ※ 具体例等については、工事成績評定要領を参考とすること。
C59: http://www.city.kobe.lg.jp/business/regulation/construction/work/img/kouji-hyoutei-all.pdf
AN63: 別紙１
A64: 工事特性・創意工夫・社会性等に関する実施状況 | AO64: 報告する項目，内容を選択してください。 | BD64: （ | BE64: □ | BF64: → | BG64: ■ | BH64: に変更してください。）
B65: 工 事 名 | H65: =A39 -> 0
B67: 項 目 | J67: 内 容 | S67: 具体的な取り組み内容（例）
A69: □ | C69: 工事特性 | H69: □ | J69: 建物の特性 | R69: 建物規模（面積、高さ、大空間等）
R70: 構造物耐震レベル
R71: 特殊機能や設備のある建物
H72: □ | J72: 施工技術 | R72: ＶＥ提案
R73: 特殊な工法、材料、設備システム
R74: 制約条件から施工難度が高い
H75: □ | J75: 自然・地盤条件 | R75: 湧水の発生、地下水の影響
R76: 軟弱地盤、支持地盤の状況
R77: 雨・雪・風・気温等の影響
H78: □ | J78: 周辺環境等 | R78: 地中埋設物等の作業障害
R79: 工事影響を配慮する近接建物
R80: 騒音・振動・水質汚濁の配慮
H81: □ | J81: 施工現場 | R81: 長期工事における安全確保への対応
R82: 災害時での臨機の措置
R83: 施工状況（条件）に対応した施工・工法等
A84: □ | C84: 創意工夫 | H84: □ | J84: 事務・片付け | R84: 測量・位置出しにおける工夫 | AO84: ■ | AQ84: 創意工夫 | AV84: □ | AX84: 事務・片付け | BF84: 測量・位置出しにおける工夫 | CC84: ■ | CE84: 創意工夫 | CJ84: □ | CL84: 事務・片付け | CT84: 測量・位置出しにおける工夫
R85: 現地調査方法の工夫 | BF85: 現地調査方法の工夫 | CT85: 現地調査方法の工夫
H86: □ | J86: 施工 | R86: 器具・工具・装置類の工夫 | AV86: ■ | AX86: 施工 | BF86: 器具・工具・装置類の工夫 | CJ86: □ | CL86: 施工 | CT86: 器具・工具・装置類の工夫
R87: 副産物及び廃棄物の減少、リサイクルの積極的な取り組み | BF87: 副産物及び廃棄物の減少、リサイクルの積極的な取り組み | CT87: 副産物及び廃棄物の減少、リサイクルの積極的な取り組み
R88: 土工事、地業工事、鉄骨建て方、コンクリート工事等の施工関係の工夫 | BF88: 土工事、地業工事、鉄骨建て方、コンクリート工事等の施工関係の工夫 | CT88: 土工事、地業工事、鉄骨建て方、コンクリート工事等の施工関係の工夫
R89: 建築材料・機材等の運搬・搬入等を含む施工方法に工夫 | BF89: 建築材料・機材等の運搬・搬入等を含む施工方法に工夫 | CT89: 建築材料・機材等の運搬・搬入等を含む施工方法に工夫
R90: 電気設備工事等の配線、配管等の工夫 | BF90: 電気設備工事等の配線、配管等の工夫 | CT90: 電気設備工事等の配線、配管等の工夫
R91: 機械設備工事等の配管、ダクト等の工夫 | BF91: 機械設備工事等の配管、ダクト等の工夫 | CT91: 機械設備工事等の配管、ダクト等の工夫
R92: 照明・視界確保等の工夫 | BF92: 照明・視界確保等の工夫 | CT92: 照明・視界確保等の工夫
R93: 仮排水、仮道路、迂回路等の計画・施工の工夫 | BF93: 仮排水、仮道路、迂回路等の計画・施工の工夫 | CT93: 仮排水、仮道路、迂回路等の計画・施工の工夫
R94: 運搬車両・施工機械等の工夫 | BF94: 運搬車両・施工機械等の工夫 | CT94: 運搬車両・施工機械等の工夫
R95: 型枠、足場、山留め等の仮設関係の工夫 | BF95: 型枠、足場、山留め等の仮設関係の工夫 | CT95: 型枠、足場、山留め等の仮設関係の工夫
R96: 施工管理及び品質向上等の工夫 | BF96: 施工管理及び品質向上等の工夫 | CT96: 施工管理及び品質向上等の工夫
R97: プレハブ工法等の採用による工期短縮等の工夫 | BF97: プレハブ工法等の採用による工期短縮等の工夫 | CT97: プレハブ工法等の採用による工期短縮等の工夫
R98: 仮設施工等の工夫 | BF98: 仮設施工等の工夫 | CT98: 仮設施工等の工夫
R99: 既存施設・近隣等に対する騒音・振動対策等の工夫 | BF99: 既存施設・近隣等に対する騒音・振動対策等の工夫 | CT99: 既存施設・近隣等に対する騒音・振動対策等の工夫
R100: 保全への配慮による材料選定・施工方法等の工夫 | BF100: 保全への配慮による材料選定・施工方法等の工夫 | CT100: 保全への配慮による材料選定・施工方法等の工夫
R101: 作業の安全性向上のための施工方法等の工夫 | BF101: 作業の安全性向上のための施工方法等の工夫 | CT101: 作業の安全性向上のための施工方法等の工夫
H102: □ | J102: 品質 | R102: 集計ソフト等の活用と工夫 | CJ102: □ | CL102: 品質 | CT102: 集計ソフト等の活用と工夫
R103: 躯体工事の品質管理の工夫 | CT103: 躯体工事の品質管理の工夫
R104: 建築材料・機材の検査・試験に関する工夫 | CT104: 建築材料・機材の検査・試験に関する工夫
R105: 施工の検査・試験に関する工夫 | CT105: 施工の検査・試験に関する工夫
R106: 品質記録方法の工夫 | CT106: 品質記録方法の工夫
H107: □ | J107: 安全衛生 | R107: 安全仮設設備等の工夫 | CJ107: ■ | CL107: 安全衛生 | CT107: 安全仮設設備等の工夫
R108: 安全衛生教育、技術向上講習会、パトロールに関する工夫 | CT108: 安全衛生教育、技術向上講習会、パトロールに関する工夫
R109: 現場事務所、休憩所等の環境向上の工夫 | CT109: 現場事務所、休憩所等の環境向上の工夫
R110: 酸欠対策・有毒ガス・可燃ガスの処理等の工夫 | CT110: 酸欠対策・有毒ガス・可燃ガスの処理等の工夫
R111: 周辺道路等の事故防止の工夫 | CT111: 周辺道路等の事故防止の工夫
R112: 改修工事における既存施設利用者等に対する安全対策の工夫 | CT112: 改修工事における既存施設利用者等に対する安全対策の工夫
R113: 作業時における作業環境改善の工夫 | CT113: 作業時における作業環境改善の工夫
R114: ゴミ減量化、アイドリングストップ励行等の地球環境配慮 | CT114: ゴミ減量化、アイドリングストップ励行等の地球環境配慮
H115: □ | J115: 施工管理 | R115: 出来形管理等に関する工夫
R116: 施工計画書・写真記録に関する工夫
R117: 出来形・品質に関する計測・集計の工夫
R118: ＣＡＤ施工管理ソフトやＣＡＬＳの活用した施工管理の工夫
H119: □ | J119: 新技術 | R119: 新技術の活用（ＮＥＴＩＳ）
H121: □ | J121: その他 | AO121: 創意工夫の内容に該当するものがなければ、その他に具体的な取り組み内容を直接入力してください。
A123: □ | C123: 社会性等 | H123: 地域への貢献等 | R123: 災害時等における地域への救援活動等の協力実施
R124: 周辺地域の環境保全、生物保護等に関する具体的な対策
R125: 作業現場等の環境と周辺地域との調和
R126: 広報活動や現場見学会等の実施等による地域とのコミュニケーション
R127: 地域イベントへの協力やボランティア活動等への協力や参加 | AO127: 説明資料（別紙２）は実施内容ごとに作成して提出してください。
AN131: 別紙２ | AO131: 説明資料（例-1） | CB131: 別紙２ | CC131: 説明資料（例-2） | DP131: 別紙２
A132: 工事特性・創意工夫・社会性等に関する実施状況（説明資料） | AO132: 工事特性・創意工夫・社会性等に関する実施状況（説明資料） | CC132: 工事特性・創意工夫・社会性等に関する実施状況（説明資料）
B133: 工 事 名 | H133: =A39 -> 0 | AP133: 工 事 名 | AV133: ○○区総合庁舎建設工事 | CD133: 工 事 名 | CJ133: （仮称）○○住宅建設工事
B135: 項目 | AP135: 項目 | AV135: 創意工夫－施工 | CD135: 項目 | CJ135: 創意工夫－安全衛生
B137: 実施内容 | AP137: 実施内容 | AV137: 土工事による過積載防止活動 | CD137: 実施内容 | CJ137: 安全仮設設備等の工夫
B140: 評価内容 | AP140: 評価内容 | AV140: 生活道路の環境保全等 | CD140: 評価内容 | CJ140: 安全仮設資機材等の見える化等
B143: 目的等説明 | AP143: 目的等説明 | CD143: 目的等説明
AP145: 単位体積による過積載防止ライン（積載ライン）のシールをダンプトラックに貼り付け、目視による過積載防止を容易に確認できるようにするとともに、徹底した管理により過積載ゼロとして生活道路等の環境保全に努めた。 | CD145: 当該現場作業所は、床版の段差等が多くあり、“つまづき”による転倒災害が起こりやすいと考えられることから、段差の見える化と仮設開口部のフラット化を図り、作業員に注意喚起を促し、作業所内の安全衛生管理に取り組んだ。
B151: 添付図・写真等 | AP151: 添付図・写真等 | CD151: 添付図・写真等
AQ171: 単位容積の計測 | CE171: トラテープによるスラブ段差の見える化
AQ191: シールの貼付け
CE193: スラブ仮設開口部のフラット化
... 1 more rows

Sheet 37
AO1: 「神戸市廃棄物の適正処理，再利用及び環境美化に関する条例」で、建築物等の解体工事を施工する者（請負 業者及び自主施工者）に解体廃棄物の産業廃棄物処分業者への引渡しの完了報告を義務付けています。
A2: 建設資材廃棄物引渡完了報告書
AC4: 令和 | AH4: 年 | AK4: 月 | AN4: 日
B6: 神戸市長 宛
A8: 注文者 | E8: =一括入力シート!D50 -> 神戸住環境整備公社 | O8: 宛 | AO8: （報告の対象となる解体工事）
S9: 報告者 | AO9: 建築物の解体工事 床面積の合計 80㎡以上
S10: 住所（法人にあっては，主たる事務所の所在地） | AO10: 工作物等の解体工事 請負金額500万円以上（消費税込み）
S11: =一括入力シート!B65 -> 0
AO12: 報告書と各廃棄物ごとのマニフェスト（B2票）写しを添付して提出してください。
S13: 氏名（法人にあっては，名称及び代表者の氏名）
S14: =一括入力シート!B66 -> 0
A15: 報告者 住所（法人にあっては、主たる事務所の所在地）
S16: =一括入力シート!B67 -> 0
S18: 電話 | U18: （ | V18: =一括入力シート!B70 -> 0 | Y18: ） | Z18: =一括入力シート!C70 -> 0 | AD18: － | AG18: =一括入力シート!D70 -> 0
A20: 解体工事の名称 | N20: =一括入力シート!B9 -> 0
A22: 解体工事の場所 | N22: =一括入力シート!B11&IF(一括入力シート!B13="","",CHAR(10)&一括入力シート!B13) -> 
A24: 解体した建築物等の構造
A26: 解体工事の対象床面積 | Y26: ㎡
A28: 解体工事の請負代金 | N28: =一括入力シート!B45 ->  | Y28: 円
A30: 引渡完了年月日 | N30: 令和 | T30: 年 | Y30: 月 | AD30: 日
A32: 建設資材廃棄物の処理費用 | N32: 運搬費 | V32: 円 | W32: 処分費 | AE32: 円 | AF32: 合計 | AN32: 円
A34: 建設資材廃棄物の種類 | C34: 1 | K34: 搬出先事業場の名称
K36: 搬出先事業場の所在地
K38: 引渡量
C40: 2 | K40: 搬出先事業場の名称
K42: 搬出先事業場の所在地
K44: 引渡量
C46: 3 | K46: 搬出先事業場の名称
K48: 搬出先事業場の所在地
K50: 引渡量
C52: 4 | K52: 搬出先事業場の名称
K54: 搬出先事業場の所在地
K56: 引渡量
C58: 5 | K58: 搬出先事業場の名称
K60: 搬出先事業場の所在地
K62: 引渡量
C64: 6 | K64: 搬出先事業場の名称
K66: 搬出先事業場の所在地
K68: 引渡量
A70: 注 | C70: 解体工事の対象床面積の項には，建築物の解体工事の場合において，当該解体工事に係る 部分の床面積を記入してください。
A74: 提出先：神戸市環境局環境保全課 建設リサイクル担当
... 1 more rows

Sheet 40
AO2: 提出年月日を直接入力してください。
AA4: 令和 | AE4: 年 | AI4: 月 | AM4: 日
A7: =CONCATENATE(一括入力シート!D50," ",一括入力シート!B53,"部 ",一括入力シート!D53,"課長 宛") -> 神戸住環境整備公社 施設整備部 課長 宛
T11: 請負人 | Y11: =一括入力シート!B66&CHAR(10)&一括入力シート!B67 -> 
T14: 現場代理人 | Y14: =一括入力シート!B75 -> 0
A21: 週 休 ２ 日 制 工 事 実 施 意 向 届 出 書
B26: 週休２日制工事の実施の意向について、次の通り届け出ます。
B30: 工事件名 | K30: =一括入力シート!B9 -> 0
B34: 週休２制工事の実施
M36: □ | O36: 次の通り実施します | AO36: 監督員と協議の上、決定したパターンを選んでください。
O38: 対象期間において
P41: □ | Q41: 月単位の４週８休以上
P43: □ | Q43: 通期の４週８休以上
O46: の現場閉所（現場休息）を行う。 ※
M48: □ | O48: 実施しません
B51: ※ ４週８休以上：現場閉所（現場休息）率28.5%（8日/28日）以上
AK52: ／その他「神戸住環境整備公社週休２日制工事実施要領」参照のこと。
... 1 more rows

Sheet 41
A1: 休日等取得計画・実績書
A2: 工事件名 | C2: =一括入力シート!B9 -> 0 | L2: 請負人名 | N2: =一括入力シート!B66 -> 0
A3: 工期 | C3: 令和 | D3: =一括入力シート!B21 -> 0 | E3: 年 | F3: =一括入力シート!C21 -> 0 | G3: 月 | H3: =一括入力シート!D21 -> 0 | I3: 日～ | J3: 令和 | K3: =一括入力シート!B30 -> 0 | L3: 年 | M3: =一括入力シート!C30 -> 0 | N3: 月 | O3: =一括入力シート!D30 -> 0 | P3: 日
A4: 提出日 | C4: 計画 | D4: 令和 | F4: 年 | H4: 月 | J4: 日 | K4: 実績 | M4: 年 | O4: 月 | Q4: 日
L5: （ | N5: ／ | Q5: 枚のうち）
A6: 令和 | C6: 年 | E6: 月 | K6: 年 | M6: 月
A7: 日 | B7: 曜日 | C7: 休日取得 | E7: 備考 | J7: 日 | K7: 曜日 | L7: 休日取得 | N7: 備考
C8: 計画 | D8: 実績 | L8: 計画 | M8: 実績
A9: 1 | B9: 火 | J9: 1
A10: 2 | B10: 水 | J10: 2
A11: 3 | B11: 木 | J11: 3
A12: 4 | B12: 金 | J12: 4
A13: 5 | B13: 土 | J13: 5
A14: 6 | B14: 日 | J14: 6
A15: 7 | B15: 月 | J15: 7
A16: 8 | B16: 火 | J16: 8
A17: 9 | B17: 水 | J17: 9
A18: 10 | B18: 木 | J18: 10
A19: 11 | B19: 金 | J19: 11
A20: 12 | B20: 土 | J20: 12
A21: 13 | B21: 日 | J21: 13
A22: 14 | B22: 月 | J22: 14
A23: 15 | B23: 火 | J23: 15
A24: 16 | B24: 水 | J24: 16
A25: 17 | B25: 木 | J25: 17
A26: 18 | B26: 金 | J26: 18
A27: 19 | B27: 土 | J27: 19
A28: 20 | B28: 日 | J28: 20
A29: 21 | B29: 月 | J29: 21
A30: 22 | B30: 火 | J30: 22
A31: 23 | B31: 水 | J31: 23
A32: 24 | B32: 木 | J32: 24
A33: 25 | B33: 金 | J33: 25
A34: 26 | B34: 土 | J34: 26
A35: 27 | B35: 日 | J35: 27
A36: 28 | B36: 月 | J36: 28
A37: 29 | B37: 火 | J37: 29
A38: 30 | B38: 水 | J38: 30
B39: 木 | J39: 31
A40: 当月 | B40: 対象 土日数 | D40: =IF(C42=0,0,C40/C42) -> 0 | E40: 土日数＜28.5%の場合、 閉所等の日数＞土日数で達成 | J40: 当月 | K40: 対象 土日数 | M40: =IF(L42=0,0,L40/L42) -> 0 | N40: 土日数＜28.5%の場合、 閉所等の日数＞土日数で達成
B41: 閉所等 | C41: =COUNTIF(C10:C40,"■")+COUNTIF(C10:C40,"▲") -> 0 | D41: =COUNTIF(D9:D39,"■")+COUNTIF(D9:D39,"▲") -> 0 | E41: 実績累計 | F41: 閉所等 | G41: =C41 -> 0 | K41: 閉所等 | L41: =COUNTIF(L10:L40,"■")+COUNTIF(L10:L40,"▲") -> 0 | M41: =COUNTIF(M9:M39,"■")+COUNTIF(M9:M39,"▲") -> 0 | N41: 実績累計 | O41: 閉所等 | P41: =D41+M41 -> 0 | R41: =P41 -> 0
B42: 日数 | C42: =IF(COUNTIF(C9:C39,"")=31,0,COUNTIF(C9:C39,"")+COUNTIF(C9:C39,"■")+COUNTIF(C9:C39,"▲")) -> 0 | D42: =IF(COUNTIF(D9:D39,"")=31,0,COUNTIF(D9:D39,"")+COUNTIF(D9:D39,"■")+COUNTIF(D9:D39,"▲")) -> 0 | F42: 日数 | G42: =C42 -> 0 | K42: 日数 | L42: =IF(COUNTIF(L9:L39,"")=31,0,COUNTIF(L9:L39,"")+COUNTIF(L9:L39,"■")+COUNTIF(L9:L39,"▲")) -> 0 | M42: =IF(COUNTIF(M9:M39,"")=31,0,COUNTIF(M9:M39,"")+COUNTIF(M9:M39,"■")+COUNTIF(M9:M39,"▲")) -> 0 | O42: 日数 | P42: =D42+M42 -> 0 | R42: =P42 -> 0
A43: 達成 | B43: 月単位 閉所率 | C43: =IF(C42=0,0,C41/C42) -> 0 | D43: =IF(D42=0,0,D41/D42) -> 0 | E43: 達成 | F43: 累計 閉所率 | G43: =G41/G42 ->  | K43: 月単位 閉所率 | L43: =IF(L42=0,0,L41/L42) -> 0 | M43: =IF(M42=0,0,M41/M42) -> 0 | O43: 累計 閉所率 | P43: =P41/P42 -> 
A44: 凡例 ■：現場閉所 ▲：現場休息 外：対象外 ／：工期外（対象期間に計上しない日を示す※必ず入力してください。）
A45: 閉所率（＝現場閉所（現場休息）率）：28.5%以上→４週８休以上
A46: 対象外期間：①年末年始6日間（12月29日から1月3日）②夏季休暇3日間（8月14日から8月16日）③工場製作のみを実施している期間 ④工事全体を一時中止している期間⑤災害等への対応期間⑥その他
... 1 more rows

Sheet 41-1
A1: 休日等取得計画・実績書
A2: 工事件名 | C2: =一括入力シート!B9 -> 0 | L2: 請負人名 | N2: =一括入力シート!B66 -> 0
A3: 工期 | C3: 令和 | D3: =一括入力シート!B21 -> 0 | E3: 年 | F3: =一括入力シート!C21 -> 0 | G3: 月 | H3: =一括入力シート!D21 -> 0 | I3: 日～ | J3: 令和 | K3: =一括入力シート!B30 -> 0 | L3: 年 | M3: =一括入力シート!C30 -> 0 | N3: 月 | O3: =一括入力シート!D30 -> 0 | P3: 日
A4: 提出日 | C4: 計画 | D4: 令和 | F4: 年 | H4: 月 | J4: 日 | K4: 実績 | M4: 年 | O4: 月 | Q4: 日
L5: （ | N5: ／ | Q5: 枚のうち）
A6: 令和 | C6: 年 | E6: 月 | K6: 年 | M6: 月
A7: 日 | B7: 曜日 | C7: 休日取得 | E7: 備考 | J7: 日 | K7: 曜日 | L7: 休日取得 | N7: 備考
C8: 計画 | D8: 実績 | L8: 計画 | M8: 実績
A9: 1 | B9: 火 | J9: 1
A10: 2 | B10: 水 | J10: 2
A11: 3 | B11: 木 | J11: 3
A12: 4 | B12: 金 | J12: 4
A13: 5 | B13: 土 | J13: 5
A14: 6 | B14: 日 | J14: 6
A15: 7 | B15: 月 | J15: 7
A16: 8 | B16: 火 | J16: 8
A17: 9 | B17: 水 | J17: 9
A18: 10 | B18: 木 | J18: 10
A19: 11 | B19: 金 | J19: 11
A20: 12 | B20: 土 | J20: 12
A21: 13 | B21: 日 | J21: 13
A22: 14 | B22: 月 | J22: 14
A23: 15 | B23: 火 | J23: 15
A24: 16 | B24: 水 | J24: 16
A25: 17 | B25: 木 | J25: 17
A26: 18 | B26: 金 | J26: 18
A27: 19 | B27: 土 | J27: 19
A28: 20 | B28: 日 | J28: 20
A29: 21 | B29: 月 | J29: 21
A30: 22 | B30: 火 | J30: 22
A31: 23 | B31: 水 | J31: 23
A32: 24 | B32: 木 | J32: 24
A33: 25 | B33: 金 | J33: 25
A34: 26 | B34: 土 | J34: 26
A35: 27 | B35: 日 | J35: 27
A36: 28 | B36: 月 | J36: 28
A37: 29 | B37: 火 | J37: 29
A38: 30 | B38: 水 | J38: 30
B39: 木 | J39: 31
A40: 当月 | B40: 対象 土日数 | D40: =IF(C42=0,0,C40/C42) -> 0 | E40: 土日数＜28.5%の場合、 閉所等の日数＞土日数で達成 | J40: 当月 | K40: 対象 土日数 | M40: =IF(L42=0,0,L40/L42) -> 0 | N40: 土日数＜28.5%の場合、 閉所等の日数＞土日数で達成
B41: 閉所等 | C41: =COUNTIF(C10:C40,"■")+COUNTIF(C10:C40,"▲") -> 0 | D41: =COUNTIF(D9:D39,"■")+COUNTIF(D9:D39,"▲") -> 0 | E41: 実績累計 | F41: 閉所等 | G41: =C41 -> 0 | K41: 閉所等 | L41: =COUNTIF(L10:L40,"■")+COUNTIF(L10:L40,"▲") -> 0 | M41: =COUNTIF(M9:M39,"■")+COUNTIF(M9:M39,"▲") -> 0 | N41: 実績累計 | O41: 閉所等 | P41: =D41+M41 -> 0 | R41: ='[3]様式２（休日計画・実績書）'!R41+P41 -> 0
B42: 日数 | C42: =IF(COUNTIF(C9:C39,"")=31,0,COUNTIF(C9:C39,"")+COUNTIF(C9:C39,"■")+COUNTIF(C9:C39,"▲")) -> 0 | D42: =IF(COUNTIF(D9:D39,"")=31,0,COUNTIF(D9:D39,"")+COUNTIF(D9:D39,"■")+COUNTIF(D9:D39,"▲")) -> 0 | F42: 日数 | G42: =C42 -> 0 | K42: 日数 | L42: =IF(COUNTIF(L9:L39,"")=31,0,COUNTIF(L9:L39,"")+COUNTIF(L9:L39,"■")+COUNTIF(L9:L39,"▲")) -> 0 | M42: =IF(COUNTIF(M9:M39,"")=31,0,COUNTIF(M9:M39,"")+COUNTIF(M9:M39,"■")+COUNTIF(M9:M39,"▲")) -> 0 | O42: 日数 | P42: =D42+M42 -> 0 | R42: ='[3]様式２（休日計画・実績書）'!R42+P42 -> 0
A43: 達成 | B43: 月単位 閉所率 | C43: =IF(C42=0,0,C41/C42) -> 0 | D43: =IF(D42=0,0,D41/D42) -> 0 | E43: 達成 | F43: 累計 閉所率 | G43: =G41/G42 ->  | K43: 月単位 閉所率 | L43: =IF(L42=0,0,L41/L42) -> 0 | M43: =IF(M42=0,0,M41/M42) -> 0 | O43: 累計 閉所率 | P43: =P41/P42 -> 
A44: 凡例 ■：現場閉所 ▲：現場休息 外：対象外 ／：工期外（対象期間に計上しない日を示す※必ず入力してください。）
A45: 閉所率（＝現場閉所（現場休息）率）：28.5%以上→４週８休以上
A46: 対象外期間：①年末年始6日間（12月29日から1月3日）②夏季休暇3日間（8月14日から8月16日）③工場製作のみを実施している期間 ④工事全体を一時中止している期間⑤災害等への対応期間⑥その他
... 1 more rows

Sheet 42
J2: 令和 | L2: 年 | N2: 月 | P2: 日 | Q2: 提出日を直接入力してください。
C3: （一財）神戸住環境整備公社 理事長 殿
H5: 所在地 | J5: =一括入力シート!B65 -> 0
H7: 商号又は名称 | J7: =一括入力シート!B66 -> 0
H9: 代表者職氏名 | J9: =一括入力シート!B67 -> 0
C11: 通 知 書
C13: 下記のとおり、建設業法第20条の2第2項に基づき、発生するおそれがあると認める工期又は請負代金の額に影響を及ぼす事象に関する情報を通知します。
B15: 記
C17: ="工事名："&一括入力シート!B9 -> 工事名：
C19: □ | D19: 主要な資機材の供給の不足若しくは遅延又は資機材の価格の高騰 | Q19: 選択してください。（□→■）
F20: （建設業法施行規則第13条の14第2項第1号）
C21: 発生するおそれのある事象※： | Q21: 事象及び情報の入手先を直接入力してください。
C22: 上記事象の状況の把握のため必要な情報の入手先：
C23: ※天災その他自然的又は人為的な事象により生じる発注者と受注者の双方の責めに帰することができないものを記載
C26: □ | D26: 特定の建設工事の種類における労務の供給の不足又は価格の高騰 | Q26: 選択してください。（□→■）
F27: （建設業法施行規則第13条の14第2項第2号）
C28: 発生するおそれのある事象※： | Q28: 事象及び情報の入手先を直接入力してください。
C29: 上記事象の状況の把握のため必要な情報の入手先：
C30: ※天災その他自然的又は人為的な事象により生じる発注者と受注者の双方の責めに帰することができないものを記載
C33: 以上
C35: その他連絡事項（空欄可）
C36: （自由記述：上記の他工期等に影響を与えることが予想される情報等）
B45: （注）１．本通知書については、建設業法施行規則第１３条の１４第２項に規定 する事象が発生するおそれがあると認めるときに提出するものであり、 当該事象の発生するおそれが認められない場合は、提出を求めるもの ではない。（全ての工事において提出を必須としない。）
B47: ２．本通知書を提出する場合は、落札決定（随意契約の場合にあっては、 契約の相手方の決定）から契約締結までに提出するものとする。
B49: ３．「上記事象の状況の把握のため必要な情報の入手先」欄においては、 受注予定者の通常の事業活動において把握でき、メディア記事、資材 業者の記者発表あるいは公的主体や業界団体などにより作成・更新さ れた一定の客観性を有する統計資料等に裏付けられた情報を用いるこ と。（一の資材業者の口頭のみによる情報など、真偽を確認すること が困難である情報は除かれることに留意すること。）
B51: ４．本通知書により通知した事象が契約締結後に顕在化した場合は、建設 業法第２０条の２第３項により、請負契約の変更についての協議を受 注者から発注者に対して申し出ることができるが、当該協議について は、本件工事の請負契約の規定等（スライド条項の運用基準等を含む 。）に基づき対応を行うものであることに留意すること。
B53: ５．本通知書を提出していない場合であっても、本件工事の請負契約の規 定に基づき、請負契約の変更について発注者に対して受注者から協議 を申し出ることができる。
... 1 more rows

Sheet 43
Y1: 改定 令和7年5月
C2: =一括入力シート!B9 -> 0 | J2: 【施工体制台帳等チェックリスト】 | S2: =一括入力シート!B66 -> 0
B4: No. | E4: 元請業者名 | F4: 工事請負契約書 | H4: 主任技術者（監理技術者） 資格証明 | I4: 専門技術者等 資格証明（国家資格等） | L4: 配置技術者（監理技術者） 雇用証明（健康保険証等） | O4: 作業員名簿 | S4: 工期 自：令和 | T4: =一括入力シート!B21 -> 0 | U4: 年 | V4: =一括入力シート!C21 -> 0 | W4: 月 | X4: =一括入力シート!D21 -> 0 | Y4: 日
S5: 至：令和 | T5: =一括入力シート!B24 -> 0 | U5: 年 | V5: =一括入力シート!C24 -> 0 | W5: 月 | X5: =一括入力シート!D24 -> 0 | Y5: 日
B6: 1 | E6: =一括入力シート!B66 -> 0 | F6: ○ | H6: ○ | I6: ○ | L6: ○ | O6: ○
B8: No. | E8: 1次下請業者名 | F8: 2次（以下）下請業者名＊1 | H8: 担当工事内容 | I8: 請負代金額［円］ | J8: 主任技術者 | L8: 再下請負 通知書 | M8: 建設業許可 | O8: 契約書＊3 | R8: 作業員 名簿 | S8: 建設業退職金共済制度 加入労働者数報告書 | T8: 暴力団排除 誓約書 （任意） | U8: 保険＊4 | X8: 備考＊5
J9: 専任＊2 | K9: 資格等 の確認 | M9: 有効期限 （年月日） | N9: 有効確認 | O9: 請負 契約書 | P9: 基本契約書 又は 基本契約約款 | U9: 健康 | V9: 厚生 年金 | W9: 雇用
I10: （税込） | P10: 注文書 | Q10: 注文請書
B11: 1 | C11: 1 | D11: 防水工事 | E11: ○○○○㈱ | H11: 防水工事 | I11: 60000000 | J11: 有 | K11: ○ | L11: 〇 | M11: 2027-03-31 | N11: 〇 | O11: 〇 | P11: － | Q11: － | R11: 〇 | S11: 〇 | T11: 〇 | U11: 〇 | V11: 〇 | W11: 〇
C12: =C11+1 -> 2 | F12: ② | G12: 〇×工業㈱ | H12: シート防水工事 | I12: 25000000 | J12: 無 | K12: ○ | L12: 〇 | M12: 2027-03-31 | N12: 〇 | O12: － | P12: 〇 | Q12: 〇 | R12: 〇 | S12: 〇 | T12: 〇 | U12: 〇 | V12: 〇 | W12: 〇
C13: =C12+1 -> 3 | F13: ② | G13: ㈱〇△防水 | H13: 塗膜防水工事 | I13: 5000000 | J13: 無 | K13: ○ | L13: 〇 | M13: 2026-08-31 | N13: 〇 | O13: － | P13: 〇 | Q13: 〇 | R13: 〇 | S13: 〇 | T13: 〇 | U13: 〇 | V13: 〇 | W13: 〇
C14: 4 | F14: ③ | G14: ㈱××工業 | H14: シート防水工事 | I14: 20000000 | J14: 無 | K14: ○ | L14: 〇 | M14: 2026-08-31 | N14: 〇 | O14: － | P14: 〇 | Q14: 〇 | R14: 〇 | S14: 〇 | T14: 〇 | U14: 〇 | V14: 〇 | W14: 適除 | X14: 労災保険有
C15: 5 | F15: ③ | G15: 〇△技研 | H15: シーリング工事 | I15: 2000000 | J15: 無 | K15: ○ | L15: 〇 | M15: 2026-08-31 | N15: 〇 | O15: － | P15: 〇 | Q15: 〇 | R15: 〇 | S15: 〇 | T15: 〇 | U15: 〇 | V15: 〇 | W15: 適除 | X15: 労災保険有
B16: =B11+1 -> 2 | C16: 1
C17: =C16+1 -> 2
C18: =C17+1 -> 3
C19: 4
C20: 5
B21: =B16+1 -> 3 | C21: 1
C22: =C21+1 -> 2
C23: =C22+1 -> 3
C24: 4
C25: 5
B26: =B21+1 -> 4 | C26: 1
C27: =C26+1 -> 2
C28: =C27+1 -> 3
C29: 4
C30: 5
B31: =B26+1 -> 5 | C31: 1
C32: =C31+1 -> 2
C33: =C32+1 -> 3
C34: 4
C35: 5
B36: =B31+1 -> 6 | C36: 1
C37: =C36+1 -> 2
C38: =C37+1 -> 3
C39: 4
C40: 5
B41: =B36+1 -> 7 | C41: 1
C42: =C41+1 -> 2
C43: =C42+1 -> 3
C44: 4
C45: 5
B46: ＊1 下請け次数を丸数字で記載する。警備業者（交通誘導警備員）も作成対象とする。 ＊2 請負額が4500万（建築一式工事の場合9000万）円以上の場合、主任技術者の専任要 ＊3 いずれかの組み合わせを提出する。 ＊4 適除（適用除外）の場合、備考に理由を記載し、必要に応じて根拠資料を添付する。 ＊5 1：自社に退職金制度がある（根拠資料を添付）。 2：従業員が中小企業退職金共済事業の被保険者（加入証明書写しを添付）。 3：従業員がその他の退職金制度に加入（制度名及び根拠資料を添付）。 4：その他（理由及び必要に応じて根拠資料を添付）。 | I46: 注意事項チェック欄 ※チェックの上、提出すること。 □ 主任技術者（監理技術者）の資格証明は、その写しを添付する。 ※ただし、実務経験の場合は、それが分かるものを添付する。 ※契約時に、契約監理課に提出したものと同じでよい。 □ 専門技術者を置く場合は、資格証明（国家資格等）の写しを添付する。 □ 健康保険証を添付する場合は、番号などの個人情報にマスキングする。 □ 保険の有効期限が失効している場合は、更新書類を追加添付する。 | P46: □ 契約書には、建設業法第19条第1項に定める内容をすべて記載する。 （「建設業法に基づく適正な施工体制と配置技術者」参照） □ 契約変更に伴い、下請けとの変更契約を結ぶ際は、変更の注文書・注文請書を添付する。 □ 建設業許可無しの場合は、請負代金と支給材料の市場価格（運送費含む）の合計が軽微な建設工事に限る。 （その他の建設工事で 税込500万円未満）
... 1 more rows

Sheet アンケート
D1: 設計業務書類一括入力システム 使用者アンケート
D3: この度は、公社版設計業務一括入力システムをご利用いただきありがとうございます。 弊社では、システムの品質向上のためお客様アンケートを実施しております。 お手数をおかけしますが、アンケートのご協力をお願いいたします。 なお、当アンケートは匿名式となっており、個人を特定するような項目はありません。 いただいた回答はアンケートの目的以外には一切使用いたしませんので、率直なご感想をお聞かせください。 入力後は印刷もしくはPDFへ出力し、ご提出ください。何卒、よろしくお願いいたします。
D11: Q1 | G11: このシステムを使用するのは何回目ですか？
G13: 1回目 | Q13: 2回目 | AB13: それ以上
D16: Q2 | G16: 良かった点や便利だと思った点をお聞かせください。
D27: Q3 | G27: 不満点や問題点、改善点をお聞かせください。
D36: Q4 | G36: 当システムに今後導入してほしい機能があればお聞かせください。
D45: Q5 | G45: その他、感想やご意見などをお聞かせください。
D56: アンケートは以上で終了です。ご協力ありがとうございました。
... 1 more rows
